Body Name,Body,Date,Department,Beneficiary,Summary of Purpose (SeRCOP),Amount,Merchant Code,Transaction Number
Sandwell Metropolitan Borough Council,http://www.sandwell.gov.uk/info/200202/performance_and_spending/3233/government_procurement_cards,04-Oct-2022,Total Business Strategy & Change,AMZNMktplace,Assistant Chief Executive (Excl SIU),30.59,MISCELLANEOUS AND SPECIALTY RETAIL STORES,2022-23Q3_PC0001
Sandwell Metropolitan Borough Council,http://www.sandwell.gov.uk/info/200202/performance_and_spending/3233/government_procurement_cards,04-Oct-2022,Childrens Services,AMZNMktplace,Childrens Services,5.18,MISCELLANEOUS AND SPECIALTY RETAIL STORES,2022-23Q3_PC0002
Sandwell Metropolitan Borough Council,http://www.sandwell.gov.uk/info/200202/performance_and_spending/3233/government_procurement_cards,04-Oct-2022,Childrens Services,AMZNMktplace,Childrens Services,10.49,MISCELLANEOUS AND SPECIALTY RETAIL STORES,2022-23Q3_PC0003
Sandwell Metropolitan Borough Council,http://www.sandwell.gov.uk/info/200202/performance_and_spending/3233/government_procurement_cards,04-Oct-2022,Childrens Services,ASDA GROCERIES ONLINE,Childrens Services,-4.8,"GROCERY STORES, SUPERMARKETS",2022-23Q3_PC0004
Sandwell Metropolitan Borough Council,http://www.sandwell.gov.uk/info/200202/performance_and_spending/3233/government_procurement_cards,04-Oct-2022,Childrens Services,ASDA GROCERIES ONLINE,Childrens Services,142.24,"GROCERY STORES, SUPERMARKETS",2022-23Q3_PC0005
Sandwell Metropolitan Borough Council,http://www.sandwell.gov.uk/info/200202/performance_and_spending/3233/government_procurement_cards,04-Oct-2022,Childrens Services,Amazon.co.uk QY5I51015,Childrens Services,10,DIRECT MARKETING-OTHER DIRECT MARKETERS/NOT ELSEW.,2022-23Q3_PC0006
Sandwell Metropolitan Borough Council,http://www.sandwell.gov.uk/info/200202/performance_and_spending/3233/government_procurement_cards,04-Oct-2022,Childrens Services,Amazon.co.uk O93SF6D25,Childrens Services,5.71,DIRECT MARKETING-OTHER DIRECT MARKETERS/NOT ELSEW.,2022-23Q3_PC0007
Sandwell Metropolitan Borough Council,http://www.sandwell.gov.uk/info/200202/performance_and_spending/3233/government_procurement_cards,04-Oct-2022,Childrens Services,TESCO STORES 2770,Childrens Services,135.98,"GROCERY STORES, SUPERMARKETS",2022-23Q3_PC0008
Sandwell Metropolitan Borough Council,http://www.sandwell.gov.uk/info/200202/performance_and_spending/3233/government_procurement_cards,04-Oct-2022,Childrens Services,ASDA GROCERIES ONLINE,Childrens Services,-12.6,"GROCERY STORES, SUPERMARKETS",2022-23Q3_PC0009
Sandwell Metropolitan Borough Council,http://www.sandwell.gov.uk/info/200202/performance_and_spending/3233/government_procurement_cards,04-Oct-2022,Childrens Services,ASDA GROCERIES ONLINE,Childrens Services,54.2,"GROCERY STORES, SUPERMARKETS",2022-23Q3_PC0010
Sandwell Metropolitan Borough Council,http://www.sandwell.gov.uk/info/200202/performance_and_spending/3233/government_procurement_cards,04-Oct-2022,Childrens Services,LIDL GB PORTHMADOG,Childrens Services,18.8,"GROCERY STORES, SUPERMARKETS",2022-23Q3_PC0011
Sandwell Metropolitan Borough Council,http://www.sandwell.gov.uk/info/200202/performance_and_spending/3233/government_procurement_cards,04-Oct-2022,Childrens Services,LIDL GB PORTHMADOG,Childrens Services,40.9,"GROCERY STORES, SUPERMARKETS",2022-23Q3_PC0012
Sandwell Metropolitan Borough Council,http://www.sandwell.gov.uk/info/200202/performance_and_spending/3233/government_procurement_cards,04-Oct-2022,Childrens Services,ALDI 8 778,Childrens Services,23.22,"GROCERY STORES, SUPERMARKETS",2022-23Q3_PC0013
Sandwell Metropolitan Borough Council,http://www.sandwell.gov.uk/info/200202/performance_and_spending/3233/government_procurement_cards,04-Oct-2022,Housing & Assets Total,TRAVELODGE,Corporate Management,108.1,TRAVELODGE,2022-23Q3_PC0014
Sandwell Metropolitan Borough Council,http://www.sandwell.gov.uk/info/200202/performance_and_spending/3233/government_procurement_cards,04-Oct-2022,Housing & Assets Total,AMZNMktplace,Corporate Management,29.99,MISCELLANEOUS AND SPECIALTY RETAIL STORES,2022-23Q3_PC0015
Sandwell Metropolitan Borough Council,http://www.sandwell.gov.uk/info/200202/performance_and_spending/3233/government_procurement_cards,04-Oct-2022,Housing & Assets Total,AMZNMktplace,Corporate Management,276,MISCELLANEOUS AND SPECIALTY RETAIL STORES,2022-23Q3_PC0016
Sandwell Metropolitan Borough Council,http://www.sandwell.gov.uk/info/200202/performance_and_spending/3233/government_procurement_cards,04-Oct-2022,Individual School Budgets With Inclusion,ASDA GROCERIES ONLINE,Individual School Budgets With Inclusion,28.15,"GROCERY STORES, SUPERMARKETS",2022-23Q3_PC0017
Sandwell Metropolitan Borough Council,http://www.sandwell.gov.uk/info/200202/performance_and_spending/3233/government_procurement_cards,04-Oct-2022,Total Business Strategy & Change,POSTURITE LTD,Neighbourhoods,63.54,MISCELLANEOUS HOUSE FURNISHING SPECIALTY SHOPS,2022-23Q3_PC0018
Sandwell Metropolitan Borough Council,http://www.sandwell.gov.uk/info/200202/performance_and_spending/3233/government_procurement_cards,04-Oct-2022,Regeneration & Growth,Amazon.co.uk 2N0PP35P5,Regeneration And The Economy,162.23,DIRECT MARKETING-OTHER DIRECT MARKETERS/NOT ELSEW.,2022-23Q3_PC0019
Sandwell Metropolitan Borough Council,http://www.sandwell.gov.uk/info/200202/performance_and_spending/3233/government_procurement_cards,04-Oct-2022,Total ASCHWB,Amazon.co.uk 3Q4I17PW5,Total Adult Social Care,77.05,DIRECT MARKETING-OTHER DIRECT MARKETERS/NOT ELSEW.,2022-23Q3_PC0020
Sandwell Metropolitan Borough Council,http://www.sandwell.gov.uk/info/200202/performance_and_spending/3233/government_procurement_cards,04-Oct-2022,Total Borough Economy,AMZNMKTPLACE AMAZON.CO,Total Adult Social Care,48.88,MISCELLANEOUS AND SPECIALTY RETAIL STORES,2022-23Q3_PC0021
Sandwell Metropolitan Borough Council,http://www.sandwell.gov.uk/info/200202/performance_and_spending/3233/government_procurement_cards,04-Oct-2022,Total Borough Economy,AMZ YIHONG-PRO,Total Adult Social Care,-63.99,MISCELLANEOUS AND SPECIALTY RETAIL STORES,2022-23Q3_PC0022
Sandwell Metropolitan Borough Council,http://www.sandwell.gov.uk/info/200202/performance_and_spending/3233/government_procurement_cards,04-Oct-2022,Total Borough Economy,Amazon.co.uk R41OF58I5,Total Adult Social Care,32.79,DIRECT MARKETING-OTHER DIRECT MARKETERS/NOT ELSEW.,2022-23Q3_PC0023
Sandwell Metropolitan Borough Council,http://www.sandwell.gov.uk/info/200202/performance_and_spending/3233/government_procurement_cards,04-Oct-2022,Total Borough Economy,WWW.NISBETS.COM,Total Adult Social Care,327.22,DIRECT MARKETING-CATALOG MERCHANTS,2022-23Q3_PC0024
Sandwell Metropolitan Borough Council,http://www.sandwell.gov.uk/info/200202/performance_and_spending/3233/government_procurement_cards,04-Oct-2022,Total Borough Economy,WWW.NISBETS.COM,Total Adult Social Care,176.47,DIRECT MARKETING-CATALOG MERCHANTS,2022-23Q3_PC0025
Sandwell Metropolitan Borough Council,http://www.sandwell.gov.uk/info/200202/performance_and_spending/3233/government_procurement_cards,04-Oct-2022,Total Borough Economy,EB  BLUES BUSINESS CLU,Total Adult Social Care,10,BUSINESS SERVICES-NOT ELSEWHERE CLASSIFIED,2022-23Q3_PC0026
Sandwell Metropolitan Borough Council,http://www.sandwell.gov.uk/info/200202/performance_and_spending/3233/government_procurement_cards,04-Oct-2022,Total Borough Economy,PODBEAN.COM,Total Adult Social Care,36.39,"CONSULTING, MANAGEMENT, AND PUBLIC RELATIONS SVCS",2022-23Q3_PC0027
Sandwell Metropolitan Borough Council,http://www.sandwell.gov.uk/info/200202/performance_and_spending/3233/government_procurement_cards,05-Oct-2022,Total Business Strategy & Change,JITP Ltd,Assistant Chief Executive (Excl SIU),105,"EATING PLACES, RESTAURANTS",2022-23Q3_PC0028
Sandwell Metropolitan Borough Council,http://www.sandwell.gov.uk/info/200202/performance_and_spending/3233/government_procurement_cards,05-Oct-2022,Childrens Services,WWW.OFFICETEAMCONNECT.,Childrens Services,24.9,STATIONERY/OFFICE SUPPLIES/PRINTING & WRITING PAP.,2022-23Q3_PC0029
Sandwell Metropolitan Borough Council,http://www.sandwell.gov.uk/info/200202/performance_and_spending/3233/government_procurement_cards,05-Oct-2022,Childrens Services,AMZNMktplace,Childrens Services,24.99,MISCELLANEOUS AND SPECIALTY RETAIL STORES,2022-23Q3_PC0030
Sandwell Metropolitan Borough Council,http://www.sandwell.gov.uk/info/200202/performance_and_spending/3233/government_procurement_cards,05-Oct-2022,Childrens Services,WWW.THEGLOWCOMPANY.CO.,Childrens Services,349.79,"GIFT, CARD, NOVELTY AND SOUVENIR SHOPS",2022-23Q3_PC0031
Sandwell Metropolitan Borough Council,http://www.sandwell.gov.uk/info/200202/performance_and_spending/3233/government_procurement_cards,05-Oct-2022,Childrens Services,SAINSBURYS S/MKTS,Childrens Services,12.4,"GROCERY STORES, SUPERMARKETS",2022-23Q3_PC0032
Sandwell Metropolitan Borough Council,http://www.sandwell.gov.uk/info/200202/performance_and_spending/3233/government_procurement_cards,05-Oct-2022,Childrens Services,AMZ Amazon Business UK,Childrens Services,-15.77,DIRECT MARKETING-OTHER DIRECT MARKETERS/NOT ELSEW.,2022-23Q3_PC0033
Sandwell Metropolitan Borough Council,http://www.sandwell.gov.uk/info/200202/performance_and_spending/3233/government_procurement_cards,05-Oct-2022,Childrens Services,AMZ Amazon Business UK,Childrens Services,-15.77,DIRECT MARKETING-OTHER DIRECT MARKETERS/NOT ELSEW.,2022-23Q3_PC0034
Sandwell Metropolitan Borough Council,http://www.sandwell.gov.uk/info/200202/performance_and_spending/3233/government_procurement_cards,05-Oct-2022,Childrens Services,AMZNMktplace,Childrens Services,26.66,MISCELLANEOUS AND SPECIALTY RETAIL STORES,2022-23Q3_PC0035
Sandwell Metropolitan Borough Council,http://www.sandwell.gov.uk/info/200202/performance_and_spending/3233/government_procurement_cards,05-Oct-2022,Childrens Services,Amazon Prime K035O81W5,Childrens Services,8.99,DIRECT MARKETING-CONTINUITY/SUBSCRIPTION MERCHANTS,2022-23Q3_PC0036
Sandwell Metropolitan Borough Council,http://www.sandwell.gov.uk/info/200202/performance_and_spending/3233/government_procurement_cards,05-Oct-2022,Childrens Services,Amazon.co.uk OB8GE2275,Childrens Services,94.81,DIRECT MARKETING-OTHER DIRECT MARKETERS/NOT ELSEW.,2022-23Q3_PC0037
Sandwell Metropolitan Borough Council,http://www.sandwell.gov.uk/info/200202/performance_and_spending/3233/government_procurement_cards,05-Oct-2022,Childrens Services,AMZNMktplace,Childrens Services,48.75,MISCELLANEOUS AND SPECIALTY RETAIL STORES,2022-23Q3_PC0038
Sandwell Metropolitan Borough Council,http://www.sandwell.gov.uk/info/200202/performance_and_spending/3233/government_procurement_cards,05-Oct-2022,Childrens Services,FARMFOODS 548,Childrens Services,24.98,"GROCERY STORES, SUPERMARKETS",2022-23Q3_PC0039
Sandwell Metropolitan Borough Council,http://www.sandwell.gov.uk/info/200202/performance_and_spending/3233/government_procurement_cards,05-Oct-2022,Childrens Services,YORKSHIRE PURCHASING O,Childrens Services,64.86,STATIONERY/OFFICE SUPPLIES/PRINTING & WRITING PAP.,2022-23Q3_PC0040
Sandwell Metropolitan Borough Council,http://www.sandwell.gov.uk/info/200202/performance_and_spending/3233/government_procurement_cards,05-Oct-2022,Childrens Services,YORKSHIRE PURCHASING O,Childrens Services,38.38,STATIONERY/OFFICE SUPPLIES/PRINTING & WRITING PAP.,2022-23Q3_PC0041
Sandwell Metropolitan Borough Council,http://www.sandwell.gov.uk/info/200202/performance_and_spending/3233/government_procurement_cards,05-Oct-2022,Childrens Services,AMZNMKTPLACE AMAZON.CO,Childrens Services,70.26,MISCELLANEOUS AND SPECIALTY RETAIL STORES,2022-23Q3_PC0042
Sandwell Metropolitan Borough Council,http://www.sandwell.gov.uk/info/200202/performance_and_spending/3233/government_procurement_cards,05-Oct-2022,Individual School Budgets With Inclusion,ARGOS LTD,Individual School Budgets With Inclusion,65,DISCOUNT STORES,2022-23Q3_PC0043
Sandwell Metropolitan Borough Council,http://www.sandwell.gov.uk/info/200202/performance_and_spending/3233/government_procurement_cards,05-Oct-2022,Individual School Budgets With Inclusion,WWW.FIRSTFENCE.CO.UK,Individual School Budgets With Inclusion,141.65,BUSINESS SERVICES-NOT ELSEWHERE CLASSIFIED,2022-23Q3_PC0044
Sandwell Metropolitan Borough Council,http://www.sandwell.gov.uk/info/200202/performance_and_spending/3233/government_procurement_cards,05-Oct-2022,Individual School Budgets With Inclusion,ARGOS LTD,Individual School Budgets With Inclusion,212.95,DISCOUNT STORES,2022-23Q3_PC0045
Sandwell Metropolitan Borough Council,http://www.sandwell.gov.uk/info/200202/performance_and_spending/3233/government_procurement_cards,05-Oct-2022,Individual School Budgets With Inclusion,121 CARZ LIMITED,Individual School Budgets With Inclusion,92,LIMOUSINES AND TAXICABS,2022-23Q3_PC0046
Sandwell Metropolitan Borough Council,http://www.sandwell.gov.uk/info/200202/performance_and_spending/3233/government_procurement_cards,05-Oct-2022,Total Public Health,TL&GN RAILWAY WEB,Public Health,21.1,PASSENGER RAILWAYS,2022-23Q3_PC0047
Sandwell Metropolitan Borough Council,http://www.sandwell.gov.uk/info/200202/performance_and_spending/3233/government_procurement_cards,05-Oct-2022,Regeneration & Growth,WWW.GLOBALGRAPHICS,Regeneration And The Economy,1680,"QUICK COPY,REPRODUCTION AND BLUEPRINTING SERVICES",2022-23Q3_PC0048
Sandwell Metropolitan Borough Council,http://www.sandwell.gov.uk/info/200202/performance_and_spending/3233/government_procurement_cards,05-Oct-2022,FINANCE (Inc SIU),WWW.OFFICETEAMCONNECT.,Total Adult Social Care,14.22,STATIONERY/OFFICE SUPPLIES/PRINTING & WRITING PAP.,2022-23Q3_PC0049
Sandwell Metropolitan Borough Council,http://www.sandwell.gov.uk/info/200202/performance_and_spending/3233/government_procurement_cards,05-Oct-2022,Total ASCHWB,ABBOTTS NEWS,Total Adult Social Care,17,"BOOKS,PERIODICALS AND NEWSPAPERS",2022-23Q3_PC0050
Sandwell Metropolitan Borough Council,http://www.sandwell.gov.uk/info/200202/performance_and_spending/3233/government_procurement_cards,05-Oct-2022,Total ASCHWB,AMZNMktplace,Total Adult Social Care,72.86,MISCELLANEOUS AND SPECIALTY RETAIL STORES,2022-23Q3_PC0051
Sandwell Metropolitan Borough Council,http://www.sandwell.gov.uk/info/200202/performance_and_spending/3233/government_procurement_cards,05-Oct-2022,Total ASCHWB,WWW.OFFICETEAMCONNECT.,Total Adult Social Care,84.14,STATIONERY/OFFICE SUPPLIES/PRINTING & WRITING PAP.,2022-23Q3_PC0052
Sandwell Metropolitan Borough Council,http://www.sandwell.gov.uk/info/200202/performance_and_spending/3233/government_procurement_cards,05-Oct-2022,FINANCE (Inc SIU),WWW.OFFICETEAMCONNECT.,Total Adult Social Care,119.85,STATIONERY/OFFICE SUPPLIES/PRINTING & WRITING PAP.,2022-23Q3_PC0053
Sandwell Metropolitan Borough Council,http://www.sandwell.gov.uk/info/200202/performance_and_spending/3233/government_procurement_cards,05-Oct-2022,Total Borough Economy,AMZNMktplace,Total Adult Social Care,49.7,MISCELLANEOUS AND SPECIALTY RETAIL STORES,2022-23Q3_PC0054
Sandwell Metropolitan Borough Council,http://www.sandwell.gov.uk/info/200202/performance_and_spending/3233/government_procurement_cards,05-Oct-2022,Total Borough Economy,Garden and Hire Spares,Total Adult Social Care,36.9,HARDWARE EQUIPMENT AND SUPPLIES,2022-23Q3_PC0055
Sandwell Metropolitan Borough Council,http://www.sandwell.gov.uk/info/200202/performance_and_spending/3233/government_procurement_cards,05-Oct-2022,Total Borough Economy,AMZNMktplace,Total Adult Social Care,46.99,MISCELLANEOUS AND SPECIALTY RETAIL STORES,2022-23Q3_PC0056
Sandwell Metropolitan Borough Council,http://www.sandwell.gov.uk/info/200202/performance_and_spending/3233/government_procurement_cards,05-Oct-2022,Total Borough Economy,WWW.OFFICETEAMCONNECT.,Total Adult Social Care,115.15,STATIONERY/OFFICE SUPPLIES/PRINTING & WRITING PAP.,2022-23Q3_PC0057
Sandwell Metropolitan Borough Council,http://www.sandwell.gov.uk/info/200202/performance_and_spending/3233/government_procurement_cards,05-Oct-2022,Total Borough Economy,VIKING UK,Total Adult Social Care,230.28,STATIONERY/OFFICE SUPPLIES/PRINTING & WRITING PAP.,2022-23Q3_PC0058
Sandwell Metropolitan Borough Council,http://www.sandwell.gov.uk/info/200202/performance_and_spending/3233/government_procurement_cards,05-Oct-2022,Total Borough Economy,AMZNMktplace,Total Adult Social Care,23.99,MISCELLANEOUS AND SPECIALTY RETAIL STORES,2022-23Q3_PC0059
Sandwell Metropolitan Borough Council,http://www.sandwell.gov.uk/info/200202/performance_and_spending/3233/government_procurement_cards,05-Oct-2022,Total Borough Economy,B & Q 1193,Total Adult Social Care,66.54,HOME SUPPLY WAREHOUSE STORES,2022-23Q3_PC0060
Sandwell Metropolitan Borough Council,http://www.sandwell.gov.uk/info/200202/performance_and_spending/3233/government_procurement_cards,05-Oct-2022,Total Borough Economy,PARCELFORCE WL,Total Adult Social Care,134.1,"COURIER SVC-AIR & GROUND, FREIGHT FORWARDERS",2022-23Q3_PC0061
Sandwell Metropolitan Borough Council,http://www.sandwell.gov.uk/info/200202/performance_and_spending/3233/government_procurement_cards,05-Oct-2022,Total Borough Economy,PRINTED.COM,Total Adult Social Care,133.88,MISCELLANEOUS PUBLISHING AND PRINTING,2022-23Q3_PC0062
Sandwell Metropolitan Borough Council,http://www.sandwell.gov.uk/info/200202/performance_and_spending/3233/government_procurement_cards,05-Oct-2022,Total Borough Economy,AMZNMktplace,Total Adult Social Care,80.2,MISCELLANEOUS AND SPECIALTY RETAIL STORES,2022-23Q3_PC0063
Sandwell Metropolitan Borough Council,http://www.sandwell.gov.uk/info/200202/performance_and_spending/3233/government_procurement_cards,05-Oct-2022,Total Borough Economy,AMZNMktplace,Total Adult Social Care,59.8,MISCELLANEOUS AND SPECIALTY RETAIL STORES,2022-23Q3_PC0064
Sandwell Metropolitan Borough Council,http://www.sandwell.gov.uk/info/200202/performance_and_spending/3233/government_procurement_cards,05-Oct-2022,Total Borough Economy,SECURITY INDUSTRY AUTH,Total Adult Social Care,190,GOVERNMENT SERVICES-NOT ELSEWHERE CLASSIFIED,2022-23Q3_PC0065
Sandwell Metropolitan Borough Council,http://www.sandwell.gov.uk/info/200202/performance_and_spending/3233/government_procurement_cards,05-Oct-2022,Total Borough Economy,PAYPAL  ASB HELP,Total Adult Social Care,50,"ORGANIZATIONS, CHARITABLE AND SOCIAL SERVICES",2022-23Q3_PC0066
Sandwell Metropolitan Borough Council,http://www.sandwell.gov.uk/info/200202/performance_and_spending/3233/government_procurement_cards,05-Oct-2022,Total Housing Revenue Account,TRAVIS PERKINS,Total Housing Revenue Account,39.4,"BUILDING MATERIALS, LUMBER STORES",2022-23Q3_PC0067
Sandwell Metropolitan Borough Council,http://www.sandwell.gov.uk/info/200202/performance_and_spending/3233/government_procurement_cards,05-Oct-2022,Total Housing Revenue Account,TILE CHOICE LTD,Total Housing Revenue Account,49.98,"BUILDING MATERIALS, LUMBER STORES",2022-23Q3_PC0068
Sandwell Metropolitan Borough Council,http://www.sandwell.gov.uk/info/200202/performance_and_spending/3233/government_procurement_cards,06-Oct-2022,Director of Law & Governance,JONES MULTI SERVICE C,Assistant Chief Executive (Excl SIU),3,"HAT CLEANING SHOPS, SHOE REPAIR SHOPS, SHOE SHINE",2022-23Q3_PC0069
Sandwell Metropolitan Borough Council,http://www.sandwell.gov.uk/info/200202/performance_and_spending/3233/government_procurement_cards,06-Oct-2022,Childrens Services,EB  NATIONAL TRAUMA CO,Childrens Services,75,BUSINESS SERVICES-NOT ELSEWHERE CLASSIFIED,2022-23Q3_PC0070
Sandwell Metropolitan Borough Council,http://www.sandwell.gov.uk/info/200202/performance_and_spending/3233/government_procurement_cards,06-Oct-2022,Childrens Services,AMZNMktplace,Childrens Services,29.95,MISCELLANEOUS AND SPECIALTY RETAIL STORES,2022-23Q3_PC0071
Sandwell Metropolitan Borough Council,http://www.sandwell.gov.uk/info/200202/performance_and_spending/3233/government_procurement_cards,06-Oct-2022,Childrens Services,ASDA SUPERSTORE 04236,Childrens Services,22.19,"GROCERY STORES, SUPERMARKETS",2022-23Q3_PC0072
Sandwell Metropolitan Borough Council,http://www.sandwell.gov.uk/info/200202/performance_and_spending/3233/government_procurement_cards,06-Oct-2022,Childrens Services,SAINSBURYS S/MKTS,Childrens Services,66.75,"GROCERY STORES, SUPERMARKETS",2022-23Q3_PC0073
Sandwell Metropolitan Borough Council,http://www.sandwell.gov.uk/info/200202/performance_and_spending/3233/government_procurement_cards,06-Oct-2022,Childrens Services,AMZNMKTPLACE AMAZON.CO,Childrens Services,16.99,MISCELLANEOUS AND SPECIALTY RETAIL STORES,2022-23Q3_PC0074
Sandwell Metropolitan Borough Council,http://www.sandwell.gov.uk/info/200202/performance_and_spending/3233/government_procurement_cards,06-Oct-2022,Childrens Services,TESCO STORES 2770,Childrens Services,124.27,"GROCERY STORES, SUPERMARKETS",2022-23Q3_PC0075
Sandwell Metropolitan Borough Council,http://www.sandwell.gov.uk/info/200202/performance_and_spending/3233/government_procurement_cards,06-Oct-2022,Childrens Services,YORKSHIRE PURCHASING O,Childrens Services,-15.71,STATIONERY/OFFICE SUPPLIES/PRINTING & WRITING PAP.,2022-23Q3_PC0076
Sandwell Metropolitan Borough Council,http://www.sandwell.gov.uk/info/200202/performance_and_spending/3233/government_procurement_cards,06-Oct-2022,Childrens Services,SumUp   Seasons Veg Bo,Childrens Services,66.9,LIMOUSINES AND TAXICABS,2022-23Q3_PC0077
Sandwell Metropolitan Borough Council,http://www.sandwell.gov.uk/info/200202/performance_and_spending/3233/government_procurement_cards,06-Oct-2022,Housing & Assets Total,TRAVELODGE,Corporate Management,395.68,TRAVELODGE,2022-23Q3_PC0078
Sandwell Metropolitan Borough Council,http://www.sandwell.gov.uk/info/200202/performance_and_spending/3233/government_procurement_cards,06-Oct-2022,Total Public Health,SAINSBURYS S/MKTS,Public Health,35.63,"GROCERY STORES, SUPERMARKETS",2022-23Q3_PC0079
Sandwell Metropolitan Borough Council,http://www.sandwell.gov.uk/info/200202/performance_and_spending/3233/government_procurement_cards,06-Oct-2022,Total Public Health,WESTMINSTER FORUM PROJ,Public Health,312,"CONSULTING, MANAGEMENT, AND PUBLIC RELATIONS SVCS",2022-23Q3_PC0080
Sandwell Metropolitan Borough Council,http://www.sandwell.gov.uk/info/200202/performance_and_spending/3233/government_procurement_cards,06-Oct-2022,Regeneration & Growth,SMS CONNECTIONS,Regeneration And The Economy,994.51,"FUEL DEALERS-COAL, FUEL OIL, LIQ PETROLEUM, WOOD",2022-23Q3_PC0081
Sandwell Metropolitan Borough Council,http://www.sandwell.gov.uk/info/200202/performance_and_spending/3233/government_procurement_cards,06-Oct-2022,Total ASCHWB,THE DAYLIGHT COMPANY,Total Adult Social Care,84.99,ELECTRONIC SALES,2022-23Q3_PC0082
Sandwell Metropolitan Borough Council,http://www.sandwell.gov.uk/info/200202/performance_and_spending/3233/government_procurement_cards,06-Oct-2022,Total Borough Economy,Vistaprint,Total Adult Social Care,125.29,BUSINESS SERVICES-NOT ELSEWHERE CLASSIFIED,2022-23Q3_PC0083
Sandwell Metropolitan Borough Council,http://www.sandwell.gov.uk/info/200202/performance_and_spending/3233/government_procurement_cards,06-Oct-2022,Total Borough Economy,PREMIER INN,Total Adult Social Care,180,PREMIER INN,2022-23Q3_PC0084
Sandwell Metropolitan Borough Council,http://www.sandwell.gov.uk/info/200202/performance_and_spending/3233/government_procurement_cards,06-Oct-2022,Total Borough Economy,AMZNMKTPLACE AMAZON.CO,Total Adult Social Care,17.95,MISCELLANEOUS AND SPECIALTY RETAIL STORES,2022-23Q3_PC0085
Sandwell Metropolitan Borough Council,http://www.sandwell.gov.uk/info/200202/performance_and_spending/3233/government_procurement_cards,06-Oct-2022,Total Borough Economy,SP STAS HANGINGSYSTEMS,Total Adult Social Care,249.8,HARDWARE EQUIPMENT AND SUPPLIES,2022-23Q3_PC0086
Sandwell Metropolitan Borough Council,http://www.sandwell.gov.uk/info/200202/performance_and_spending/3233/government_procurement_cards,06-Oct-2022,Housing & Assets Total,CHARTERED INSTITUTE OF,Total Adult Social Care,50,"ORGANIZATIONS, CHARITABLE AND SOCIAL SERVICES",2022-23Q3_PC0087
Sandwell Metropolitan Borough Council,http://www.sandwell.gov.uk/info/200202/performance_and_spending/3233/government_procurement_cards,06-Oct-2022,Total Housing Revenue Account,AMZNMKTPLACE AMAZON.CO,Total Housing Revenue Account,53,MISCELLANEOUS AND SPECIALTY RETAIL STORES,2022-23Q3_PC0088
Sandwell Metropolitan Borough Council,http://www.sandwell.gov.uk/info/200202/performance_and_spending/3233/government_procurement_cards,06-Oct-2022,Total Housing Revenue Account,AMZNMKTPLACE AMAZON.CO,Total Housing Revenue Account,13.25,MISCELLANEOUS AND SPECIALTY RETAIL STORES,2022-23Q3_PC0089
Sandwell Metropolitan Borough Council,http://www.sandwell.gov.uk/info/200202/performance_and_spending/3233/government_procurement_cards,06-Oct-2022,Total Housing Revenue Account,AMZNMKTPLACE AMAZON.CO,Total Housing Revenue Account,62.02,MISCELLANEOUS AND SPECIALTY RETAIL STORES,2022-23Q3_PC0090
Sandwell Metropolitan Borough Council,http://www.sandwell.gov.uk/info/200202/performance_and_spending/3233/government_procurement_cards,06-Oct-2022,Total Housing Revenue Account,AMZNMKTPLACE AMAZON.CO,Total Housing Revenue Account,8.54,MISCELLANEOUS AND SPECIALTY RETAIL STORES,2022-23Q3_PC0091
Sandwell Metropolitan Borough Council,http://www.sandwell.gov.uk/info/200202/performance_and_spending/3233/government_procurement_cards,06-Oct-2022,Total Housing Revenue Account,AMZNMKTPLACE AMAZON.CO,Total Housing Revenue Account,8.55,MISCELLANEOUS AND SPECIALTY RETAIL STORES,2022-23Q3_PC0092
Sandwell Metropolitan Borough Council,http://www.sandwell.gov.uk/info/200202/performance_and_spending/3233/government_procurement_cards,06-Oct-2022,Total Housing Revenue Account,AMZNMktplace,Total Housing Revenue Account,57.8,MISCELLANEOUS AND SPECIALTY RETAIL STORES,2022-23Q3_PC0093
Sandwell Metropolitan Borough Council,http://www.sandwell.gov.uk/info/200202/performance_and_spending/3233/government_procurement_cards,06-Oct-2022,Total Housing Revenue Account,TRAVIS PERKINS,Total Housing Revenue Account,7.7,"BUILDING MATERIALS, LUMBER STORES",2022-23Q3_PC0094
Sandwell Metropolitan Borough Council,http://www.sandwell.gov.uk/info/200202/performance_and_spending/3233/government_procurement_cards,07-Oct-2022,Director of Law & Governance,THE NATIONAL ARCHIVES,Assistant Chief Executive (Excl SIU),315.85,GOVERNMENT SERVICES-NOT ELSEWHERE CLASSIFIED,2022-23Q3_PC0095
Sandwell Metropolitan Borough Council,http://www.sandwell.gov.uk/info/200202/performance_and_spending/3233/government_procurement_cards,07-Oct-2022,Director of Law & Governance,BLAKE-ENVELOPES.COM,Assistant Chief Executive (Excl SIU),82.42,MISCELLANEOUS PUBLISHING AND PRINTING,2022-23Q3_PC0096
Sandwell Metropolitan Borough Council,http://www.sandwell.gov.uk/info/200202/performance_and_spending/3233/government_procurement_cards,07-Oct-2022,Childrens Services,PREMIER INN,Childrens Services,67,PREMIER INN,2022-23Q3_PC0097
Sandwell Metropolitan Borough Council,http://www.sandwell.gov.uk/info/200202/performance_and_spending/3233/government_procurement_cards,07-Oct-2022,Childrens Services,CALDMORE HARDWARE LIMI,Childrens Services,66.35,HARDWARE STORES,2022-23Q3_PC0098
Sandwell Metropolitan Borough Council,http://www.sandwell.gov.uk/info/200202/performance_and_spending/3233/government_procurement_cards,07-Oct-2022,Childrens Services,AMZNMKTPLACE AMAZON.CO,Childrens Services,29.99,MISCELLANEOUS AND SPECIALTY RETAIL STORES,2022-23Q3_PC0099
Sandwell Metropolitan Borough Council,http://www.sandwell.gov.uk/info/200202/performance_and_spending/3233/government_procurement_cards,07-Oct-2022,Childrens Services,Hermes Parcelnet Ltd T,Childrens Services,4.34,"FREIGHT CARRIER,TRUCKING-LCL/LNG DIST, MVG/STORAGE",2022-23Q3_PC0100
Sandwell Metropolitan Borough Council,http://www.sandwell.gov.uk/info/200202/performance_and_spending/3233/government_procurement_cards,07-Oct-2022,Childrens Services,SPACEHOPPAS PLAYZONE,Childrens Services,190.6,"GAME, TOY, AND HOBBY SHOPS",2022-23Q3_PC0101
Sandwell Metropolitan Borough Council,http://www.sandwell.gov.uk/info/200202/performance_and_spending/3233/government_procurement_cards,07-Oct-2022,Childrens Services,ALDI 9 772,Childrens Services,33.55,"GROCERY STORES, SUPERMARKETS",2022-23Q3_PC0102
Sandwell Metropolitan Borough Council,http://www.sandwell.gov.uk/info/200202/performance_and_spending/3233/government_procurement_cards,07-Oct-2022,Childrens Services,WWW.NISBETS.COM,Childrens Services,65.91,DIRECT MARKETING-CATALOG MERCHANTS,2022-23Q3_PC0103
Sandwell Metropolitan Borough Council,http://www.sandwell.gov.uk/info/200202/performance_and_spending/3233/government_procurement_cards,07-Oct-2022,Childrens Services,AMZNMktplace,Childrens Services,20,MISCELLANEOUS AND SPECIALTY RETAIL STORES,2022-23Q3_PC0104
Sandwell Metropolitan Borough Council,http://www.sandwell.gov.uk/info/200202/performance_and_spending/3233/government_procurement_cards,07-Oct-2022,Childrens Services,AMZNMktplace,Childrens Services,79.99,MISCELLANEOUS AND SPECIALTY RETAIL STORES,2022-23Q3_PC0105
Sandwell Metropolitan Borough Council,http://www.sandwell.gov.uk/info/200202/performance_and_spending/3233/government_procurement_cards,07-Oct-2022,Housing & Assets Total,AMZ TPLUK,Corporate Management,-276,MISCELLANEOUS AND SPECIALTY RETAIL STORES,2022-23Q3_PC0106
Sandwell Metropolitan Borough Council,http://www.sandwell.gov.uk/info/200202/performance_and_spending/3233/government_procurement_cards,07-Oct-2022,Director of Law & Governance,LLG ENTERPRISES LTD,Dead SeRCOP,156,"SCHOOLS, TRADE AND VOCATIONAL",2022-23Q3_PC0107
Sandwell Metropolitan Borough Council,http://www.sandwell.gov.uk/info/200202/performance_and_spending/3233/government_procurement_cards,07-Oct-2022,Individual School Budgets With Inclusion,ARGOS LTD,Individual School Budgets With Inclusion,510.95,DISCOUNT STORES,2022-23Q3_PC0108
Sandwell Metropolitan Borough Council,http://www.sandwell.gov.uk/info/200202/performance_and_spending/3233/government_procurement_cards,07-Oct-2022,Individual School Budgets With Inclusion,ARGOS LTD,Individual School Budgets With Inclusion,30,DISCOUNT STORES,2022-23Q3_PC0109
Sandwell Metropolitan Borough Council,http://www.sandwell.gov.uk/info/200202/performance_and_spending/3233/government_procurement_cards,07-Oct-2022,Total Public Health,DMN/THELOSTFOUNDBIRMIN,Public Health,101.5,BUSINESS SERVICES-NOT ELSEWHERE CLASSIFIED,2022-23Q3_PC0110
Sandwell Metropolitan Borough Council,http://www.sandwell.gov.uk/info/200202/performance_and_spending/3233/government_procurement_cards,07-Oct-2022,Total Public Health,The Fish & Chip Shop,Public Health,5.5,FAST FOOD RESTAURANTS,2022-23Q3_PC0111
Sandwell Metropolitan Borough Council,http://www.sandwell.gov.uk/info/200202/performance_and_spending/3233/government_procurement_cards,07-Oct-2022,Total Public Health,The Fish & Chip Shop,Public Health,1.95,FAST FOOD RESTAURANTS,2022-23Q3_PC0112
Sandwell Metropolitan Borough Council,http://www.sandwell.gov.uk/info/200202/performance_and_spending/3233/government_procurement_cards,07-Oct-2022,Total ASCHWB,WWW.SCREWFIX.COM,Total Adult Social Care,51.99,"BUILDING MATERIALS, LUMBER STORES",2022-23Q3_PC0113
Sandwell Metropolitan Borough Council,http://www.sandwell.gov.uk/info/200202/performance_and_spending/3233/government_procurement_cards,07-Oct-2022,FINANCE (Inc SIU),WWW.OFFICETEAMCONNECT.,Total Adult Social Care,46.51,STATIONERY/OFFICE SUPPLIES/PRINTING & WRITING PAP.,2022-23Q3_PC0114
Sandwell Metropolitan Borough Council,http://www.sandwell.gov.uk/info/200202/performance_and_spending/3233/government_procurement_cards,07-Oct-2022,Total Borough Economy,MIDLANDNEWS.COM,Total Adult Social Care,208.2,NEWS DEALERS AND NEWSSTANDS,2022-23Q3_PC0115
Sandwell Metropolitan Borough Council,http://www.sandwell.gov.uk/info/200202/performance_and_spending/3233/government_procurement_cards,07-Oct-2022,Total Borough Economy,AMZNMktplace,Total Adult Social Care,34.98,MISCELLANEOUS AND SPECIALTY RETAIL STORES,2022-23Q3_PC0116
Sandwell Metropolitan Borough Council,http://www.sandwell.gov.uk/info/200202/performance_and_spending/3233/government_procurement_cards,07-Oct-2022,Total Borough Economy,AMZNMktplace,Total Adult Social Care,122.62,MISCELLANEOUS AND SPECIALTY RETAIL STORES,2022-23Q3_PC0117
Sandwell Metropolitan Borough Council,http://www.sandwell.gov.uk/info/200202/performance_and_spending/3233/government_procurement_cards,07-Oct-2022,Total Borough Economy,AMZNMktplace,Total Adult Social Care,81.99,MISCELLANEOUS AND SPECIALTY RETAIL STORES,2022-23Q3_PC0118
Sandwell Metropolitan Borough Council,http://www.sandwell.gov.uk/info/200202/performance_and_spending/3233/government_procurement_cards,07-Oct-2022,Total Borough Economy,Amazon.co.uk W44PU9W75,Total Adult Social Care,32.56,DIRECT MARKETING-OTHER DIRECT MARKETERS/NOT ELSEW.,2022-23Q3_PC0119
Sandwell Metropolitan Borough Council,http://www.sandwell.gov.uk/info/200202/performance_and_spending/3233/government_procurement_cards,07-Oct-2022,Total Borough Economy,WWW.SCREWFIX.COM,Total Adult Social Care,88.13,"BUILDING MATERIALS, LUMBER STORES",2022-23Q3_PC0120
Sandwell Metropolitan Borough Council,http://www.sandwell.gov.uk/info/200202/performance_and_spending/3233/government_procurement_cards,07-Oct-2022,Total Borough Economy,SCREWFIX DIR LTD,Total Adult Social Care,20.99,"BUILDING MATERIALS, LUMBER STORES",2022-23Q3_PC0121
Sandwell Metropolitan Borough Council,http://www.sandwell.gov.uk/info/200202/performance_and_spending/3233/government_procurement_cards,07-Oct-2022,Total Borough Economy,FR Jones and Son,Total Adult Social Care,48.28,HARDWARE STORES,2022-23Q3_PC0122
Sandwell Metropolitan Borough Council,http://www.sandwell.gov.uk/info/200202/performance_and_spending/3233/government_procurement_cards,07-Oct-2022,Total Housing Revenue Account,trainline,Total Housing Revenue Account,7.12,PASSENGER RAILWAYS,2022-23Q3_PC0123
Sandwell Metropolitan Borough Council,http://www.sandwell.gov.uk/info/200202/performance_and_spending/3233/government_procurement_cards,07-Oct-2022,Total Housing Revenue Account,AMZNMKTPLACE AMAZON.CO,Total Housing Revenue Account,71.37,MISCELLANEOUS AND SPECIALTY RETAIL STORES,2022-23Q3_PC0124
Sandwell Metropolitan Borough Council,http://www.sandwell.gov.uk/info/200202/performance_and_spending/3233/government_procurement_cards,07-Oct-2022,Total Housing Revenue Account,WWW.KANE.CO.UK,Total Housing Revenue Account,718.08,HARDWARE EQUIPMENT AND SUPPLIES,2022-23Q3_PC0125
Sandwell Metropolitan Borough Council,http://www.sandwell.gov.uk/info/200202/performance_and_spending/3233/government_procurement_cards,10-Oct-2022,Total Business Strategy & Change,Amazon Prime 127F94IQ5,Assistant Chief Executive (Excl SIU),8.99,DIRECT MARKETING-CONTINUITY/SUBSCRIPTION MERCHANTS,2022-23Q3_PC0126
Sandwell Metropolitan Borough Council,http://www.sandwell.gov.uk/info/200202/performance_and_spending/3233/government_procurement_cards,10-Oct-2022,Director of Law & Governance,WWW.OFFICETEAMCONNECT.,Assistant Chief Executive (Excl SIU),226.06,STATIONERY/OFFICE SUPPLIES/PRINTING & WRITING PAP.,2022-23Q3_PC0127
Sandwell Metropolitan Borough Council,http://www.sandwell.gov.uk/info/200202/performance_and_spending/3233/government_procurement_cards,10-Oct-2022,Director of Law & Governance,GOVERNMENT EVENTS,Assistant Chief Executive (Excl SIU),478.8,"THEATRICAL PRODUCERS(EXCL MOTION PIX),TICKET AGNCY",2022-23Q3_PC0128
Sandwell Metropolitan Borough Council,http://www.sandwell.gov.uk/info/200202/performance_and_spending/3233/government_procurement_cards,10-Oct-2022,Director of Law & Governance,SAINSBURY'S S/MKT,Assistant Chief Executive (Excl SIU),25,"GROCERY STORES, SUPERMARKETS",2022-23Q3_PC0129
Sandwell Metropolitan Borough Council,http://www.sandwell.gov.uk/info/200202/performance_and_spending/3233/government_procurement_cards,10-Oct-2022,FINANCE (Inc SIU),Amazon Prime F33SA55L5,Assistant Chief Executive (Excl SIU),8.99,DIRECT MARKETING-CONTINUITY/SUBSCRIPTION MERCHANTS,2022-23Q3_PC0130
Sandwell Metropolitan Borough Council,http://www.sandwell.gov.uk/info/200202/performance_and_spending/3233/government_procurement_cards,10-Oct-2022,Total Business Strategy & Change,Amazon.co.uk FB4IT4Z25,Assistant Chief Executive (Excl SIU),28.11,DIRECT MARKETING-OTHER DIRECT MARKETERS/NOT ELSEW.,2022-23Q3_PC0131
Sandwell Metropolitan Borough Council,http://www.sandwell.gov.uk/info/200202/performance_and_spending/3233/government_procurement_cards,10-Oct-2022,Total Business Strategy & Change,Amazon Prime HL3NK8F05,Assistant Chief Executive (Excl SIU),8.99,DIRECT MARKETING-CONTINUITY/SUBSCRIPTION MERCHANTS,2022-23Q3_PC0132
Sandwell Metropolitan Borough Council,http://www.sandwell.gov.uk/info/200202/performance_and_spending/3233/government_procurement_cards,10-Oct-2022,Childrens Services,WWW.OFFICETEAMCONNECT.,Childrens Services,29.06,STATIONERY/OFFICE SUPPLIES/PRINTING & WRITING PAP.,2022-23Q3_PC0133
Sandwell Metropolitan Borough Council,http://www.sandwell.gov.uk/info/200202/performance_and_spending/3233/government_procurement_cards,10-Oct-2022,Childrens Services,AMZNMktplace,Childrens Services,23.54,MISCELLANEOUS AND SPECIALTY RETAIL STORES,2022-23Q3_PC0134
Sandwell Metropolitan Borough Council,http://www.sandwell.gov.uk/info/200202/performance_and_spending/3233/government_procurement_cards,10-Oct-2022,Childrens Services,WWW.OFFICETEAMCONNECT.,Childrens Services,15.2,STATIONERY/OFFICE SUPPLIES/PRINTING & WRITING PAP.,2022-23Q3_PC0135
Sandwell Metropolitan Borough Council,http://www.sandwell.gov.uk/info/200202/performance_and_spending/3233/government_procurement_cards,10-Oct-2022,Childrens Services,AMZNMKTPLACE AMAZON.CO,Childrens Services,9.98,MISCELLANEOUS AND SPECIALTY RETAIL STORES,2022-23Q3_PC0136
Sandwell Metropolitan Borough Council,http://www.sandwell.gov.uk/info/200202/performance_and_spending/3233/government_procurement_cards,10-Oct-2022,Childrens Services,BOOKWHEN- SOFTWARE SUB,Childrens Services,468.76,COMPUTER SOFTWARE STORES,2022-23Q3_PC0137
Sandwell Metropolitan Borough Council,http://www.sandwell.gov.uk/info/200202/performance_and_spending/3233/government_procurement_cards,10-Oct-2022,Childrens Services,SPACEHOPPAS PLAYZONE,Childrens Services,102.55,"GAME, TOY, AND HOBBY SHOPS",2022-23Q3_PC0138
Sandwell Metropolitan Borough Council,http://www.sandwell.gov.uk/info/200202/performance_and_spending/3233/government_procurement_cards,10-Oct-2022,Childrens Services,BEEBYS BUBBLES,Childrens Services,36,"CLEANING, GARMENT, AND LAUNDRY SERVICES",2022-23Q3_PC0139
Sandwell Metropolitan Borough Council,http://www.sandwell.gov.uk/info/200202/performance_and_spending/3233/government_procurement_cards,10-Oct-2022,Childrens Services,BEEBYS BUBBLES,Childrens Services,30,"CLEANING, GARMENT, AND LAUNDRY SERVICES",2022-23Q3_PC0140
Sandwell Metropolitan Borough Council,http://www.sandwell.gov.uk/info/200202/performance_and_spending/3233/government_procurement_cards,10-Oct-2022,Childrens Services,ASDA GROCERIES ONLINE,Childrens Services,80.94,"GROCERY STORES, SUPERMARKETS",2022-23Q3_PC0141
Sandwell Metropolitan Borough Council,http://www.sandwell.gov.uk/info/200202/performance_and_spending/3233/government_procurement_cards,10-Oct-2022,Childrens Services,ASDA GROCERIES ONLINE,Childrens Services,39.9,"GROCERY STORES, SUPERMARKETS",2022-23Q3_PC0142
Sandwell Metropolitan Borough Council,http://www.sandwell.gov.uk/info/200202/performance_and_spending/3233/government_procurement_cards,10-Oct-2022,Childrens Services,Amazon.co.uk TF6SD3B55,Childrens Services,5.99,DIRECT MARKETING-OTHER DIRECT MARKETERS/NOT ELSEW.,2022-23Q3_PC0143
Sandwell Metropolitan Borough Council,http://www.sandwell.gov.uk/info/200202/performance_and_spending/3233/government_procurement_cards,10-Oct-2022,Childrens Services,Trainline.COM,Childrens Services,33.31,PASSENGER RAILWAYS,2022-23Q3_PC0144
Sandwell Metropolitan Borough Council,http://www.sandwell.gov.uk/info/200202/performance_and_spending/3233/government_procurement_cards,10-Oct-2022,Individual School Budgets With Inclusion,PAPA JOHN PIZZA,Individual School Budgets With Inclusion,83.36,FAST FOOD RESTAURANTS,2022-23Q3_PC0145
Sandwell Metropolitan Borough Council,http://www.sandwell.gov.uk/info/200202/performance_and_spending/3233/government_procurement_cards,10-Oct-2022,Total Public Health,Vistaprint,Public Health,-6.49,BUSINESS SERVICES-NOT ELSEWHERE CLASSIFIED,2022-23Q3_PC0146
Sandwell Metropolitan Borough Council,http://www.sandwell.gov.uk/info/200202/performance_and_spending/3233/government_procurement_cards,10-Oct-2022,Total Public Health,Just Eat,Public Health,107.93,FAST FOOD RESTAURANTS,2022-23Q3_PC0147
Sandwell Metropolitan Borough Council,http://www.sandwell.gov.uk/info/200202/performance_and_spending/3233/government_procurement_cards,10-Oct-2022,Regeneration & Growth,ECONOMIST GBP - GBP,Regeneration And The Economy,339,"BOOKS,PERIODICALS AND NEWSPAPERS",2022-23Q3_PC0148
Sandwell Metropolitan Borough Council,http://www.sandwell.gov.uk/info/200202/performance_and_spending/3233/government_procurement_cards,10-Oct-2022,Regeneration & Growth,SAINSBURYS S/MKTS,Regeneration And The Economy,11.25,"GROCERY STORES, SUPERMARKETS",2022-23Q3_PC0149
Sandwell Metropolitan Borough Council,http://www.sandwell.gov.uk/info/200202/performance_and_spending/3233/government_procurement_cards,10-Oct-2022,Total ASCHWB,WWW.OFFICETEAMCONNECT.,Total Adult Social Care,41.28,STATIONERY/OFFICE SUPPLIES/PRINTING & WRITING PAP.,2022-23Q3_PC0150
Sandwell Metropolitan Borough Council,http://www.sandwell.gov.uk/info/200202/performance_and_spending/3233/government_procurement_cards,10-Oct-2022,Total ASCHWB,Amazon Prime G93FG0N35,Total Adult Social Care,8.99,DIRECT MARKETING-CONTINUITY/SUBSCRIPTION MERCHANTS,2022-23Q3_PC0151
Sandwell Metropolitan Borough Council,http://www.sandwell.gov.uk/info/200202/performance_and_spending/3233/government_procurement_cards,10-Oct-2022,Total ASCHWB,WWW.OFFICETEAMCONNECT.,Total Adult Social Care,8.62,STATIONERY/OFFICE SUPPLIES/PRINTING & WRITING PAP.,2022-23Q3_PC0152
Sandwell Metropolitan Borough Council,http://www.sandwell.gov.uk/info/200202/performance_and_spending/3233/government_procurement_cards,10-Oct-2022,Total ASCHWB,AMZNMKTPLACE AMAZON.CO,Total Adult Social Care,120.16,MISCELLANEOUS AND SPECIALTY RETAIL STORES,2022-23Q3_PC0153
Sandwell Metropolitan Borough Council,http://www.sandwell.gov.uk/info/200202/performance_and_spending/3233/government_procurement_cards,10-Oct-2022,Total ASCHWB,AMZNMktplace,Total Adult Social Care,30.98,MISCELLANEOUS AND SPECIALTY RETAIL STORES,2022-23Q3_PC0154
Sandwell Metropolitan Borough Council,http://www.sandwell.gov.uk/info/200202/performance_and_spending/3233/government_procurement_cards,10-Oct-2022,FINANCE (Inc SIU),WWW.OFFICETEAMCONNECT.,Total Adult Social Care,43.59,STATIONERY/OFFICE SUPPLIES/PRINTING & WRITING PAP.,2022-23Q3_PC0155
Sandwell Metropolitan Borough Council,http://www.sandwell.gov.uk/info/200202/performance_and_spending/3233/government_procurement_cards,10-Oct-2022,FINANCE (Inc SIU),WWW.OFFICETEAMCONNECT.,Total Adult Social Care,29.06,STATIONERY/OFFICE SUPPLIES/PRINTING & WRITING PAP.,2022-23Q3_PC0156
Sandwell Metropolitan Borough Council,http://www.sandwell.gov.uk/info/200202/performance_and_spending/3233/government_procurement_cards,10-Oct-2022,Total Borough Economy,SP CABLETIES.CO.UK,Total Adult Social Care,112.92,ELECTRICAL PARTS AND EQUIPMENT,2022-23Q3_PC0157
Sandwell Metropolitan Borough Council,http://www.sandwell.gov.uk/info/200202/performance_and_spending/3233/government_procurement_cards,10-Oct-2022,Total Borough Economy,MEDICAL SUPPLIES,Total Adult Social Care,223.97,DENTAL/LAB/MED/OPHTHALMIC HOSP EQUIP & SUPPLIES,2022-23Q3_PC0158
Sandwell Metropolitan Borough Council,http://www.sandwell.gov.uk/info/200202/performance_and_spending/3233/government_procurement_cards,10-Oct-2022,Total Borough Economy,WWW.JUSTGLOVES.CO.UK,Total Adult Social Care,101.7,MISCELLANEOUS AND SPECIALTY RETAIL STORES,2022-23Q3_PC0159
Sandwell Metropolitan Borough Council,http://www.sandwell.gov.uk/info/200202/performance_and_spending/3233/government_procurement_cards,10-Oct-2022,Total Borough Economy,WWW.OFFICETEAMCONNECT.,Total Adult Social Care,171.44,STATIONERY/OFFICE SUPPLIES/PRINTING & WRITING PAP.,2022-23Q3_PC0160
Sandwell Metropolitan Borough Council,http://www.sandwell.gov.uk/info/200202/performance_and_spending/3233/government_procurement_cards,10-Oct-2022,Total Borough Economy,AMZNMktplace,Total Adult Social Care,123.98,MISCELLANEOUS AND SPECIALTY RETAIL STORES,2022-23Q3_PC0161
Sandwell Metropolitan Borough Council,http://www.sandwell.gov.uk/info/200202/performance_and_spending/3233/government_procurement_cards,10-Oct-2022,Total Borough Economy,AMZNMKTPLACE AMAZON.CO,Total Adult Social Care,29.98,MISCELLANEOUS AND SPECIALTY RETAIL STORES,2022-23Q3_PC0162
Sandwell Metropolitan Borough Council,http://www.sandwell.gov.uk/info/200202/performance_and_spending/3233/government_procurement_cards,10-Oct-2022,Total Borough Economy,AMZNMktplace,Total Adult Social Care,42.98,MISCELLANEOUS AND SPECIALTY RETAIL STORES,2022-23Q3_PC0163
Sandwell Metropolitan Borough Council,http://www.sandwell.gov.uk/info/200202/performance_and_spending/3233/government_procurement_cards,10-Oct-2022,Total Borough Economy,AMZNMktplace,Total Adult Social Care,75.8,MISCELLANEOUS AND SPECIALTY RETAIL STORES,2022-23Q3_PC0164
Sandwell Metropolitan Borough Council,http://www.sandwell.gov.uk/info/200202/performance_and_spending/3233/government_procurement_cards,10-Oct-2022,Total Borough Economy,HOLDCROFT RENAULT,Total Adult Social Care,120,AUTOMOTIVE SERVICE SHOPS,2022-23Q3_PC0165
Sandwell Metropolitan Borough Council,http://www.sandwell.gov.uk/info/200202/performance_and_spending/3233/government_procurement_cards,10-Oct-2022,Total Housing Revenue Account,trainline,Total Housing Revenue Account,3.86,PASSENGER RAILWAYS,2022-23Q3_PC0166
Sandwell Metropolitan Borough Council,http://www.sandwell.gov.uk/info/200202/performance_and_spending/3233/government_procurement_cards,10-Oct-2022,Total Housing Revenue Account,Trainline,Total Housing Revenue Account,80.69,PASSENGER RAILWAYS,2022-23Q3_PC0167
Sandwell Metropolitan Borough Council,http://www.sandwell.gov.uk/info/200202/performance_and_spending/3233/government_procurement_cards,10-Oct-2022,Total Housing Revenue Account,WWW.OFFICETEAMCONNECT.,Total Housing Revenue Account,147.38,STATIONERY/OFFICE SUPPLIES/PRINTING & WRITING PAP.,2022-23Q3_PC0168
Sandwell Metropolitan Borough Council,http://www.sandwell.gov.uk/info/200202/performance_and_spending/3233/government_procurement_cards,11-Oct-2022,Director of Law & Governance,Martys Lifestyle Expre,Assistant Chief Executive (Excl SIU),7.2,"GROCERY STORES, SUPERMARKETS",2022-23Q3_PC0169
Sandwell Metropolitan Borough Council,http://www.sandwell.gov.uk/info/200202/performance_and_spending/3233/government_procurement_cards,11-Oct-2022,Childrens Services,AMZNMktplace,Childrens Services,48.78,MISCELLANEOUS AND SPECIALTY RETAIL STORES,2022-23Q3_PC0170
Sandwell Metropolitan Borough Council,http://www.sandwell.gov.uk/info/200202/performance_and_spending/3233/government_procurement_cards,11-Oct-2022,Childrens Services,AMZNMktplace,Childrens Services,15.48,MISCELLANEOUS AND SPECIALTY RETAIL STORES,2022-23Q3_PC0171
Sandwell Metropolitan Borough Council,http://www.sandwell.gov.uk/info/200202/performance_and_spending/3233/government_procurement_cards,11-Oct-2022,Childrens Services,AMZNMktplace,Childrens Services,12.49,MISCELLANEOUS AND SPECIALTY RETAIL STORES,2022-23Q3_PC0172
Sandwell Metropolitan Borough Council,http://www.sandwell.gov.uk/info/200202/performance_and_spending/3233/government_procurement_cards,11-Oct-2022,Childrens Services,EB  RESOURCE HUB TRAIN,Childrens Services,25,BUSINESS SERVICES-NOT ELSEWHERE CLASSIFIED,2022-23Q3_PC0173
Sandwell Metropolitan Borough Council,http://www.sandwell.gov.uk/info/200202/performance_and_spending/3233/government_procurement_cards,11-Oct-2022,Childrens Services,EB  RESOURCE HUB TRAIN,Childrens Services,25,BUSINESS SERVICES-NOT ELSEWHERE CLASSIFIED,2022-23Q3_PC0174
Sandwell Metropolitan Borough Council,http://www.sandwell.gov.uk/info/200202/performance_and_spending/3233/government_procurement_cards,11-Oct-2022,Childrens Services,EB  RESOURCE HUB TRAIN,Childrens Services,25,BUSINESS SERVICES-NOT ELSEWHERE CLASSIFIED,2022-23Q3_PC0175
Sandwell Metropolitan Borough Council,http://www.sandwell.gov.uk/info/200202/performance_and_spending/3233/government_procurement_cards,11-Oct-2022,Childrens Services,EB  RESOURCE HUB TRAIN,Childrens Services,25,BUSINESS SERVICES-NOT ELSEWHERE CLASSIFIED,2022-23Q3_PC0176
Sandwell Metropolitan Borough Council,http://www.sandwell.gov.uk/info/200202/performance_and_spending/3233/government_procurement_cards,11-Oct-2022,Childrens Services,EB  RESOURCE HUB TRAIN,Childrens Services,25,BUSINESS SERVICES-NOT ELSEWHERE CLASSIFIED,2022-23Q3_PC0177
Sandwell Metropolitan Borough Council,http://www.sandwell.gov.uk/info/200202/performance_and_spending/3233/government_procurement_cards,11-Oct-2022,Childrens Services,EB  RESOURCE HUB TRAIN,Childrens Services,25,BUSINESS SERVICES-NOT ELSEWHERE CLASSIFIED,2022-23Q3_PC0178
Sandwell Metropolitan Borough Council,http://www.sandwell.gov.uk/info/200202/performance_and_spending/3233/government_procurement_cards,11-Oct-2022,Childrens Services,EB  RESOURCE HUB TRAIN,Childrens Services,25,BUSINESS SERVICES-NOT ELSEWHERE CLASSIFIED,2022-23Q3_PC0179
Sandwell Metropolitan Borough Council,http://www.sandwell.gov.uk/info/200202/performance_and_spending/3233/government_procurement_cards,11-Oct-2022,Childrens Services,ASDA STORES LTD 5865,Childrens Services,1.9,"GROCERY STORES, SUPERMARKETS",2022-23Q3_PC0180
Sandwell Metropolitan Borough Council,http://www.sandwell.gov.uk/info/200202/performance_and_spending/3233/government_procurement_cards,11-Oct-2022,Childrens Services,TESCO STORES 2770,Childrens Services,11.2,"GROCERY STORES, SUPERMARKETS",2022-23Q3_PC0181
Sandwell Metropolitan Borough Council,http://www.sandwell.gov.uk/info/200202/performance_and_spending/3233/government_procurement_cards,11-Oct-2022,Childrens Services,TESCO STORES 2770,Childrens Services,56.36,"GROCERY STORES, SUPERMARKETS",2022-23Q3_PC0182
Sandwell Metropolitan Borough Council,http://www.sandwell.gov.uk/info/200202/performance_and_spending/3233/government_procurement_cards,11-Oct-2022,Childrens Services,WWW.SCREWFIX.COM,Childrens Services,41.97,"BUILDING MATERIALS, LUMBER STORES",2022-23Q3_PC0183
Sandwell Metropolitan Borough Council,http://www.sandwell.gov.uk/info/200202/performance_and_spending/3233/government_procurement_cards,11-Oct-2022,Childrens Services,ASDA GROCERIES ONLINE,Childrens Services,-3.2,"GROCERY STORES, SUPERMARKETS",2022-23Q3_PC0184
Sandwell Metropolitan Borough Council,http://www.sandwell.gov.uk/info/200202/performance_and_spending/3233/government_procurement_cards,11-Oct-2022,Childrens Services,ASDA GROCERIES ONLINE,Childrens Services,81.69,"GROCERY STORES, SUPERMARKETS",2022-23Q3_PC0185
Sandwell Metropolitan Borough Council,http://www.sandwell.gov.uk/info/200202/performance_and_spending/3233/government_procurement_cards,11-Oct-2022,Housing & Assets Total,HAGLEY HOTEL,Corporate Management,105,"LODGING-HOTELS,MOTELS,RESORTS-NOT CLASSIFIED",2022-23Q3_PC0186
Sandwell Metropolitan Borough Council,http://www.sandwell.gov.uk/info/200202/performance_and_spending/3233/government_procurement_cards,11-Oct-2022,Housing & Assets Total,VIKING UK,Corporate Management,153.54,STATIONERY/OFFICE SUPPLIES/PRINTING & WRITING PAP.,2022-23Q3_PC0187
Sandwell Metropolitan Borough Council,http://www.sandwell.gov.uk/info/200202/performance_and_spending/3233/government_procurement_cards,11-Oct-2022,Housing & Assets Total,ARGOS LTD,Corporate Management,238.95,DISCOUNT STORES,2022-23Q3_PC0188
Sandwell Metropolitan Borough Council,http://www.sandwell.gov.uk/info/200202/performance_and_spending/3233/government_procurement_cards,11-Oct-2022,Housing & Assets Total,AMZNMKTPLACE AMAZON.CO,Corporate Management,109,MISCELLANEOUS AND SPECIALTY RETAIL STORES,2022-23Q3_PC0189
Sandwell Metropolitan Borough Council,http://www.sandwell.gov.uk/info/200202/performance_and_spending/3233/government_procurement_cards,11-Oct-2022,Individual School Budgets With Inclusion,ASDA SUPERSTORE,Individual School Budgets With Inclusion,21.55,"GROCERY STORES, SUPERMARKETS",2022-23Q3_PC0190
Sandwell Metropolitan Borough Council,http://www.sandwell.gov.uk/info/200202/performance_and_spending/3233/government_procurement_cards,11-Oct-2022,Individual School Budgets With Inclusion,EB  EXCLUDED TO INCLUD,Individual School Budgets With Inclusion,5.99,BUSINESS SERVICES-NOT ELSEWHERE CLASSIFIED,2022-23Q3_PC0191
Sandwell Metropolitan Borough Council,http://www.sandwell.gov.uk/info/200202/performance_and_spending/3233/government_procurement_cards,11-Oct-2022,Individual School Budgets With Inclusion,EB  EXCLUDED TO INCLUD,Individual School Budgets With Inclusion,5.99,BUSINESS SERVICES-NOT ELSEWHERE CLASSIFIED,2022-23Q3_PC0192
Sandwell Metropolitan Borough Council,http://www.sandwell.gov.uk/info/200202/performance_and_spending/3233/government_procurement_cards,11-Oct-2022,Individual School Budgets With Inclusion,DRAWING AND TALKING,Individual School Budgets With Inclusion,48,"CONSULTING, MANAGEMENT, AND PUBLIC RELATIONS SVCS",2022-23Q3_PC0193
Sandwell Metropolitan Borough Council,http://www.sandwell.gov.uk/info/200202/performance_and_spending/3233/government_procurement_cards,11-Oct-2022,Individual School Budgets With Inclusion,ASDA GROCERIES ONLINE,Individual School Budgets With Inclusion,-0.3,"GROCERY STORES, SUPERMARKETS",2022-23Q3_PC0194
Sandwell Metropolitan Borough Council,http://www.sandwell.gov.uk/info/200202/performance_and_spending/3233/government_procurement_cards,11-Oct-2022,Individual School Budgets With Inclusion,ASDA GROCERIES ONLINE,Individual School Budgets With Inclusion,27.35,"GROCERY STORES, SUPERMARKETS",2022-23Q3_PC0195
Sandwell Metropolitan Borough Council,http://www.sandwell.gov.uk/info/200202/performance_and_spending/3233/government_procurement_cards,11-Oct-2022,Total ASCHWB,COMPLETE CARE SHOP,Total Adult Social Care,119.52,DENTAL/LAB/MED/OPHTHALMIC HOSP EQUIP & SUPPLIES,2022-23Q3_PC0196
Sandwell Metropolitan Borough Council,http://www.sandwell.gov.uk/info/200202/performance_and_spending/3233/government_procurement_cards,11-Oct-2022,Total ASCHWB,NRS HEALTHCARE,Total Adult Social Care,42.96,"HEARING AIDS-SALES, SERVICE, SUPPLY STORES",2022-23Q3_PC0197
Sandwell Metropolitan Borough Council,http://www.sandwell.gov.uk/info/200202/performance_and_spending/3233/government_procurement_cards,11-Oct-2022,Total ASCHWB,WWW.SCREWFIX.COM,Total Adult Social Care,99.99,"BUILDING MATERIALS, LUMBER STORES",2022-23Q3_PC0198
Sandwell Metropolitan Borough Council,http://www.sandwell.gov.uk/info/200202/performance_and_spending/3233/government_procurement_cards,11-Oct-2022,Total ASCHWB,WWW.SCREWFIX.COM,Total Adult Social Care,73.83,"BUILDING MATERIALS, LUMBER STORES",2022-23Q3_PC0199
Sandwell Metropolitan Borough Council,http://www.sandwell.gov.uk/info/200202/performance_and_spending/3233/government_procurement_cards,11-Oct-2022,Total ASCHWB,WORKWEAR EXPRESS,Total Adult Social Care,609.81,MEN'S/WOMEN'S/CHILDREN'S UNIFORMS/COMMERCIAL CLOTH,2022-23Q3_PC0200
Sandwell Metropolitan Borough Council,http://www.sandwell.gov.uk/info/200202/performance_and_spending/3233/government_procurement_cards,11-Oct-2022,Total ASCHWB,WORKWEAR EXPRESS,Total Adult Social Care,500,MEN'S/WOMEN'S/CHILDREN'S UNIFORMS/COMMERCIAL CLOTH,2022-23Q3_PC0201
Sandwell Metropolitan Borough Council,http://www.sandwell.gov.uk/info/200202/performance_and_spending/3233/government_procurement_cards,11-Oct-2022,Total Borough Economy,SP STAS HANGINGSYSTEMS,Total Adult Social Care,223.5,HARDWARE EQUIPMENT AND SUPPLIES,2022-23Q3_PC0202
Sandwell Metropolitan Borough Council,http://www.sandwell.gov.uk/info/200202/performance_and_spending/3233/government_procurement_cards,11-Oct-2022,Total Borough Economy,B & Q 1276,Total Adult Social Care,205.58,HOME SUPPLY WAREHOUSE STORES,2022-23Q3_PC0203
Sandwell Metropolitan Borough Council,http://www.sandwell.gov.uk/info/200202/performance_and_spending/3233/government_procurement_cards,11-Oct-2022,Total Borough Economy,AMZNMktplace,Total Adult Social Care,273.18,MISCELLANEOUS AND SPECIALTY RETAIL STORES,2022-23Q3_PC0204
Sandwell Metropolitan Borough Council,http://www.sandwell.gov.uk/info/200202/performance_and_spending/3233/government_procurement_cards,11-Oct-2022,Total Housing Revenue Account,DAVENPORT BURGESS,Total Housing Revenue Account,62.64,"HAT CLEANING SHOPS, SHOE REPAIR SHOPS, SHOE SHINE",2022-23Q3_PC0205
Sandwell Metropolitan Borough Council,http://www.sandwell.gov.uk/info/200202/performance_and_spending/3233/government_procurement_cards,11-Oct-2022,Total Housing Revenue Account,TILE CHOICE LTD,Total Housing Revenue Account,59.8,"BUILDING MATERIALS, LUMBER STORES",2022-23Q3_PC0206
Sandwell Metropolitan Borough Council,http://www.sandwell.gov.uk/info/200202/performance_and_spending/3233/government_procurement_cards,11-Oct-2022,Total Housing Revenue Account,AMZNMktplace,Total Housing Revenue Account,19.98,MISCELLANEOUS AND SPECIALTY RETAIL STORES,2022-23Q3_PC0207
Sandwell Metropolitan Borough Council,http://www.sandwell.gov.uk/info/200202/performance_and_spending/3233/government_procurement_cards,12-Oct-2022,Director of Law & Governance,NATIONAL MEMORIAL ARBO,Assistant Chief Executive (Excl SIU),108,"ORGANIZATIONS, CHARITABLE AND SOCIAL SERVICES",2022-23Q3_PC0208
Sandwell Metropolitan Borough Council,http://www.sandwell.gov.uk/info/200202/performance_and_spending/3233/government_procurement_cards,12-Oct-2022,FINANCE (Inc SIU),WWW.CIPFA.ORG.UK,Assistant Chief Executive (Excl SIU),343.5,"ORGANIZATIONS, MEMBERSHIP-NOT ELSEWHERE CLASSIFIED",2022-23Q3_PC0209
Sandwell Metropolitan Borough Council,http://www.sandwell.gov.uk/info/200202/performance_and_spending/3233/government_procurement_cards,12-Oct-2022,Childrens Services,AMZNMKTPLACE AMAZON.CO,Childrens Services,99.8,MISCELLANEOUS AND SPECIALTY RETAIL STORES,2022-23Q3_PC0210
Sandwell Metropolitan Borough Council,http://www.sandwell.gov.uk/info/200202/performance_and_spending/3233/government_procurement_cards,12-Oct-2022,Childrens Services,Amazon.co.uk J326A3H55,Childrens Services,13.22,DIRECT MARKETING-OTHER DIRECT MARKETERS/NOT ELSEW.,2022-23Q3_PC0211
Sandwell Metropolitan Borough Council,http://www.sandwell.gov.uk/info/200202/performance_and_spending/3233/government_procurement_cards,12-Oct-2022,Childrens Services,PAPERSTONE,Childrens Services,79.7,STATIONERY/OFFICE SUPPLIES/PRINTING & WRITING PAP.,2022-23Q3_PC0212
Sandwell Metropolitan Borough Council,http://www.sandwell.gov.uk/info/200202/performance_and_spending/3233/government_procurement_cards,12-Oct-2022,Childrens Services,EB  CENTRE FOR YOUTH I,Childrens Services,50,BUSINESS SERVICES-NOT ELSEWHERE CLASSIFIED,2022-23Q3_PC0213
Sandwell Metropolitan Borough Council,http://www.sandwell.gov.uk/info/200202/performance_and_spending/3233/government_procurement_cards,12-Oct-2022,Childrens Services,BOOTS UK ECOMM,Childrens Services,60,"DRUG STORES, PHARMACIES",2022-23Q3_PC0214
Sandwell Metropolitan Borough Council,http://www.sandwell.gov.uk/info/200202/performance_and_spending/3233/government_procurement_cards,12-Oct-2022,Childrens Services,WWW.THEWORKS.CO.UK,Childrens Services,222,DISCOUNT STORES,2022-23Q3_PC0215
Sandwell Metropolitan Borough Council,http://www.sandwell.gov.uk/info/200202/performance_and_spending/3233/government_procurement_cards,12-Oct-2022,Childrens Services,SP YORKSHIRE TRADING,Childrens Services,144.04,VARIETY STORES,2022-23Q3_PC0216
Sandwell Metropolitan Borough Council,http://www.sandwell.gov.uk/info/200202/performance_and_spending/3233/government_procurement_cards,12-Oct-2022,Childrens Services,ASDA GEORGE COM LEEDS,Childrens Services,239,"GROCERY STORES, SUPERMARKETS",2022-23Q3_PC0217
Sandwell Metropolitan Borough Council,http://www.sandwell.gov.uk/info/200202/performance_and_spending/3233/government_procurement_cards,12-Oct-2022,Childrens Services,AMZNMKTPLACE AMAZON.CO,Childrens Services,29.97,MISCELLANEOUS AND SPECIALTY RETAIL STORES,2022-23Q3_PC0218
Sandwell Metropolitan Borough Council,http://www.sandwell.gov.uk/info/200202/performance_and_spending/3233/government_procurement_cards,12-Oct-2022,Childrens Services,TESCO STORES 2770,Childrens Services,54.16,"GROCERY STORES, SUPERMARKETS",2022-23Q3_PC0219
Sandwell Metropolitan Borough Council,http://www.sandwell.gov.uk/info/200202/performance_and_spending/3233/government_procurement_cards,12-Oct-2022,Childrens Services,ASDA GROCERIES ONLINE,Childrens Services,-7.5,"GROCERY STORES, SUPERMARKETS",2022-23Q3_PC0220
Sandwell Metropolitan Borough Council,http://www.sandwell.gov.uk/info/200202/performance_and_spending/3233/government_procurement_cards,12-Oct-2022,Childrens Services,ASDA GROCERIES ONLINE,Childrens Services,44.28,"GROCERY STORES, SUPERMARKETS",2022-23Q3_PC0221
Sandwell Metropolitan Borough Council,http://www.sandwell.gov.uk/info/200202/performance_and_spending/3233/government_procurement_cards,12-Oct-2022,Childrens Services,ALLIANCE DISPOSABLES,Childrens Services,205.92,CATERERS,2022-23Q3_PC0222
Sandwell Metropolitan Borough Council,http://www.sandwell.gov.uk/info/200202/performance_and_spending/3233/government_procurement_cards,12-Oct-2022,Corporate Management,WWW.EMAP.COM,Corporate Management,311,MISCELLANEOUS PUBLISHING AND PRINTING,2022-23Q3_PC0223
Sandwell Metropolitan Borough Council,http://www.sandwell.gov.uk/info/200202/performance_and_spending/3233/government_procurement_cards,12-Oct-2022,Housing & Assets Total,AMZNMKTPLACE AMAZON.CO,Corporate Management,13.7,MISCELLANEOUS AND SPECIALTY RETAIL STORES,2022-23Q3_PC0224
Sandwell Metropolitan Borough Council,http://www.sandwell.gov.uk/info/200202/performance_and_spending/3233/government_procurement_cards,12-Oct-2022,Housing & Assets Total,amazon.co.uk N73EE1QG5,Corporate Management,20.49,"GROCERY STORES, SUPERMARKETS",2022-23Q3_PC0225
Sandwell Metropolitan Borough Council,http://www.sandwell.gov.uk/info/200202/performance_and_spending/3233/government_procurement_cards,12-Oct-2022,Housing & Assets Total,AMZ Amazon Fresh,Corporate Management,-20.49,"GROCERY STORES, SUPERMARKETS",2022-23Q3_PC0226
Sandwell Metropolitan Borough Council,http://www.sandwell.gov.uk/info/200202/performance_and_spending/3233/government_procurement_cards,12-Oct-2022,Individual School Budgets With Inclusion,ARGOS LTD,Individual School Budgets With Inclusion,14.2,DISCOUNT STORES,2022-23Q3_PC0227
Sandwell Metropolitan Borough Council,http://www.sandwell.gov.uk/info/200202/performance_and_spending/3233/government_procurement_cards,12-Oct-2022,Total Public Health,PWAUK COM,Public Health,88.45,GOVERNMENT SERVICES-NOT ELSEWHERE CLASSIFIED,2022-23Q3_PC0228
Sandwell Metropolitan Borough Council,http://www.sandwell.gov.uk/info/200202/performance_and_spending/3233/government_procurement_cards,12-Oct-2022,Total ASCHWB,IKEA LTD SHOP ONLINE,Total Adult Social Care,147.5,"EQUIP, FURNITURE, HOME FURNSHNGS STRS (EXCPT APPL)",2022-23Q3_PC0229
Sandwell Metropolitan Borough Council,http://www.sandwell.gov.uk/info/200202/performance_and_spending/3233/government_procurement_cards,12-Oct-2022,Total ASCHWB,AMZNMktplace,Total Adult Social Care,26.37,MISCELLANEOUS AND SPECIALTY RETAIL STORES,2022-23Q3_PC0230
Sandwell Metropolitan Borough Council,http://www.sandwell.gov.uk/info/200202/performance_and_spending/3233/government_procurement_cards,12-Oct-2022,Total ASCHWB,WWW.THERANGE.CO.UK,Total Adult Social Care,319.99,MISCELLANEOUS HOUSE FURNISHING SPECIALTY SHOPS,2022-23Q3_PC0231
Sandwell Metropolitan Borough Council,http://www.sandwell.gov.uk/info/200202/performance_and_spending/3233/government_procurement_cards,12-Oct-2022,Total ASCHWB,ARGOS LTD,Total Adult Social Care,62.93,DISCOUNT STORES,2022-23Q3_PC0232
Sandwell Metropolitan Borough Council,http://www.sandwell.gov.uk/info/200202/performance_and_spending/3233/government_procurement_cards,12-Oct-2022,Total ASCHWB,ARGOS LTD,Total Adult Social Care,160.95,DISCOUNT STORES,2022-23Q3_PC0233
Sandwell Metropolitan Borough Council,http://www.sandwell.gov.uk/info/200202/performance_and_spending/3233/government_procurement_cards,12-Oct-2022,Total Borough Economy,AMZNMktplace,Total Adult Social Care,25.95,MISCELLANEOUS AND SPECIALTY RETAIL STORES,2022-23Q3_PC0234
Sandwell Metropolitan Borough Council,http://www.sandwell.gov.uk/info/200202/performance_and_spending/3233/government_procurement_cards,12-Oct-2022,Total Borough Economy,DARLASTON BUILDERS MER,Total Adult Social Care,146.21,"BUILDING MATERIALS, LUMBER STORES",2022-23Q3_PC0235
Sandwell Metropolitan Borough Council,http://www.sandwell.gov.uk/info/200202/performance_and_spending/3233/government_procurement_cards,12-Oct-2022,Total Borough Economy,TONER INK ONLINE,Total Adult Social Care,17.4,"OFFICE, SCHOOL SUPPLY, AND STATIONERY STORES",2022-23Q3_PC0236
Sandwell Metropolitan Borough Council,http://www.sandwell.gov.uk/info/200202/performance_and_spending/3233/government_procurement_cards,12-Oct-2022,Total Borough Economy,ICELAND FOODS,Total Adult Social Care,45,"GROCERY STORES, SUPERMARKETS",2022-23Q3_PC0237
Sandwell Metropolitan Borough Council,http://www.sandwell.gov.uk/info/200202/performance_and_spending/3233/government_procurement_cards,12-Oct-2022,Total Borough Economy,BONNIES BLOOMS FLORIST,Total Adult Social Care,27.5,FLORISTS,2022-23Q3_PC0238
Sandwell Metropolitan Borough Council,http://www.sandwell.gov.uk/info/200202/performance_and_spending/3233/government_procurement_cards,13-Oct-2022,Director of Law & Governance,SAINSBURYS S/MKTS,Assistant Chief Executive (Excl SIU),14.6,"GROCERY STORES, SUPERMARKETS",2022-23Q3_PC0239
Sandwell Metropolitan Borough Council,http://www.sandwell.gov.uk/info/200202/performance_and_spending/3233/government_procurement_cards,13-Oct-2022,Total Business Strategy & Change,DRI LENOVO,Assistant Chief Executive (Excl SIU),31.92,COMPUTER SOFTWARE STORES,2022-23Q3_PC0240
Sandwell Metropolitan Borough Council,http://www.sandwell.gov.uk/info/200202/performance_and_spending/3233/government_procurement_cards,13-Oct-2022,Childrens Services,ANTHONY PHILLIPS,Childrens Services,132,"OFFICE, SCHOOL SUPPLY, AND STATIONERY STORES",2022-23Q3_PC0241
Sandwell Metropolitan Borough Council,http://www.sandwell.gov.uk/info/200202/performance_and_spending/3233/government_procurement_cards,13-Oct-2022,Childrens Services,TESCO STORES 2770,Childrens Services,63.23,"GROCERY STORES, SUPERMARKETS",2022-23Q3_PC0242
Sandwell Metropolitan Borough Council,http://www.sandwell.gov.uk/info/200202/performance_and_spending/3233/government_procurement_cards,13-Oct-2022,Childrens Services,TESCO STORES 2770,Childrens Services,7.08,"GROCERY STORES, SUPERMARKETS",2022-23Q3_PC0243
Sandwell Metropolitan Borough Council,http://www.sandwell.gov.uk/info/200202/performance_and_spending/3233/government_procurement_cards,13-Oct-2022,Childrens Services,WWW.STAFFORDBC.GOV.UK,Childrens Services,180,GOVERNMENT SERVICES-NOT ELSEWHERE CLASSIFIED,2022-23Q3_PC0244
Sandwell Metropolitan Borough Council,http://www.sandwell.gov.uk/info/200202/performance_and_spending/3233/government_procurement_cards,13-Oct-2022,Housing & Assets Total,HQN LIMITED,Corporate Management,90,"CONSULTING, MANAGEMENT, AND PUBLIC RELATIONS SVCS",2022-23Q3_PC0245
Sandwell Metropolitan Borough Council,http://www.sandwell.gov.uk/info/200202/performance_and_spending/3233/government_procurement_cards,13-Oct-2022,Housing & Assets Total,AMZNMKTPLACE AMAZON.CO,Corporate Management,158.79,MISCELLANEOUS AND SPECIALTY RETAIL STORES,2022-23Q3_PC0246
Sandwell Metropolitan Borough Council,http://www.sandwell.gov.uk/info/200202/performance_and_spending/3233/government_procurement_cards,13-Oct-2022,Housing & Assets Total,AMZNMktplace,Corporate Management,476,MISCELLANEOUS AND SPECIALTY RETAIL STORES,2022-23Q3_PC0247
Sandwell Metropolitan Borough Council,http://www.sandwell.gov.uk/info/200202/performance_and_spending/3233/government_procurement_cards,13-Oct-2022,Housing & Assets Total,AMZNMktplace,Corporate Management,44.99,MISCELLANEOUS AND SPECIALTY RETAIL STORES,2022-23Q3_PC0248
Sandwell Metropolitan Borough Council,http://www.sandwell.gov.uk/info/200202/performance_and_spending/3233/government_procurement_cards,13-Oct-2022,Housing & Assets Total,AMZ Justar Office,Corporate Management,-44.99,MISCELLANEOUS AND SPECIALTY RETAIL STORES,2022-23Q3_PC0249
Sandwell Metropolitan Borough Council,http://www.sandwell.gov.uk/info/200202/performance_and_spending/3233/government_procurement_cards,13-Oct-2022,Director of Law & Governance,Trainline.COM,Dead SeRCOP,557.59,PASSENGER RAILWAYS,2022-23Q3_PC0250
Sandwell Metropolitan Borough Council,http://www.sandwell.gov.uk/info/200202/performance_and_spending/3233/government_procurement_cards,13-Oct-2022,Individual School Budgets With Inclusion,Convious UK Ltd,Individual School Budgets With Inclusion,265,RECREATION SERVICES (NOT ELSEWHERE CLASSIFIED),2022-23Q3_PC0251
Sandwell Metropolitan Borough Council,http://www.sandwell.gov.uk/info/200202/performance_and_spending/3233/government_procurement_cards,13-Oct-2022,Regeneration & Growth,WWW.CSCS.UK.COM,Regeneration And The Economy,36,"ORGANIZATIONS, MEMBERSHIP-NOT ELSEWHERE CLASSIFIED",2022-23Q3_PC0252
Sandwell Metropolitan Borough Council,http://www.sandwell.gov.uk/info/200202/performance_and_spending/3233/government_procurement_cards,13-Oct-2022,Regeneration & Growth,Amazon.co.uk GP9VA2IM5,Regeneration And The Economy,21.75,DIRECT MARKETING-OTHER DIRECT MARKETERS/NOT ELSEW.,2022-23Q3_PC0253
Sandwell Metropolitan Borough Council,http://www.sandwell.gov.uk/info/200202/performance_and_spending/3233/government_procurement_cards,13-Oct-2022,Total ASCHWB,WWW.SCREWFIX.COM,Total Adult Social Care,204.98,"BUILDING MATERIALS, LUMBER STORES",2022-23Q3_PC0254
Sandwell Metropolitan Borough Council,http://www.sandwell.gov.uk/info/200202/performance_and_spending/3233/government_procurement_cards,13-Oct-2022,Total ASCHWB,AMZNMKTPLACE AMAZON.CO,Total Adult Social Care,102,MISCELLANEOUS AND SPECIALTY RETAIL STORES,2022-23Q3_PC0255
Sandwell Metropolitan Borough Council,http://www.sandwell.gov.uk/info/200202/performance_and_spending/3233/government_procurement_cards,13-Oct-2022,Total ASCHWB,WWW.OFFICETEAMCONNECT.,Total Adult Social Care,169.23,STATIONERY/OFFICE SUPPLIES/PRINTING & WRITING PAP.,2022-23Q3_PC0256
Sandwell Metropolitan Borough Council,http://www.sandwell.gov.uk/info/200202/performance_and_spending/3233/government_procurement_cards,13-Oct-2022,Total Borough Economy,AMZNFreeTime,Total Adult Social Care,-3.99,RECORD SHOPS,2022-23Q3_PC0257
Sandwell Metropolitan Borough Council,http://www.sandwell.gov.uk/info/200202/performance_and_spending/3233/government_procurement_cards,13-Oct-2022,Total Borough Economy,AMZNFreeTime,Total Adult Social Care,-3.99,RECORD SHOPS,2022-23Q3_PC0258
Sandwell Metropolitan Borough Council,http://www.sandwell.gov.uk/info/200202/performance_and_spending/3233/government_procurement_cards,13-Oct-2022,Total Borough Economy,AMZNFreeTime,Total Adult Social Care,3.99,RECORD SHOPS,2022-23Q3_PC0259
Sandwell Metropolitan Borough Council,http://www.sandwell.gov.uk/info/200202/performance_and_spending/3233/government_procurement_cards,13-Oct-2022,Total Borough Economy,AMZNMktplace,Total Adult Social Care,37.43,MISCELLANEOUS AND SPECIALTY RETAIL STORES,2022-23Q3_PC0260
Sandwell Metropolitan Borough Council,http://www.sandwell.gov.uk/info/200202/performance_and_spending/3233/government_procurement_cards,13-Oct-2022,Total Borough Economy,WWW.SAMDWELL.GOV.UK,Total Adult Social Care,21,GOVERNMENT SERVICES-NOT ELSEWHERE CLASSIFIED,2022-23Q3_PC0261
Sandwell Metropolitan Borough Council,http://www.sandwell.gov.uk/info/200202/performance_and_spending/3233/government_procurement_cards,13-Oct-2022,Total Borough Economy,WWW.SAMDWELL.GOV.UK,Total Adult Social Care,21,GOVERNMENT SERVICES-NOT ELSEWHERE CLASSIFIED,2022-23Q3_PC0262
Sandwell Metropolitan Borough Council,http://www.sandwell.gov.uk/info/200202/performance_and_spending/3233/government_procurement_cards,13-Oct-2022,Total Borough Economy,AMZNMktplace,Total Adult Social Care,2.86,MISCELLANEOUS AND SPECIALTY RETAIL STORES,2022-23Q3_PC0263
Sandwell Metropolitan Borough Council,http://www.sandwell.gov.uk/info/200202/performance_and_spending/3233/government_procurement_cards,13-Oct-2022,Total Borough Economy,Amazon.co.uk 8249E86O5,Total Adult Social Care,8.64,DIRECT MARKETING-OTHER DIRECT MARKETERS/NOT ELSEW.,2022-23Q3_PC0264
Sandwell Metropolitan Borough Council,http://www.sandwell.gov.uk/info/200202/performance_and_spending/3233/government_procurement_cards,13-Oct-2022,Total Borough Economy,DARLASTON BUILDERS MER,Total Adult Social Care,143.09,"BUILDING MATERIALS, LUMBER STORES",2022-23Q3_PC0265
Sandwell Metropolitan Borough Council,http://www.sandwell.gov.uk/info/200202/performance_and_spending/3233/government_procurement_cards,13-Oct-2022,Total Borough Economy,AMZNMktplace,Total Adult Social Care,63.29,MISCELLANEOUS AND SPECIALTY RETAIL STORES,2022-23Q3_PC0266
Sandwell Metropolitan Borough Council,http://www.sandwell.gov.uk/info/200202/performance_and_spending/3233/government_procurement_cards,13-Oct-2022,Total Borough Economy,AMZNMktplace,Total Adult Social Care,191.63,MISCELLANEOUS AND SPECIALTY RETAIL STORES,2022-23Q3_PC0267
Sandwell Metropolitan Borough Council,http://www.sandwell.gov.uk/info/200202/performance_and_spending/3233/government_procurement_cards,13-Oct-2022,Total Borough Economy,SAINSBURYS.CO.UK,Total Adult Social Care,21.36,"GROCERY STORES, SUPERMARKETS",2022-23Q3_PC0268
Sandwell Metropolitan Borough Council,http://www.sandwell.gov.uk/info/200202/performance_and_spending/3233/government_procurement_cards,13-Oct-2022,Total Borough Economy,Amazon.co.uk IG6627K05,Total Adult Social Care,7.57,DIRECT MARKETING-OTHER DIRECT MARKETERS/NOT ELSEW.,2022-23Q3_PC0269
Sandwell Metropolitan Borough Council,http://www.sandwell.gov.uk/info/200202/performance_and_spending/3233/government_procurement_cards,13-Oct-2022,Total Borough Economy,AMZNMktplace,Total Adult Social Care,5.99,MISCELLANEOUS AND SPECIALTY RETAIL STORES,2022-23Q3_PC0270
Sandwell Metropolitan Borough Council,http://www.sandwell.gov.uk/info/200202/performance_and_spending/3233/government_procurement_cards,13-Oct-2022,Total Borough Economy,LIDL GB HALESOWEN,Total Adult Social Care,41.88,"GROCERY STORES, SUPERMARKETS",2022-23Q3_PC0271
Sandwell Metropolitan Borough Council,http://www.sandwell.gov.uk/info/200202/performance_and_spending/3233/government_procurement_cards,13-Oct-2022,Total Borough Economy,WM Morrison Petrol OPT,Total Adult Social Care,60.02,"FUEL DISPENSER, AUTOMATED",2022-23Q3_PC0272
Sandwell Metropolitan Borough Council,http://www.sandwell.gov.uk/info/200202/performance_and_spending/3233/government_procurement_cards,13-Oct-2022,Total Housing Revenue Account,AMZNMktplace,Total Housing Revenue Account,11.98,MISCELLANEOUS AND SPECIALTY RETAIL STORES,2022-23Q3_PC0273
Sandwell Metropolitan Borough Council,http://www.sandwell.gov.uk/info/200202/performance_and_spending/3233/government_procurement_cards,14-Oct-2022,Director of Law & Governance,AMZNMKTPLACE AMAZON.CO,Assistant Chief Executive (Excl SIU),22.56,MISCELLANEOUS AND SPECIALTY RETAIL STORES,2022-23Q3_PC0274
Sandwell Metropolitan Borough Council,http://www.sandwell.gov.uk/info/200202/performance_and_spending/3233/government_procurement_cards,14-Oct-2022,Director of Law & Governance,WWW.OFFICETEAMCONNECT.,Assistant Chief Executive (Excl SIU),37.9,STATIONERY/OFFICE SUPPLIES/PRINTING & WRITING PAP.,2022-23Q3_PC0275
Sandwell Metropolitan Borough Council,http://www.sandwell.gov.uk/info/200202/performance_and_spending/3233/government_procurement_cards,14-Oct-2022,Childrens Services,AMZNMKTPLACE AMAZON.CO,Childrens Services,103.94,MISCELLANEOUS AND SPECIALTY RETAIL STORES,2022-23Q3_PC0276
Sandwell Metropolitan Borough Council,http://www.sandwell.gov.uk/info/200202/performance_and_spending/3233/government_procurement_cards,14-Oct-2022,Childrens Services,AMZNMktplace,Childrens Services,12.99,MISCELLANEOUS AND SPECIALTY RETAIL STORES,2022-23Q3_PC0277
Sandwell Metropolitan Borough Council,http://www.sandwell.gov.uk/info/200202/performance_and_spending/3233/government_procurement_cards,14-Oct-2022,Childrens Services,SP YORKSHIRE TRADING,Childrens Services,-25.45,VARIETY STORES,2022-23Q3_PC0278
Sandwell Metropolitan Borough Council,http://www.sandwell.gov.uk/info/200202/performance_and_spending/3233/government_procurement_cards,14-Oct-2022,Childrens Services,ROYAL MAIL GROUP LTD,Childrens Services,21,POSTAL SERVICES-GOVERNMENT ONLY,2022-23Q3_PC0279
Sandwell Metropolitan Borough Council,http://www.sandwell.gov.uk/info/200202/performance_and_spending/3233/government_procurement_cards,14-Oct-2022,Childrens Services,ASDA SUPERSTORE 04236,Childrens Services,45.75,"GROCERY STORES, SUPERMARKETS",2022-23Q3_PC0280
Sandwell Metropolitan Borough Council,http://www.sandwell.gov.uk/info/200202/performance_and_spending/3233/government_procurement_cards,14-Oct-2022,Childrens Services,HOME BARGAINS,Childrens Services,2.78,HARDWARE STORES,2022-23Q3_PC0281
Sandwell Metropolitan Borough Council,http://www.sandwell.gov.uk/info/200202/performance_and_spending/3233/government_procurement_cards,14-Oct-2022,Childrens Services,QUICKS ARCHERY,Childrens Services,33.66,MISCELLANEOUS AND SPECIALTY RETAIL STORES,2022-23Q3_PC0282
Sandwell Metropolitan Borough Council,http://www.sandwell.gov.uk/info/200202/performance_and_spending/3233/government_procurement_cards,14-Oct-2022,Childrens Services,First Choice Catering,Childrens Services,34.97,CATERERS,2022-23Q3_PC0283
Sandwell Metropolitan Borough Council,http://www.sandwell.gov.uk/info/200202/performance_and_spending/3233/government_procurement_cards,14-Oct-2022,Childrens Services,SumUp   Seasons Veg Bo,Childrens Services,95.25,LIMOUSINES AND TAXICABS,2022-23Q3_PC0284
Sandwell Metropolitan Borough Council,http://www.sandwell.gov.uk/info/200202/performance_and_spending/3233/government_procurement_cards,14-Oct-2022,Childrens Services,SumUp   Seasons Veg Bo,Childrens Services,157,LIMOUSINES AND TAXICABS,2022-23Q3_PC0285
Sandwell Metropolitan Borough Council,http://www.sandwell.gov.uk/info/200202/performance_and_spending/3233/government_procurement_cards,14-Oct-2022,Childrens Services,WORKWEAR EXPRESS,Childrens Services,94.21,MEN'S/WOMEN'S/CHILDREN'S UNIFORMS/COMMERCIAL CLOTH,2022-23Q3_PC0286
Sandwell Metropolitan Borough Council,http://www.sandwell.gov.uk/info/200202/performance_and_spending/3233/government_procurement_cards,14-Oct-2022,Childrens Services,CATERING CENTRE,Childrens Services,123.31,BUSINESS SERVICES-NOT ELSEWHERE CLASSIFIED,2022-23Q3_PC0287
Sandwell Metropolitan Borough Council,http://www.sandwell.gov.uk/info/200202/performance_and_spending/3233/government_procurement_cards,14-Oct-2022,Childrens Services,AMZNMktplace,Childrens Services,9.59,MISCELLANEOUS AND SPECIALTY RETAIL STORES,2022-23Q3_PC0288
Sandwell Metropolitan Borough Council,http://www.sandwell.gov.uk/info/200202/performance_and_spending/3233/government_procurement_cards,14-Oct-2022,Childrens Services,AMZNMktplace,Childrens Services,20.93,MISCELLANEOUS AND SPECIALTY RETAIL STORES,2022-23Q3_PC0289
Sandwell Metropolitan Borough Council,http://www.sandwell.gov.uk/info/200202/performance_and_spending/3233/government_procurement_cards,14-Oct-2022,Regeneration & Growth,AMZ Amazon.co.uk,Regeneration And The Economy,-162.23,DIRECT MARKETING-OTHER DIRECT MARKETERS/NOT ELSEW.,2022-23Q3_PC0290
Sandwell Metropolitan Borough Council,http://www.sandwell.gov.uk/info/200202/performance_and_spending/3233/government_procurement_cards,14-Oct-2022,Regeneration & Growth,WWW.OFFICETEAMCONNECT.,Regeneration And The Economy,85.7,STATIONERY/OFFICE SUPPLIES/PRINTING & WRITING PAP.,2022-23Q3_PC0291
Sandwell Metropolitan Borough Council,http://www.sandwell.gov.uk/info/200202/performance_and_spending/3233/government_procurement_cards,14-Oct-2022,Regeneration & Growth,PROCONFERENCES.COM,Regeneration And The Economy,142.8,"COLLEGES, UNIV, PRO SCHOOLS, JUNIOR COLLEGES",2022-23Q3_PC0292
Sandwell Metropolitan Borough Council,http://www.sandwell.gov.uk/info/200202/performance_and_spending/3233/government_procurement_cards,14-Oct-2022,Regeneration & Growth,PROCONFERENCES.COM,Regeneration And The Economy,142.8,"COLLEGES, UNIV, PRO SCHOOLS, JUNIOR COLLEGES",2022-23Q3_PC0293
Sandwell Metropolitan Borough Council,http://www.sandwell.gov.uk/info/200202/performance_and_spending/3233/government_procurement_cards,14-Oct-2022,Total ASCHWB,POSTURITE LTD,Total Adult Social Care,823.2,MISCELLANEOUS HOUSE FURNISHING SPECIALTY SHOPS,2022-23Q3_PC0294
Sandwell Metropolitan Borough Council,http://www.sandwell.gov.uk/info/200202/performance_and_spending/3233/government_procurement_cards,14-Oct-2022,Total ASCHWB,POSTURITE LTD,Total Adult Social Care,515.67,MISCELLANEOUS HOUSE FURNISHING SPECIALTY SHOPS,2022-23Q3_PC0295
Sandwell Metropolitan Borough Council,http://www.sandwell.gov.uk/info/200202/performance_and_spending/3233/government_procurement_cards,14-Oct-2022,Total ASCHWB,AMZNMktplace,Total Adult Social Care,110.87,MISCELLANEOUS AND SPECIALTY RETAIL STORES,2022-23Q3_PC0296
Sandwell Metropolitan Borough Council,http://www.sandwell.gov.uk/info/200202/performance_and_spending/3233/government_procurement_cards,14-Oct-2022,Total ASCHWB,SP GRACKUK,Total Adult Social Care,1190.52,"EQUIP, FURNITURE, HOME FURNSHNGS STRS (EXCPT APPL)",2022-23Q3_PC0297
Sandwell Metropolitan Borough Council,http://www.sandwell.gov.uk/info/200202/performance_and_spending/3233/government_procurement_cards,14-Oct-2022,Total ASCHWB,AMZNMKTPLACE AMAZON.CO,Total Adult Social Care,29.98,MISCELLANEOUS AND SPECIALTY RETAIL STORES,2022-23Q3_PC0298
Sandwell Metropolitan Borough Council,http://www.sandwell.gov.uk/info/200202/performance_and_spending/3233/government_procurement_cards,14-Oct-2022,Total ASCHWB,Amazon.co.uk IN1DA34E5,Total Adult Social Care,32.64,DIRECT MARKETING-OTHER DIRECT MARKETERS/NOT ELSEW.,2022-23Q3_PC0299
Sandwell Metropolitan Borough Council,http://www.sandwell.gov.uk/info/200202/performance_and_spending/3233/government_procurement_cards,14-Oct-2022,Total ASCHWB,Amazon.co.uk X77YI37H5,Total Adult Social Care,24.36,DIRECT MARKETING-OTHER DIRECT MARKETERS/NOT ELSEW.,2022-23Q3_PC0300
Sandwell Metropolitan Borough Council,http://www.sandwell.gov.uk/info/200202/performance_and_spending/3233/government_procurement_cards,14-Oct-2022,Total ASCHWB,Amazon.co.uk 5Y7W410S5,Total Adult Social Care,20.93,DIRECT MARKETING-OTHER DIRECT MARKETERS/NOT ELSEW.,2022-23Q3_PC0301
Sandwell Metropolitan Borough Council,http://www.sandwell.gov.uk/info/200202/performance_and_spending/3233/government_procurement_cards,14-Oct-2022,Total ASCHWB,Amazon.co.uk LL2O349J5,Total Adult Social Care,19.94,DIRECT MARKETING-OTHER DIRECT MARKETERS/NOT ELSEW.,2022-23Q3_PC0302
Sandwell Metropolitan Borough Council,http://www.sandwell.gov.uk/info/200202/performance_and_spending/3233/government_procurement_cards,14-Oct-2022,Total ASCHWB,ARGOS LTD,Total Adult Social Care,79,DISCOUNT STORES,2022-23Q3_PC0303
Sandwell Metropolitan Borough Council,http://www.sandwell.gov.uk/info/200202/performance_and_spending/3233/government_procurement_cards,14-Oct-2022,Total ASCHWB,ARGOS LTD,Total Adult Social Care,4.95,DISCOUNT STORES,2022-23Q3_PC0304
Sandwell Metropolitan Borough Council,http://www.sandwell.gov.uk/info/200202/performance_and_spending/3233/government_procurement_cards,14-Oct-2022,Total ASCHWB,Amazon.co.uk KW3MJ1GW5,Total Adult Social Care,25.6,DIRECT MARKETING-OTHER DIRECT MARKETERS/NOT ELSEW.,2022-23Q3_PC0305
Sandwell Metropolitan Borough Council,http://www.sandwell.gov.uk/info/200202/performance_and_spending/3233/government_procurement_cards,14-Oct-2022,Total ASCHWB,Amazon.co.uk 1X8S43M45,Total Adult Social Care,4.99,DIRECT MARKETING-OTHER DIRECT MARKETERS/NOT ELSEW.,2022-23Q3_PC0306
Sandwell Metropolitan Borough Council,http://www.sandwell.gov.uk/info/200202/performance_and_spending/3233/government_procurement_cards,14-Oct-2022,FINANCE (Inc SIU),UKOFFICEDIRECT.CO.,Total Adult Social Care,51.08,"OFFICE, SCHOOL SUPPLY, AND STATIONERY STORES",2022-23Q3_PC0307
Sandwell Metropolitan Borough Council,http://www.sandwell.gov.uk/info/200202/performance_and_spending/3233/government_procurement_cards,14-Oct-2022,Total Borough Economy,WWW.NISBETS.COM,Total Adult Social Care,95.73,DIRECT MARKETING-CATALOG MERCHANTS,2022-23Q3_PC0308
Sandwell Metropolitan Borough Council,http://www.sandwell.gov.uk/info/200202/performance_and_spending/3233/government_procurement_cards,14-Oct-2022,Total Borough Economy,WWW.OFFICETEAMCONNECT.,Total Adult Social Care,235,STATIONERY/OFFICE SUPPLIES/PRINTING & WRITING PAP.,2022-23Q3_PC0309
Sandwell Metropolitan Borough Council,http://www.sandwell.gov.uk/info/200202/performance_and_spending/3233/government_procurement_cards,14-Oct-2022,Total Borough Economy,WWW.OFFICETEAMCONNECT.,Total Adult Social Care,285.73,STATIONERY/OFFICE SUPPLIES/PRINTING & WRITING PAP.,2022-23Q3_PC0310
Sandwell Metropolitan Borough Council,http://www.sandwell.gov.uk/info/200202/performance_and_spending/3233/government_procurement_cards,14-Oct-2022,Total Borough Economy,WWW.OFFICETEAMCONNECT.,Total Adult Social Care,239.8,STATIONERY/OFFICE SUPPLIES/PRINTING & WRITING PAP.,2022-23Q3_PC0311
Sandwell Metropolitan Borough Council,http://www.sandwell.gov.uk/info/200202/performance_and_spending/3233/government_procurement_cards,14-Oct-2022,Total Borough Economy,AMZNMKTPLACE AMAZON.CO,Total Adult Social Care,24.98,MISCELLANEOUS AND SPECIALTY RETAIL STORES,2022-23Q3_PC0312
Sandwell Metropolitan Borough Council,http://www.sandwell.gov.uk/info/200202/performance_and_spending/3233/government_procurement_cards,14-Oct-2022,Total Borough Economy,Trainline,Total Adult Social Care,105.4,PASSENGER RAILWAYS,2022-23Q3_PC0313
Sandwell Metropolitan Borough Council,http://www.sandwell.gov.uk/info/200202/performance_and_spending/3233/government_procurement_cards,14-Oct-2022,Total Borough Economy,Trainline,Total Adult Social Care,82.4,PASSENGER RAILWAYS,2022-23Q3_PC0314
Sandwell Metropolitan Borough Council,http://www.sandwell.gov.uk/info/200202/performance_and_spending/3233/government_procurement_cards,14-Oct-2022,Total Borough Economy,AMZNMKTPLACE AMAZON.CO,Total Adult Social Care,455.5,MISCELLANEOUS AND SPECIALTY RETAIL STORES,2022-23Q3_PC0315
Sandwell Metropolitan Borough Council,http://www.sandwell.gov.uk/info/200202/performance_and_spending/3233/government_procurement_cards,14-Oct-2022,Total Borough Economy,AMZNMKTPLACE AMAZON.CO,Total Adult Social Care,4.99,MISCELLANEOUS AND SPECIALTY RETAIL STORES,2022-23Q3_PC0316
Sandwell Metropolitan Borough Council,http://www.sandwell.gov.uk/info/200202/performance_and_spending/3233/government_procurement_cards,14-Oct-2022,Total Housing Revenue Account,WWW.SCREWFIX.COM,Total Housing Revenue Account,14.29,"BUILDING MATERIALS, LUMBER STORES",2022-23Q3_PC0317
Sandwell Metropolitan Borough Council,http://www.sandwell.gov.uk/info/200202/performance_and_spending/3233/government_procurement_cards,14-Oct-2022,Total Housing Revenue Account,AMZNMktplace,Total Housing Revenue Account,42.7,MISCELLANEOUS AND SPECIALTY RETAIL STORES,2022-23Q3_PC0318
Sandwell Metropolitan Borough Council,http://www.sandwell.gov.uk/info/200202/performance_and_spending/3233/government_procurement_cards,17-Oct-2022,Director of Law & Governance,Amazon Prime IB7YP1955,Assistant Chief Executive (Excl SIU),8.99,DIRECT MARKETING-CONTINUITY/SUBSCRIPTION MERCHANTS,2022-23Q3_PC0319
Sandwell Metropolitan Borough Council,http://www.sandwell.gov.uk/info/200202/performance_and_spending/3233/government_procurement_cards,17-Oct-2022,Childrens Services,AMZNMKTPLACE AMAZON.CO,Childrens Services,20.99,MISCELLANEOUS AND SPECIALTY RETAIL STORES,2022-23Q3_PC0320
Sandwell Metropolitan Borough Council,http://www.sandwell.gov.uk/info/200202/performance_and_spending/3233/government_procurement_cards,17-Oct-2022,Childrens Services,BEEBYS BUBBLES,Childrens Services,84,"CLEANING, GARMENT, AND LAUNDRY SERVICES",2022-23Q3_PC0321
Sandwell Metropolitan Borough Council,http://www.sandwell.gov.uk/info/200202/performance_and_spending/3233/government_procurement_cards,17-Oct-2022,Childrens Services,AMZNMktplace,Childrens Services,25.16,MISCELLANEOUS AND SPECIALTY RETAIL STORES,2022-23Q3_PC0322
Sandwell Metropolitan Borough Council,http://www.sandwell.gov.uk/info/200202/performance_and_spending/3233/government_procurement_cards,17-Oct-2022,Childrens Services,SP TURNING PAGES ST,Childrens Services,149,"BOOKS,PERIODICALS AND NEWSPAPERS",2022-23Q3_PC0323
Sandwell Metropolitan Borough Council,http://www.sandwell.gov.uk/info/200202/performance_and_spending/3233/government_procurement_cards,17-Oct-2022,Childrens Services,BIGDUG LIMITED,Childrens Services,316.98,HARDWARE EQUIPMENT AND SUPPLIES,2022-23Q3_PC0324
Sandwell Metropolitan Borough Council,http://www.sandwell.gov.uk/info/200202/performance_and_spending/3233/government_procurement_cards,17-Oct-2022,Childrens Services,WWW.NISBETS.COM,Childrens Services,15.6,DIRECT MARKETING-CATALOG MERCHANTS,2022-23Q3_PC0325
Sandwell Metropolitan Borough Council,http://www.sandwell.gov.uk/info/200202/performance_and_spending/3233/government_procurement_cards,17-Oct-2022,Childrens Services,SPOTIFY,Childrens Services,9.99,DIGITAL GOODS AUDIOVISUAL MEDIA,2022-23Q3_PC0326
Sandwell Metropolitan Borough Council,http://www.sandwell.gov.uk/info/200202/performance_and_spending/3233/government_procurement_cards,17-Oct-2022,Childrens Services,AMZNMktplace,Childrens Services,21.99,MISCELLANEOUS AND SPECIALTY RETAIL STORES,2022-23Q3_PC0327
Sandwell Metropolitan Borough Council,http://www.sandwell.gov.uk/info/200202/performance_and_spending/3233/government_procurement_cards,17-Oct-2022,Corporate Management,AMZNMKTPLACE AMAZON.CO,Corporate Management,41.98,MISCELLANEOUS AND SPECIALTY RETAIL STORES,2022-23Q3_PC0328
Sandwell Metropolitan Borough Council,http://www.sandwell.gov.uk/info/200202/performance_and_spending/3233/government_procurement_cards,17-Oct-2022,Housing & Assets Total,AMZNMktplace,Corporate Management,4.99,MISCELLANEOUS AND SPECIALTY RETAIL STORES,2022-23Q3_PC0329
Sandwell Metropolitan Borough Council,http://www.sandwell.gov.uk/info/200202/performance_and_spending/3233/government_procurement_cards,17-Oct-2022,Housing & Assets Total,AMZNMktplace,Corporate Management,93.07,MISCELLANEOUS AND SPECIALTY RETAIL STORES,2022-23Q3_PC0330
Sandwell Metropolitan Borough Council,http://www.sandwell.gov.uk/info/200202/performance_and_spending/3233/government_procurement_cards,17-Oct-2022,Individual School Budgets With Inclusion,Amazon.co.uk H57TE85W5,Individual School Budgets With Inclusion,31.5,DIRECT MARKETING-OTHER DIRECT MARKETERS/NOT ELSEW.,2022-23Q3_PC0331
Sandwell Metropolitan Borough Council,http://www.sandwell.gov.uk/info/200202/performance_and_spending/3233/government_procurement_cards,17-Oct-2022,Total Public Health,ECARDFOREST CARDS&GIFT,Public Health,3.5,DIGITAL GOODS AUDIOVISUAL MEDIA,2022-23Q3_PC0332
Sandwell Metropolitan Borough Council,http://www.sandwell.gov.uk/info/200202/performance_and_spending/3233/government_procurement_cards,17-Oct-2022,Total ASCHWB,B & Q 1357,Total Adult Social Care,12.68,HOME SUPPLY WAREHOUSE STORES,2022-23Q3_PC0333
Sandwell Metropolitan Borough Council,http://www.sandwell.gov.uk/info/200202/performance_and_spending/3233/government_procurement_cards,17-Oct-2022,Total ASCHWB,TOOLSTATION UK,Total Adult Social Care,48.22,HARDWARE STORES,2022-23Q3_PC0334
Sandwell Metropolitan Borough Council,http://www.sandwell.gov.uk/info/200202/performance_and_spending/3233/government_procurement_cards,17-Oct-2022,FINANCE (Inc SIU),AMZNMktplace,Total Adult Social Care,12.98,MISCELLANEOUS AND SPECIALTY RETAIL STORES,2022-23Q3_PC0335
Sandwell Metropolitan Borough Council,http://www.sandwell.gov.uk/info/200202/performance_and_spending/3233/government_procurement_cards,17-Oct-2022,Total ASCHWB,POSTURITE LTD,Total Adult Social Care,258.88,MISCELLANEOUS HOUSE FURNISHING SPECIALTY SHOPS,2022-23Q3_PC0336
Sandwell Metropolitan Borough Council,http://www.sandwell.gov.uk/info/200202/performance_and_spending/3233/government_procurement_cards,17-Oct-2022,Total ASCHWB,AMZNMktplace,Total Adult Social Care,25.99,MISCELLANEOUS AND SPECIALTY RETAIL STORES,2022-23Q3_PC0337
Sandwell Metropolitan Borough Council,http://www.sandwell.gov.uk/info/200202/performance_and_spending/3233/government_procurement_cards,17-Oct-2022,Total ASCHWB,WWW.OFFICETEAMCONNECT.,Total Adult Social Care,161.61,STATIONERY/OFFICE SUPPLIES/PRINTING & WRITING PAP.,2022-23Q3_PC0338
Sandwell Metropolitan Borough Council,http://www.sandwell.gov.uk/info/200202/performance_and_spending/3233/government_procurement_cards,17-Oct-2022,Total ASCHWB,AMZNMktplace,Total Adult Social Care,19.96,MISCELLANEOUS AND SPECIALTY RETAIL STORES,2022-23Q3_PC0339
Sandwell Metropolitan Borough Council,http://www.sandwell.gov.uk/info/200202/performance_and_spending/3233/government_procurement_cards,17-Oct-2022,Total ASCHWB,ARGOS LTD,Total Adult Social Care,-79,DISCOUNT STORES,2022-23Q3_PC0340
Sandwell Metropolitan Borough Council,http://www.sandwell.gov.uk/info/200202/performance_and_spending/3233/government_procurement_cards,17-Oct-2022,Total ASCHWB,AMZNMKTPLACE AMAZON.CO,Total Adult Social Care,48.99,MISCELLANEOUS AND SPECIALTY RETAIL STORES,2022-23Q3_PC0341
Sandwell Metropolitan Borough Council,http://www.sandwell.gov.uk/info/200202/performance_and_spending/3233/government_procurement_cards,17-Oct-2022,Total ASCHWB,Amazon Prime G66ST0P75,Total Adult Social Care,8.99,DIRECT MARKETING-CONTINUITY/SUBSCRIPTION MERCHANTS,2022-23Q3_PC0342
Sandwell Metropolitan Borough Council,http://www.sandwell.gov.uk/info/200202/performance_and_spending/3233/government_procurement_cards,17-Oct-2022,Total ASCHWB,Amazon.co.uk 5O4273ZX5,Total Adult Social Care,5.19,DIRECT MARKETING-OTHER DIRECT MARKETERS/NOT ELSEW.,2022-23Q3_PC0343
Sandwell Metropolitan Borough Council,http://www.sandwell.gov.uk/info/200202/performance_and_spending/3233/government_procurement_cards,17-Oct-2022,FINANCE (Inc SIU),WWW.OFFICETEAMCONNECT.,Total Adult Social Care,129.75,STATIONERY/OFFICE SUPPLIES/PRINTING & WRITING PAP.,2022-23Q3_PC0344
Sandwell Metropolitan Borough Council,http://www.sandwell.gov.uk/info/200202/performance_and_spending/3233/government_procurement_cards,17-Oct-2022,Total Borough Economy,GLOBAL WINES (BHAM) LT,Total Adult Social Care,21.27,"PACKAGE STORES, BEER, WINE, LIQUOR",2022-23Q3_PC0345
Sandwell Metropolitan Borough Council,http://www.sandwell.gov.uk/info/200202/performance_and_spending/3233/government_procurement_cards,17-Oct-2022,Total Borough Economy,BES LTD,Total Adult Social Care,8.98,PLUMBING AND HEATING EQUIPMENT,2022-23Q3_PC0346
Sandwell Metropolitan Borough Council,http://www.sandwell.gov.uk/info/200202/performance_and_spending/3233/government_procurement_cards,17-Oct-2022,Total Borough Economy,AMZNMktplace,Total Adult Social Care,14.97,MISCELLANEOUS AND SPECIALTY RETAIL STORES,2022-23Q3_PC0347
Sandwell Metropolitan Borough Council,http://www.sandwell.gov.uk/info/200202/performance_and_spending/3233/government_procurement_cards,17-Oct-2022,Total Borough Economy,AMZNMktplace,Total Adult Social Care,15.97,MISCELLANEOUS AND SPECIALTY RETAIL STORES,2022-23Q3_PC0348
Sandwell Metropolitan Borough Council,http://www.sandwell.gov.uk/info/200202/performance_and_spending/3233/government_procurement_cards,17-Oct-2022,Total Borough Economy,Wm Morrisons Store Pic,Total Adult Social Care,164.58,"GROCERY STORES, SUPERMARKETS",2022-23Q3_PC0349
Sandwell Metropolitan Borough Council,http://www.sandwell.gov.uk/info/200202/performance_and_spending/3233/government_procurement_cards,17-Oct-2022,Total Borough Economy,AMZNMKTPLACE AMAZON.CO,Total Adult Social Care,56.17,MISCELLANEOUS AND SPECIALTY RETAIL STORES,2022-23Q3_PC0350
Sandwell Metropolitan Borough Council,http://www.sandwell.gov.uk/info/200202/performance_and_spending/3233/government_procurement_cards,17-Oct-2022,Total Borough Economy,Trainline,Total Adult Social Care,46.5,PASSENGER RAILWAYS,2022-23Q3_PC0351
Sandwell Metropolitan Borough Council,http://www.sandwell.gov.uk/info/200202/performance_and_spending/3233/government_procurement_cards,17-Oct-2022,Total Borough Economy,AMZNMktplace,Total Adult Social Care,14.61,MISCELLANEOUS AND SPECIALTY RETAIL STORES,2022-23Q3_PC0352
Sandwell Metropolitan Borough Council,http://www.sandwell.gov.uk/info/200202/performance_and_spending/3233/government_procurement_cards,17-Oct-2022,Total Borough Economy,SPAR GREAT WYRLEY,Total Adult Social Care,4.28,"GROCERY STORES, SUPERMARKETS",2022-23Q3_PC0353
Sandwell Metropolitan Borough Council,http://www.sandwell.gov.uk/info/200202/performance_and_spending/3233/government_procurement_cards,17-Oct-2022,Total Borough Economy,AMZ GOCROWEEN,Total Adult Social Care,-6,MISCELLANEOUS AND SPECIALTY RETAIL STORES,2022-23Q3_PC0354
Sandwell Metropolitan Borough Council,http://www.sandwell.gov.uk/info/200202/performance_and_spending/3233/government_procurement_cards,17-Oct-2022,Total Housing Revenue Account,WWW.OFFICETEAMCONNECT.,Total Housing Revenue Account,116.18,STATIONERY/OFFICE SUPPLIES/PRINTING & WRITING PAP.,2022-23Q3_PC0355
Sandwell Metropolitan Borough Council,http://www.sandwell.gov.uk/info/200202/performance_and_spending/3233/government_procurement_cards,18-Oct-2022,Childrens Services,AMZNMktplace,Childrens Services,28.99,MISCELLANEOUS AND SPECIALTY RETAIL STORES,2022-23Q3_PC0356
Sandwell Metropolitan Borough Council,http://www.sandwell.gov.uk/info/200202/performance_and_spending/3233/government_procurement_cards,18-Oct-2022,Childrens Services,SPACEHOPPAS PLAYZONE,Childrens Services,128.8,"GAME, TOY, AND HOBBY SHOPS",2022-23Q3_PC0357
Sandwell Metropolitan Borough Council,http://www.sandwell.gov.uk/info/200202/performance_and_spending/3233/government_procurement_cards,18-Oct-2022,Childrens Services,ASDA GROCERIES ONLINE,Childrens Services,-5.3,"GROCERY STORES, SUPERMARKETS",2022-23Q3_PC0358
Sandwell Metropolitan Borough Council,http://www.sandwell.gov.uk/info/200202/performance_and_spending/3233/government_procurement_cards,18-Oct-2022,Childrens Services,ASDA GROCERIES ONLINE,Childrens Services,-7.84,"GROCERY STORES, SUPERMARKETS",2022-23Q3_PC0359
Sandwell Metropolitan Borough Council,http://www.sandwell.gov.uk/info/200202/performance_and_spending/3233/government_procurement_cards,18-Oct-2022,Childrens Services,ASDA GROCERIES ONLINE,Childrens Services,126.29,"GROCERY STORES, SUPERMARKETS",2022-23Q3_PC0360
Sandwell Metropolitan Borough Council,http://www.sandwell.gov.uk/info/200202/performance_and_spending/3233/government_procurement_cards,18-Oct-2022,Childrens Services,ASDA GROCERIES ONLINE,Childrens Services,74.78,"GROCERY STORES, SUPERMARKETS",2022-23Q3_PC0361
Sandwell Metropolitan Borough Council,http://www.sandwell.gov.uk/info/200202/performance_and_spending/3233/government_procurement_cards,18-Oct-2022,Childrens Services,WWW.WMCA.ORG.UK,Childrens Services,20,"TRANSPRTN-SUBRBN & LOCAL COMTR PSNGR, INCL FERRIES",2022-23Q3_PC0362
Sandwell Metropolitan Borough Council,http://www.sandwell.gov.uk/info/200202/performance_and_spending/3233/government_procurement_cards,18-Oct-2022,Childrens Services,WWW.WMCA.ORG.UK,Childrens Services,20,"TRANSPRTN-SUBRBN & LOCAL COMTR PSNGR, INCL FERRIES",2022-23Q3_PC0363
Sandwell Metropolitan Borough Council,http://www.sandwell.gov.uk/info/200202/performance_and_spending/3233/government_procurement_cards,18-Oct-2022,Childrens Services,WWW.WMCA.ORG.UK,Childrens Services,20,"TRANSPRTN-SUBRBN & LOCAL COMTR PSNGR, INCL FERRIES",2022-23Q3_PC0364
Sandwell Metropolitan Borough Council,http://www.sandwell.gov.uk/info/200202/performance_and_spending/3233/government_procurement_cards,18-Oct-2022,Corporate Management,AMZNMKTPLACE AMAZON.CO,Corporate Management,41.98,MISCELLANEOUS AND SPECIALTY RETAIL STORES,2022-23Q3_PC0365
Sandwell Metropolitan Borough Council,http://www.sandwell.gov.uk/info/200202/performance_and_spending/3233/government_procurement_cards,18-Oct-2022,Corporate Management,AMZNMKTPLACE AMAZON.CO,Corporate Management,37.02,MISCELLANEOUS AND SPECIALTY RETAIL STORES,2022-23Q3_PC0366
Sandwell Metropolitan Borough Council,http://www.sandwell.gov.uk/info/200202/performance_and_spending/3233/government_procurement_cards,18-Oct-2022,Housing & Assets Total,AMZNMKTPLACE AMAZON.CO,Corporate Management,118.99,MISCELLANEOUS AND SPECIALTY RETAIL STORES,2022-23Q3_PC0367
Sandwell Metropolitan Borough Council,http://www.sandwell.gov.uk/info/200202/performance_and_spending/3233/government_procurement_cards,18-Oct-2022,Housing & Assets Total,ASDA STORES,Corporate Management,18.29,"GROCERY STORES, SUPERMARKETS",2022-23Q3_PC0368
Sandwell Metropolitan Borough Council,http://www.sandwell.gov.uk/info/200202/performance_and_spending/3233/government_procurement_cards,18-Oct-2022,Housing & Assets Total,ASDA STORES,Corporate Management,5.74,"GROCERY STORES, SUPERMARKETS",2022-23Q3_PC0369
Sandwell Metropolitan Borough Council,http://www.sandwell.gov.uk/info/200202/performance_and_spending/3233/government_procurement_cards,18-Oct-2022,Housing & Assets Total,ASDA STORES,Corporate Management,19.29,"GROCERY STORES, SUPERMARKETS",2022-23Q3_PC0370
Sandwell Metropolitan Borough Council,http://www.sandwell.gov.uk/info/200202/performance_and_spending/3233/government_procurement_cards,18-Oct-2022,Individual School Budgets With Inclusion,ASDA STORES 4274,Individual School Budgets With Inclusion,36.69,"GROCERY STORES, SUPERMARKETS",2022-23Q3_PC0371
Sandwell Metropolitan Borough Council,http://www.sandwell.gov.uk/info/200202/performance_and_spending/3233/government_procurement_cards,18-Oct-2022,Individual School Budgets With Inclusion,SAINSBURYS S/MKTS,Individual School Budgets With Inclusion,12.45,"GROCERY STORES, SUPERMARKETS",2022-23Q3_PC0372
Sandwell Metropolitan Borough Council,http://www.sandwell.gov.uk/info/200202/performance_and_spending/3233/government_procurement_cards,18-Oct-2022,Total Public Health,MCDONALDS,Public Health,29.33,FAST FOOD RESTAURANTS,2022-23Q3_PC0373
Sandwell Metropolitan Borough Council,http://www.sandwell.gov.uk/info/200202/performance_and_spending/3233/government_procurement_cards,18-Oct-2022,Total Public Health,MCDONALDS,Public Health,3.99,FAST FOOD RESTAURANTS,2022-23Q3_PC0374
Sandwell Metropolitan Borough Council,http://www.sandwell.gov.uk/info/200202/performance_and_spending/3233/government_procurement_cards,18-Oct-2022,Regeneration & Growth,AMZNMktplace,Regeneration And The Economy,119.98,MISCELLANEOUS AND SPECIALTY RETAIL STORES,2022-23Q3_PC0375
Sandwell Metropolitan Borough Council,http://www.sandwell.gov.uk/info/200202/performance_and_spending/3233/government_procurement_cards,18-Oct-2022,Regeneration & Growth,AMZNMKTPLACE AMAZON.CO,Regeneration And The Economy,9.99,MISCELLANEOUS AND SPECIALTY RETAIL STORES,2022-23Q3_PC0376
Sandwell Metropolitan Borough Council,http://www.sandwell.gov.uk/info/200202/performance_and_spending/3233/government_procurement_cards,18-Oct-2022,Total ASCHWB,POSTURITE LTD,Total Adult Social Care,823.2,MISCELLANEOUS HOUSE FURNISHING SPECIALTY SHOPS,2022-23Q3_PC0377
Sandwell Metropolitan Borough Council,http://www.sandwell.gov.uk/info/200202/performance_and_spending/3233/government_procurement_cards,18-Oct-2022,Total ASCHWB,POWTOON LTD,Total Adult Social Care,796.26,DIGITAL GOODS SOFTWARE APPLICATIONS,2022-23Q3_PC0378
Sandwell Metropolitan Borough Council,http://www.sandwell.gov.uk/info/200202/performance_and_spending/3233/government_procurement_cards,18-Oct-2022,Total ASCHWB,SMARTY CO UK,Total Adult Social Care,20,TELECOM INCL PREPAID/RECURRING PHONE SVCS,2022-23Q3_PC0379
Sandwell Metropolitan Borough Council,http://www.sandwell.gov.uk/info/200202/performance_and_spending/3233/government_procurement_cards,18-Oct-2022,Total ASCHWB,AMZNMKTPLACE AMAZON.CO,Total Adult Social Care,23.99,MISCELLANEOUS AND SPECIALTY RETAIL STORES,2022-23Q3_PC0380
Sandwell Metropolitan Borough Council,http://www.sandwell.gov.uk/info/200202/performance_and_spending/3233/government_procurement_cards,18-Oct-2022,Total Borough Economy,AMZNMKTPLACE AMAZON.CO,Total Adult Social Care,10.49,MISCELLANEOUS AND SPECIALTY RETAIL STORES,2022-23Q3_PC0381
Sandwell Metropolitan Borough Council,http://www.sandwell.gov.uk/info/200202/performance_and_spending/3233/government_procurement_cards,18-Oct-2022,Total Borough Economy,Amazon.co.uk AZ5PT4AE5,Total Adult Social Care,10.98,DIRECT MARKETING-OTHER DIRECT MARKETERS/NOT ELSEW.,2022-23Q3_PC0382
Sandwell Metropolitan Borough Council,http://www.sandwell.gov.uk/info/200202/performance_and_spending/3233/government_procurement_cards,18-Oct-2022,Total Borough Economy,AMZNMktplace,Total Adult Social Care,472.42,MISCELLANEOUS AND SPECIALTY RETAIL STORES,2022-23Q3_PC0383
Sandwell Metropolitan Borough Council,http://www.sandwell.gov.uk/info/200202/performance_and_spending/3233/government_procurement_cards,18-Oct-2022,Total Borough Economy,AMZNMKTPLACE AMAZON.CO,Total Adult Social Care,32.28,MISCELLANEOUS AND SPECIALTY RETAIL STORES,2022-23Q3_PC0384
Sandwell Metropolitan Borough Council,http://www.sandwell.gov.uk/info/200202/performance_and_spending/3233/government_procurement_cards,18-Oct-2022,Total Borough Economy,Amazon.co.uk AH2VC6P45,Total Adult Social Care,14.99,DIRECT MARKETING-OTHER DIRECT MARKETERS/NOT ELSEW.,2022-23Q3_PC0385
Sandwell Metropolitan Borough Council,http://www.sandwell.gov.uk/info/200202/performance_and_spending/3233/government_procurement_cards,18-Oct-2022,Total Borough Economy,AMZNMKTPLACE AMAZON.CO,Total Adult Social Care,24.99,MISCELLANEOUS AND SPECIALTY RETAIL STORES,2022-23Q3_PC0386
Sandwell Metropolitan Borough Council,http://www.sandwell.gov.uk/info/200202/performance_and_spending/3233/government_procurement_cards,18-Oct-2022,Total Borough Economy,WWW.NISBETS.COM,Total Adult Social Care,106.75,DIRECT MARKETING-CATALOG MERCHANTS,2022-23Q3_PC0387
Sandwell Metropolitan Borough Council,http://www.sandwell.gov.uk/info/200202/performance_and_spending/3233/government_procurement_cards,18-Oct-2022,Total Borough Economy,AMZNMktplace,Total Adult Social Care,127.49,MISCELLANEOUS AND SPECIALTY RETAIL STORES,2022-23Q3_PC0388
Sandwell Metropolitan Borough Council,http://www.sandwell.gov.uk/info/200202/performance_and_spending/3233/government_procurement_cards,18-Oct-2022,Total Borough Economy,Trainline,Total Adult Social Care,68.8,PASSENGER RAILWAYS,2022-23Q3_PC0389
Sandwell Metropolitan Borough Council,http://www.sandwell.gov.uk/info/200202/performance_and_spending/3233/government_procurement_cards,18-Oct-2022,Total Borough Economy,WM MORRISONS STORE,Total Adult Social Care,43.78,"GROCERY STORES, SUPERMARKETS",2022-23Q3_PC0390
Sandwell Metropolitan Borough Council,http://www.sandwell.gov.uk/info/200202/performance_and_spending/3233/government_procurement_cards,18-Oct-2022,Total Borough Economy,WM MORRISONS STORE,Total Adult Social Care,23.88,"GROCERY STORES, SUPERMARKETS",2022-23Q3_PC0391
Sandwell Metropolitan Borough Council,http://www.sandwell.gov.uk/info/200202/performance_and_spending/3233/government_procurement_cards,18-Oct-2022,Total Borough Economy,WM MORRISONS STORE,Total Adult Social Care,9.95,"GROCERY STORES, SUPERMARKETS",2022-23Q3_PC0392
Sandwell Metropolitan Borough Council,http://www.sandwell.gov.uk/info/200202/performance_and_spending/3233/government_procurement_cards,18-Oct-2022,Total Borough Economy,WM MORRISONS STORE,Total Adult Social Care,23.88,"GROCERY STORES, SUPERMARKETS",2022-23Q3_PC0393
Sandwell Metropolitan Borough Council,http://www.sandwell.gov.uk/info/200202/performance_and_spending/3233/government_procurement_cards,18-Oct-2022,Total Borough Economy,WM MORRISONS STORE,Total Adult Social Care,9.95,"GROCERY STORES, SUPERMARKETS",2022-23Q3_PC0394
Sandwell Metropolitan Borough Council,http://www.sandwell.gov.uk/info/200202/performance_and_spending/3233/government_procurement_cards,18-Oct-2022,Total Housing Revenue Account,DOORFIT,Total Housing Revenue Account,80.46,HOME SUPPLY WAREHOUSE STORES,2022-23Q3_PC0395
Sandwell Metropolitan Borough Council,http://www.sandwell.gov.uk/info/200202/performance_and_spending/3233/government_procurement_cards,19-Oct-2022,Director of Law & Governance,AMZNMKTPLACE AMAZON.CO,Assistant Chief Executive (Excl SIU),79.98,MISCELLANEOUS AND SPECIALTY RETAIL STORES,2022-23Q3_PC0396
Sandwell Metropolitan Borough Council,http://www.sandwell.gov.uk/info/200202/performance_and_spending/3233/government_procurement_cards,19-Oct-2022,Director of Law & Governance,WWW.,Assistant Chief Executive (Excl SIU),34.34,INDUSTRIAL SUPPLIES NOT ELSEWHERE CLASSIFIED,2022-23Q3_PC0397
Sandwell Metropolitan Borough Council,http://www.sandwell.gov.uk/info/200202/performance_and_spending/3233/government_procurement_cards,19-Oct-2022,Childrens Services,AMZNMktplace,Childrens Services,54.99,MISCELLANEOUS AND SPECIALTY RETAIL STORES,2022-23Q3_PC0398
Sandwell Metropolitan Borough Council,http://www.sandwell.gov.uk/info/200202/performance_and_spending/3233/government_procurement_cards,19-Oct-2022,Childrens Services,WWW.SCREWFIX.COM,Childrens Services,40.49,"BUILDING MATERIALS, LUMBER STORES",2022-23Q3_PC0399
Sandwell Metropolitan Borough Council,http://www.sandwell.gov.uk/info/200202/performance_and_spending/3233/government_procurement_cards,19-Oct-2022,Childrens Services,BES LTD,Childrens Services,120.74,PLUMBING AND HEATING EQUIPMENT,2022-23Q3_PC0400
Sandwell Metropolitan Borough Council,http://www.sandwell.gov.uk/info/200202/performance_and_spending/3233/government_procurement_cards,19-Oct-2022,Childrens Services,BEEBYS BUBBLES,Childrens Services,84,"CLEANING, GARMENT, AND LAUNDRY SERVICES",2022-23Q3_PC0401
Sandwell Metropolitan Borough Council,http://www.sandwell.gov.uk/info/200202/performance_and_spending/3233/government_procurement_cards,19-Oct-2022,Childrens Services,Amazon.co.uk Z156659T5,Childrens Services,59.98,DIRECT MARKETING-OTHER DIRECT MARKETERS/NOT ELSEW.,2022-23Q3_PC0402
Sandwell Metropolitan Borough Council,http://www.sandwell.gov.uk/info/200202/performance_and_spending/3233/government_procurement_cards,19-Oct-2022,Individual School Budgets With Inclusion,ASDA GROCERIES ONLINE,Individual School Budgets With Inclusion,23.62,"GROCERY STORES, SUPERMARKETS",2022-23Q3_PC0403
Sandwell Metropolitan Borough Council,http://www.sandwell.gov.uk/info/200202/performance_and_spending/3233/government_procurement_cards,19-Oct-2022,Total ASCHWB,Amazon.co.uk NC1SA1O85,Total Adult Social Care,8.18,DIRECT MARKETING-OTHER DIRECT MARKETERS/NOT ELSEW.,2022-23Q3_PC0404
Sandwell Metropolitan Borough Council,http://www.sandwell.gov.uk/info/200202/performance_and_spending/3233/government_procurement_cards,19-Oct-2022,Total Borough Economy,AMZNMktplace,Total Adult Social Care,22.54,MISCELLANEOUS AND SPECIALTY RETAIL STORES,2022-23Q3_PC0405
Sandwell Metropolitan Borough Council,http://www.sandwell.gov.uk/info/200202/performance_and_spending/3233/government_procurement_cards,19-Oct-2022,Total Borough Economy,AMZNMKTPLACE AMAZON.CO,Total Adult Social Care,20.67,MISCELLANEOUS AND SPECIALTY RETAIL STORES,2022-23Q3_PC0406
Sandwell Metropolitan Borough Council,http://www.sandwell.gov.uk/info/200202/performance_and_spending/3233/government_procurement_cards,19-Oct-2022,Total Borough Economy,AMZNMktplace,Total Adult Social Care,47.67,MISCELLANEOUS AND SPECIALTY RETAIL STORES,2022-23Q3_PC0407
Sandwell Metropolitan Borough Council,http://www.sandwell.gov.uk/info/200202/performance_and_spending/3233/government_procurement_cards,19-Oct-2022,Total Borough Economy,AMZNMktplace,Total Adult Social Care,37.95,MISCELLANEOUS AND SPECIALTY RETAIL STORES,2022-23Q3_PC0408
Sandwell Metropolitan Borough Council,http://www.sandwell.gov.uk/info/200202/performance_and_spending/3233/government_procurement_cards,20-Oct-2022,Total Business Strategy & Change,POST OFFICE COUNTER,Assistant Chief Executive (Excl SIU),25,POSTAL SERVICES-GOVERNMENT ONLY,2022-23Q3_PC0409
Sandwell Metropolitan Borough Council,http://www.sandwell.gov.uk/info/200202/performance_and_spending/3233/government_procurement_cards,20-Oct-2022,Total Business Strategy & Change,POST OFFICE COUNTER,Assistant Chief Executive (Excl SIU),2.35,POSTAL SERVICES-GOVERNMENT ONLY,2022-23Q3_PC0410
Sandwell Metropolitan Borough Council,http://www.sandwell.gov.uk/info/200202/performance_and_spending/3233/government_procurement_cards,20-Oct-2022,Director of Law & Governance,AMZNMktplace,Assistant Chief Executive (Excl SIU),40.96,MISCELLANEOUS AND SPECIALTY RETAIL STORES,2022-23Q3_PC0411
Sandwell Metropolitan Borough Council,http://www.sandwell.gov.uk/info/200202/performance_and_spending/3233/government_procurement_cards,20-Oct-2022,Director of Law & Governance,WWW.OFFICETEAMCONNECT.,Assistant Chief Executive (Excl SIU),311.29,STATIONERY/OFFICE SUPPLIES/PRINTING & WRITING PAP.,2022-23Q3_PC0412
Sandwell Metropolitan Borough Council,http://www.sandwell.gov.uk/info/200202/performance_and_spending/3233/government_procurement_cards,20-Oct-2022,Director of Law & Governance,SAINSBURYS S/MKTS,Assistant Chief Executive (Excl SIU),10.8,"GROCERY STORES, SUPERMARKETS",2022-23Q3_PC0413
Sandwell Metropolitan Borough Council,http://www.sandwell.gov.uk/info/200202/performance_and_spending/3233/government_procurement_cards,20-Oct-2022,FINANCE (Inc SIU),ROYAL MAIL GROUP LTD,Assistant Chief Executive (Excl SIU),6.95,POSTAL SERVICES-GOVERNMENT ONLY,2022-23Q3_PC0414
Sandwell Metropolitan Borough Council,http://www.sandwell.gov.uk/info/200202/performance_and_spending/3233/government_procurement_cards,20-Oct-2022,Childrens Services,Amazon.co.uk 8I6WZ3NU5,Childrens Services,15.37,DIRECT MARKETING-OTHER DIRECT MARKETERS/NOT ELSEW.,2022-23Q3_PC0415
Sandwell Metropolitan Borough Council,http://www.sandwell.gov.uk/info/200202/performance_and_spending/3233/government_procurement_cards,20-Oct-2022,Childrens Services,TESCO STORES 2770,Childrens Services,149.59,"GROCERY STORES, SUPERMARKETS",2022-23Q3_PC0416
Sandwell Metropolitan Borough Council,http://www.sandwell.gov.uk/info/200202/performance_and_spending/3233/government_procurement_cards,20-Oct-2022,Childrens Services,YORKSHIRE PURCHASING O,Childrens Services,84.36,STATIONERY/OFFICE SUPPLIES/PRINTING & WRITING PAP.,2022-23Q3_PC0417
Sandwell Metropolitan Borough Council,http://www.sandwell.gov.uk/info/200202/performance_and_spending/3233/government_procurement_cards,20-Oct-2022,Childrens Services,WWW.NISBETS.COM,Childrens Services,46.78,DIRECT MARKETING-CATALOG MERCHANTS,2022-23Q3_PC0418
Sandwell Metropolitan Borough Council,http://www.sandwell.gov.uk/info/200202/performance_and_spending/3233/government_procurement_cards,20-Oct-2022,Childrens Services,Trainline.COM,Childrens Services,51.76,PASSENGER RAILWAYS,2022-23Q3_PC0419
Sandwell Metropolitan Borough Council,http://www.sandwell.gov.uk/info/200202/performance_and_spending/3233/government_procurement_cards,20-Oct-2022,Housing & Assets Total,Amazon Prime AE4HJ8SX5,Corporate Management,8.99,DIRECT MARKETING-CONTINUITY/SUBSCRIPTION MERCHANTS,2022-23Q3_PC0420
Sandwell Metropolitan Borough Council,http://www.sandwell.gov.uk/info/200202/performance_and_spending/3233/government_procurement_cards,20-Oct-2022,Total Public Health,SAINSBURYS S/MKTS,Public Health,4.5,"GROCERY STORES, SUPERMARKETS",2022-23Q3_PC0421
Sandwell Metropolitan Borough Council,http://www.sandwell.gov.uk/info/200202/performance_and_spending/3233/government_procurement_cards,20-Oct-2022,Regeneration & Growth,AMZNMktplace,Regeneration And The Economy,38.61,MISCELLANEOUS AND SPECIALTY RETAIL STORES,2022-23Q3_PC0422
Sandwell Metropolitan Borough Council,http://www.sandwell.gov.uk/info/200202/performance_and_spending/3233/government_procurement_cards,20-Oct-2022,Regeneration & Growth,CONSTRUCTIONCERT,Regeneration And The Economy,168,SCHOOLS & EDUCATIONAL SVC-NOT ELSEWHERE CLASSIFIED,2022-23Q3_PC0423
Sandwell Metropolitan Borough Council,http://www.sandwell.gov.uk/info/200202/performance_and_spending/3233/government_procurement_cards,20-Oct-2022,Total Borough Economy,WWW.THERANGE.CO.UK,Total Adult Social Care,409.94,MISCELLANEOUS HOUSE FURNISHING SPECIALTY SHOPS,2022-23Q3_PC0424
Sandwell Metropolitan Borough Council,http://www.sandwell.gov.uk/info/200202/performance_and_spending/3233/government_procurement_cards,20-Oct-2022,Total Borough Economy,AMZNMktplace,Total Adult Social Care,62.47,MISCELLANEOUS AND SPECIALTY RETAIL STORES,2022-23Q3_PC0425
Sandwell Metropolitan Borough Council,http://www.sandwell.gov.uk/info/200202/performance_and_spending/3233/government_procurement_cards,20-Oct-2022,Total Borough Economy,AMZNMktplace,Total Adult Social Care,15.21,MISCELLANEOUS AND SPECIALTY RETAIL STORES,2022-23Q3_PC0426
Sandwell Metropolitan Borough Council,http://www.sandwell.gov.uk/info/200202/performance_and_spending/3233/government_procurement_cards,20-Oct-2022,Total Borough Economy,WWW.THERANGE.CO.UK,Total Adult Social Care,419.94,MISCELLANEOUS HOUSE FURNISHING SPECIALTY SHOPS,2022-23Q3_PC0427
Sandwell Metropolitan Borough Council,http://www.sandwell.gov.uk/info/200202/performance_and_spending/3233/government_procurement_cards,20-Oct-2022,Total Borough Economy,WWW.SAMDWELL.GOV.UK,Total Adult Social Care,21,GOVERNMENT SERVICES-NOT ELSEWHERE CLASSIFIED,2022-23Q3_PC0428
Sandwell Metropolitan Borough Council,http://www.sandwell.gov.uk/info/200202/performance_and_spending/3233/government_procurement_cards,20-Oct-2022,Total Borough Economy,PROFESSIONAL PLAN,Total Adult Social Care,4.9,COMPUTER SOFTWARE STORES,2022-23Q3_PC0429
Sandwell Metropolitan Borough Council,http://www.sandwell.gov.uk/info/200202/performance_and_spending/3233/government_procurement_cards,20-Oct-2022,Total Borough Economy,WILKO RETAIL LIMITED,Total Adult Social Care,16,MISCELLANEOUS GENERAL MERCHANDISE,2022-23Q3_PC0430
Sandwell Metropolitan Borough Council,http://www.sandwell.gov.uk/info/200202/performance_and_spending/3233/government_procurement_cards,20-Oct-2022,Total Borough Economy,AMZNMktplace,Total Adult Social Care,355.01,MISCELLANEOUS AND SPECIALTY RETAIL STORES,2022-23Q3_PC0431
Sandwell Metropolitan Borough Council,http://www.sandwell.gov.uk/info/200202/performance_and_spending/3233/government_procurement_cards,20-Oct-2022,Total Borough Economy,CARTRIDGEPEOPLE.COM,Total Adult Social Care,86.9,STATIONERY/OFFICE SUPPLIES/PRINTING & WRITING PAP.,2022-23Q3_PC0432
Sandwell Metropolitan Borough Council,http://www.sandwell.gov.uk/info/200202/performance_and_spending/3233/government_procurement_cards,21-Oct-2022,Childrens Services,AMZNMKTPLACE AMAZON.CO,Childrens Services,16.95,MISCELLANEOUS AND SPECIALTY RETAIL STORES,2022-23Q3_PC0433
Sandwell Metropolitan Borough Council,http://www.sandwell.gov.uk/info/200202/performance_and_spending/3233/government_procurement_cards,21-Oct-2022,Childrens Services,AMZNMktplace,Childrens Services,28.01,MISCELLANEOUS AND SPECIALTY RETAIL STORES,2022-23Q3_PC0434
Sandwell Metropolitan Borough Council,http://www.sandwell.gov.uk/info/200202/performance_and_spending/3233/government_procurement_cards,21-Oct-2022,Childrens Services,AMZNMktplace,Childrens Services,68.39,MISCELLANEOUS AND SPECIALTY RETAIL STORES,2022-23Q3_PC0435
Sandwell Metropolitan Borough Council,http://www.sandwell.gov.uk/info/200202/performance_and_spending/3233/government_procurement_cards,21-Oct-2022,Childrens Services,AMZNMktplace,Childrens Services,75.96,MISCELLANEOUS AND SPECIALTY RETAIL STORES,2022-23Q3_PC0436
Sandwell Metropolitan Borough Council,http://www.sandwell.gov.uk/info/200202/performance_and_spending/3233/government_procurement_cards,21-Oct-2022,Childrens Services,AMZNMKTPLACE AMAZON.CO,Childrens Services,13.99,MISCELLANEOUS AND SPECIALTY RETAIL STORES,2022-23Q3_PC0437
Sandwell Metropolitan Borough Council,http://www.sandwell.gov.uk/info/200202/performance_and_spending/3233/government_procurement_cards,21-Oct-2022,Childrens Services,AMZNMktplace,Childrens Services,12.24,MISCELLANEOUS AND SPECIALTY RETAIL STORES,2022-23Q3_PC0438
Sandwell Metropolitan Borough Council,http://www.sandwell.gov.uk/info/200202/performance_and_spending/3233/government_procurement_cards,21-Oct-2022,Childrens Services,AMZNMktplace,Childrens Services,111.79,MISCELLANEOUS AND SPECIALTY RETAIL STORES,2022-23Q3_PC0439
Sandwell Metropolitan Borough Council,http://www.sandwell.gov.uk/info/200202/performance_and_spending/3233/government_procurement_cards,21-Oct-2022,Childrens Services,WILKO.COM,Childrens Services,174.3,MISCELLANEOUS GENERAL MERCHANDISE,2022-23Q3_PC0440
Sandwell Metropolitan Borough Council,http://www.sandwell.gov.uk/info/200202/performance_and_spending/3233/government_procurement_cards,21-Oct-2022,Childrens Services,Hermes Parcelnet Ltd T,Childrens Services,37.64,"FREIGHT CARRIER,TRUCKING-LCL/LNG DIST, MVG/STORAGE",2022-23Q3_PC0441
Sandwell Metropolitan Borough Council,http://www.sandwell.gov.uk/info/200202/performance_and_spending/3233/government_procurement_cards,21-Oct-2022,Childrens Services,WICKES TELFORD,Childrens Services,109.99,"BUILDING MATERIALS, LUMBER STORES",2022-23Q3_PC0442
Sandwell Metropolitan Borough Council,http://www.sandwell.gov.uk/info/200202/performance_and_spending/3233/government_procurement_cards,21-Oct-2022,Childrens Services,ASDA SUPERSTORE,Childrens Services,23.31,"GROCERY STORES, SUPERMARKETS",2022-23Q3_PC0443
Sandwell Metropolitan Borough Council,http://www.sandwell.gov.uk/info/200202/performance_and_spending/3233/government_procurement_cards,21-Oct-2022,Childrens Services,AMZNMKTPLACE AMAZON.CO,Childrens Services,12.9,MISCELLANEOUS AND SPECIALTY RETAIL STORES,2022-23Q3_PC0444
Sandwell Metropolitan Borough Council,http://www.sandwell.gov.uk/info/200202/performance_and_spending/3233/government_procurement_cards,21-Oct-2022,Childrens Services,TESCO STORES 6638,Childrens Services,11.1,"GROCERY STORES, SUPERMARKETS",2022-23Q3_PC0445
Sandwell Metropolitan Borough Council,http://www.sandwell.gov.uk/info/200202/performance_and_spending/3233/government_procurement_cards,21-Oct-2022,Childrens Services,ASDA GROCERIES ONLINE,Childrens Services,54.58,"GROCERY STORES, SUPERMARKETS",2022-23Q3_PC0446
Sandwell Metropolitan Borough Council,http://www.sandwell.gov.uk/info/200202/performance_and_spending/3233/government_procurement_cards,21-Oct-2022,Childrens Services,WWW.NISBETS.COM,Childrens Services,233.94,DIRECT MARKETING-CATALOG MERCHANTS,2022-23Q3_PC0447
Sandwell Metropolitan Borough Council,http://www.sandwell.gov.uk/info/200202/performance_and_spending/3233/government_procurement_cards,21-Oct-2022,Housing & Assets Total,Amazon.co.uk MR0XN05T5,Corporate Management,32.35,DIRECT MARKETING-OTHER DIRECT MARKETERS/NOT ELSEW.,2022-23Q3_PC0448
Sandwell Metropolitan Borough Council,http://www.sandwell.gov.uk/info/200202/performance_and_spending/3233/government_procurement_cards,21-Oct-2022,Housing & Assets Total,ASDA STORES,Corporate Management,22.8,"GROCERY STORES, SUPERMARKETS",2022-23Q3_PC0449
Sandwell Metropolitan Borough Council,http://www.sandwell.gov.uk/info/200202/performance_and_spending/3233/government_procurement_cards,21-Oct-2022,Individual School Budgets With Inclusion,ARGOS LTD,Individual School Budgets With Inclusion,14,DISCOUNT STORES,2022-23Q3_PC0450
Sandwell Metropolitan Borough Council,http://www.sandwell.gov.uk/info/200202/performance_and_spending/3233/government_procurement_cards,21-Oct-2022,Individual School Budgets With Inclusion,GRAMMARSAURUS,Individual School Budgets With Inclusion,39.99,SCHOOLS & EDUCATIONAL SVC-NOT ELSEWHERE CLASSIFIED,2022-23Q3_PC0451
Sandwell Metropolitan Borough Council,http://www.sandwell.gov.uk/info/200202/performance_and_spending/3233/government_procurement_cards,21-Oct-2022,Individual School Budgets With Inclusion,ASDA GROCERIES ONLINE,Individual School Budgets With Inclusion,-2.18,"GROCERY STORES, SUPERMARKETS",2022-23Q3_PC0452
Sandwell Metropolitan Borough Council,http://www.sandwell.gov.uk/info/200202/performance_and_spending/3233/government_procurement_cards,21-Oct-2022,Individual School Budgets With Inclusion,ASDA GROCERIES ONLINE,Individual School Budgets With Inclusion,53.53,"GROCERY STORES, SUPERMARKETS",2022-23Q3_PC0453
Sandwell Metropolitan Borough Council,http://www.sandwell.gov.uk/info/200202/performance_and_spending/3233/government_procurement_cards,21-Oct-2022,Total Public Health,Domino s Pizza,Public Health,87.46,"EATING PLACES, RESTAURANTS",2022-23Q3_PC0454
Sandwell Metropolitan Borough Council,http://www.sandwell.gov.uk/info/200202/performance_and_spending/3233/government_procurement_cards,21-Oct-2022,Regeneration & Growth,CONSTRUCTIONCERT,Regeneration And The Economy,-158,SCHOOLS & EDUCATIONAL SVC-NOT ELSEWHERE CLASSIFIED,2022-23Q3_PC0455
Sandwell Metropolitan Borough Council,http://www.sandwell.gov.uk/info/200202/performance_and_spending/3233/government_procurement_cards,21-Oct-2022,Total ASCHWB,SPAR,Total Adult Social Care,10.43,"GROCERY STORES, SUPERMARKETS",2022-23Q3_PC0456
Sandwell Metropolitan Borough Council,http://www.sandwell.gov.uk/info/200202/performance_and_spending/3233/government_procurement_cards,21-Oct-2022,Total ASCHWB,Wm Morrisons Store Pic,Total Adult Social Care,60.22,"GROCERY STORES, SUPERMARKETS",2022-23Q3_PC0457
Sandwell Metropolitan Borough Council,http://www.sandwell.gov.uk/info/200202/performance_and_spending/3233/government_procurement_cards,21-Oct-2022,Total ASCHWB,WWW.SCREWFIX.COM,Total Adult Social Care,129.99,"BUILDING MATERIALS, LUMBER STORES",2022-23Q3_PC0458
Sandwell Metropolitan Borough Council,http://www.sandwell.gov.uk/info/200202/performance_and_spending/3233/government_procurement_cards,21-Oct-2022,Total ASCHWB,Amazon.co.uk WM7XO66H5,Total Adult Social Care,45.14,DIRECT MARKETING-OTHER DIRECT MARKETERS/NOT ELSEW.,2022-23Q3_PC0459
Sandwell Metropolitan Borough Council,http://www.sandwell.gov.uk/info/200202/performance_and_spending/3233/government_procurement_cards,21-Oct-2022,Total Borough Economy,AMZNMktplace,Total Adult Social Care,146.19,MISCELLANEOUS AND SPECIALTY RETAIL STORES,2022-23Q3_PC0460
Sandwell Metropolitan Borough Council,http://www.sandwell.gov.uk/info/200202/performance_and_spending/3233/government_procurement_cards,21-Oct-2022,Total Borough Economy,AMZNMKTPLACE AMAZON.CO,Total Adult Social Care,299.95,MISCELLANEOUS AND SPECIALTY RETAIL STORES,2022-23Q3_PC0461
Sandwell Metropolitan Borough Council,http://www.sandwell.gov.uk/info/200202/performance_and_spending/3233/government_procurement_cards,21-Oct-2022,Total Borough Economy,GLOBAL WINES (BHAM) LT,Total Adult Social Care,64.65,"PACKAGE STORES, BEER, WINE, LIQUOR",2022-23Q3_PC0462
Sandwell Metropolitan Borough Council,http://www.sandwell.gov.uk/info/200202/performance_and_spending/3233/government_procurement_cards,21-Oct-2022,Total Borough Economy,AMZNMktplace,Total Adult Social Care,56.62,MISCELLANEOUS AND SPECIALTY RETAIL STORES,2022-23Q3_PC0463
Sandwell Metropolitan Borough Council,http://www.sandwell.gov.uk/info/200202/performance_and_spending/3233/government_procurement_cards,21-Oct-2022,Total Borough Economy,AMZNMKTPLACE AMAZON.CO,Total Adult Social Care,115.64,MISCELLANEOUS AND SPECIALTY RETAIL STORES,2022-23Q3_PC0464
Sandwell Metropolitan Borough Council,http://www.sandwell.gov.uk/info/200202/performance_and_spending/3233/government_procurement_cards,21-Oct-2022,Total Borough Economy,MAKRO SELF SERVICE HAL,Total Adult Social Care,55.86,WHOLESALE CLUBS,2022-23Q3_PC0465
Sandwell Metropolitan Borough Council,http://www.sandwell.gov.uk/info/200202/performance_and_spending/3233/government_procurement_cards,21-Oct-2022,Total Borough Economy,ASDA GROCERIES ONLINE,Total Adult Social Care,154.9,"GROCERY STORES, SUPERMARKETS",2022-23Q3_PC0466
Sandwell Metropolitan Borough Council,http://www.sandwell.gov.uk/info/200202/performance_and_spending/3233/government_procurement_cards,21-Oct-2022,Total Borough Economy,LIDL GB  NETHERTON,Total Adult Social Care,8.56,"GROCERY STORES, SUPERMARKETS",2022-23Q3_PC0467
Sandwell Metropolitan Borough Council,http://www.sandwell.gov.uk/info/200202/performance_and_spending/3233/government_procurement_cards,21-Oct-2022,Total Housing Revenue Account,KANE INTERNATIONAL LTD,Total Housing Revenue Account,199.68,ELECTRONIC SALES,2022-23Q3_PC0468
Sandwell Metropolitan Borough Council,http://www.sandwell.gov.uk/info/200202/performance_and_spending/3233/government_procurement_cards,21-Oct-2022,Total Housing Revenue Account,Staffordshire Builder,Total Housing Revenue Account,93.23,"BUILDING MATERIALS, LUMBER STORES",2022-23Q3_PC0469
Sandwell Metropolitan Borough Council,http://www.sandwell.gov.uk/info/200202/performance_and_spending/3233/government_procurement_cards,24-Oct-2022,Total Business Strategy & Change,AMZNMktplace,Assistant Chief Executive (Excl SIU),38.42,MISCELLANEOUS AND SPECIALTY RETAIL STORES,2022-23Q3_PC0470
Sandwell Metropolitan Borough Council,http://www.sandwell.gov.uk/info/200202/performance_and_spending/3233/government_procurement_cards,24-Oct-2022,Total Business Strategy & Change,Canva  03580-22198228,Assistant Chief Executive (Excl SIU),99.99,"COMMERCIAL ART, GRAPHICS, PHOTOGRAPHY",2022-23Q3_PC0471
Sandwell Metropolitan Borough Council,http://www.sandwell.gov.uk/info/200202/performance_and_spending/3233/government_procurement_cards,24-Oct-2022,Director of Law & Governance,AMZNMktplace,Assistant Chief Executive (Excl SIU),17.98,MISCELLANEOUS AND SPECIALTY RETAIL STORES,2022-23Q3_PC0472
Sandwell Metropolitan Borough Council,http://www.sandwell.gov.uk/info/200202/performance_and_spending/3233/government_procurement_cards,24-Oct-2022,Childrens Services,WWW.OFFICETEAMCONNECT.,Childrens Services,124.7,STATIONERY/OFFICE SUPPLIES/PRINTING & WRITING PAP.,2022-23Q3_PC0473
Sandwell Metropolitan Borough Council,http://www.sandwell.gov.uk/info/200202/performance_and_spending/3233/government_procurement_cards,24-Oct-2022,Childrens Services,AMZNMktplace,Childrens Services,3.95,MISCELLANEOUS AND SPECIALTY RETAIL STORES,2022-23Q3_PC0474
Sandwell Metropolitan Borough Council,http://www.sandwell.gov.uk/info/200202/performance_and_spending/3233/government_procurement_cards,24-Oct-2022,Childrens Services,AMZNMktplace,Childrens Services,8.6,MISCELLANEOUS AND SPECIALTY RETAIL STORES,2022-23Q3_PC0475
Sandwell Metropolitan Borough Council,http://www.sandwell.gov.uk/info/200202/performance_and_spending/3233/government_procurement_cards,24-Oct-2022,Childrens Services,AMZNMKTPLACE AMAZON.CO,Childrens Services,61.99,MISCELLANEOUS AND SPECIALTY RETAIL STORES,2022-23Q3_PC0476
Sandwell Metropolitan Borough Council,http://www.sandwell.gov.uk/info/200202/performance_and_spending/3233/government_procurement_cards,24-Oct-2022,Childrens Services,WWW.OFFICETEAMCONNECT.,Childrens Services,71.76,STATIONERY/OFFICE SUPPLIES/PRINTING & WRITING PAP.,2022-23Q3_PC0477
Sandwell Metropolitan Borough Council,http://www.sandwell.gov.uk/info/200202/performance_and_spending/3233/government_procurement_cards,24-Oct-2022,Childrens Services,BOOTS UK ECOMM,Childrens Services,96.1,"DRUG STORES, PHARMACIES",2022-23Q3_PC0478
Sandwell Metropolitan Borough Council,http://www.sandwell.gov.uk/info/200202/performance_and_spending/3233/government_procurement_cards,24-Oct-2022,Childrens Services,AMZNMktplace,Childrens Services,19.9,MISCELLANEOUS AND SPECIALTY RETAIL STORES,2022-23Q3_PC0479
Sandwell Metropolitan Borough Council,http://www.sandwell.gov.uk/info/200202/performance_and_spending/3233/government_procurement_cards,24-Oct-2022,Childrens Services,AMZNMktplace,Childrens Services,95,MISCELLANEOUS AND SPECIALTY RETAIL STORES,2022-23Q3_PC0480
Sandwell Metropolitan Borough Council,http://www.sandwell.gov.uk/info/200202/performance_and_spending/3233/government_procurement_cards,24-Oct-2022,Childrens Services,AMZNMKTPLACE AMAZON.CO,Childrens Services,75.25,MISCELLANEOUS AND SPECIALTY RETAIL STORES,2022-23Q3_PC0481
Sandwell Metropolitan Borough Council,http://www.sandwell.gov.uk/info/200202/performance_and_spending/3233/government_procurement_cards,24-Oct-2022,Childrens Services,WWW.SCREWFIX.COM,Childrens Services,7.49,"BUILDING MATERIALS, LUMBER STORES",2022-23Q3_PC0482
Sandwell Metropolitan Borough Council,http://www.sandwell.gov.uk/info/200202/performance_and_spending/3233/government_procurement_cards,24-Oct-2022,Childrens Services,IKEA LTD 142 BIRMINGHA,Childrens Services,180,"EQUIP, FURNITURE, HOME FURNSHNGS STRS (EXCPT APPL)",2022-23Q3_PC0483
Sandwell Metropolitan Borough Council,http://www.sandwell.gov.uk/info/200202/performance_and_spending/3233/government_procurement_cards,24-Oct-2022,Childrens Services,AMZNMktplace,Childrens Services,18.96,MISCELLANEOUS AND SPECIALTY RETAIL STORES,2022-23Q3_PC0484
Sandwell Metropolitan Borough Council,http://www.sandwell.gov.uk/info/200202/performance_and_spending/3233/government_procurement_cards,24-Oct-2022,Corporate Management,AMZNMKTPLACE AMAZON.CO,Corporate Management,22.47,MISCELLANEOUS AND SPECIALTY RETAIL STORES,2022-23Q3_PC0485
Sandwell Metropolitan Borough Council,http://www.sandwell.gov.uk/info/200202/performance_and_spending/3233/government_procurement_cards,24-Oct-2022,Corporate Management,AMZNMktplace,Corporate Management,105.2,MISCELLANEOUS AND SPECIALTY RETAIL STORES,2022-23Q3_PC0486
Sandwell Metropolitan Borough Council,http://www.sandwell.gov.uk/info/200202/performance_and_spending/3233/government_procurement_cards,24-Oct-2022,Housing & Assets Total,Amazon Prime BS86368P5,Corporate Management,8.99,DIRECT MARKETING-CONTINUITY/SUBSCRIPTION MERCHANTS,2022-23Q3_PC0487
Sandwell Metropolitan Borough Council,http://www.sandwell.gov.uk/info/200202/performance_and_spending/3233/government_procurement_cards,24-Oct-2022,Individual School Budgets With Inclusion,SALEH AND SONS,Individual School Budgets With Inclusion,62.88,"GROCERY STORES, SUPERMARKETS",2022-23Q3_PC0488
Sandwell Metropolitan Borough Council,http://www.sandwell.gov.uk/info/200202/performance_and_spending/3233/government_procurement_cards,24-Oct-2022,Total Public Health,AMZNMktplace,Public Health,13.49,MISCELLANEOUS AND SPECIALTY RETAIL STORES,2022-23Q3_PC0489
Sandwell Metropolitan Borough Council,http://www.sandwell.gov.uk/info/200202/performance_and_spending/3233/government_procurement_cards,24-Oct-2022,Total Public Health,Amazon Prime KY8TX1F55,Public Health,0.99,DIRECT MARKETING-CONTINUITY/SUBSCRIPTION MERCHANTS,2022-23Q3_PC0490
Sandwell Metropolitan Borough Council,http://www.sandwell.gov.uk/info/200202/performance_and_spending/3233/government_procurement_cards,24-Oct-2022,Regeneration & Growth,AMZNMKTPLACE AMAZON.CO,Regeneration And The Economy,199.96,MISCELLANEOUS AND SPECIALTY RETAIL STORES,2022-23Q3_PC0491
Sandwell Metropolitan Borough Council,http://www.sandwell.gov.uk/info/200202/performance_and_spending/3233/government_procurement_cards,24-Oct-2022,Regeneration & Growth,Amazon.co.uk 1J1976XP5,Regeneration And The Economy,31.06,DIRECT MARKETING-OTHER DIRECT MARKETERS/NOT ELSEW.,2022-23Q3_PC0492
Sandwell Metropolitan Borough Council,http://www.sandwell.gov.uk/info/200202/performance_and_spending/3233/government_procurement_cards,24-Oct-2022,Regeneration & Growth,AMZNMktplace,Regeneration And The Economy,42.89,MISCELLANEOUS AND SPECIALTY RETAIL STORES,2022-23Q3_PC0493
Sandwell Metropolitan Borough Council,http://www.sandwell.gov.uk/info/200202/performance_and_spending/3233/government_procurement_cards,24-Oct-2022,Total ASCHWB,AMZNMktplace,Total Adult Social Care,254.61,MISCELLANEOUS AND SPECIALTY RETAIL STORES,2022-23Q3_PC0494
Sandwell Metropolitan Borough Council,http://www.sandwell.gov.uk/info/200202/performance_and_spending/3233/government_procurement_cards,24-Oct-2022,Total ASCHWB,TOOLSTATION UK,Total Adult Social Care,-1.41,HARDWARE STORES,2022-23Q3_PC0495
Sandwell Metropolitan Borough Council,http://www.sandwell.gov.uk/info/200202/performance_and_spending/3233/government_procurement_cards,24-Oct-2022,Total ASCHWB,Amazon.co.uk JA1MJ2KX5,Total Adult Social Care,39.97,DIRECT MARKETING-OTHER DIRECT MARKETERS/NOT ELSEW.,2022-23Q3_PC0496
Sandwell Metropolitan Borough Council,http://www.sandwell.gov.uk/info/200202/performance_and_spending/3233/government_procurement_cards,24-Oct-2022,Total ASCHWB,WWW.OFFICETEAMCONNECT.,Total Adult Social Care,303.69,STATIONERY/OFFICE SUPPLIES/PRINTING & WRITING PAP.,2022-23Q3_PC0497
Sandwell Metropolitan Borough Council,http://www.sandwell.gov.uk/info/200202/performance_and_spending/3233/government_procurement_cards,24-Oct-2022,Total ASCHWB,WWW.SCREWFIX.COM,Total Adult Social Care,11.99,"BUILDING MATERIALS, LUMBER STORES",2022-23Q3_PC0498
Sandwell Metropolitan Borough Council,http://www.sandwell.gov.uk/info/200202/performance_and_spending/3233/government_procurement_cards,24-Oct-2022,Total ASCHWB,WWW.SCREWFIX.COM,Total Adult Social Care,44.99,"BUILDING MATERIALS, LUMBER STORES",2022-23Q3_PC0499
Sandwell Metropolitan Borough Council,http://www.sandwell.gov.uk/info/200202/performance_and_spending/3233/government_procurement_cards,24-Oct-2022,Total ASCHWB,WWW.SCREWFIX.COM,Total Adult Social Care,39.99,"BUILDING MATERIALS, LUMBER STORES",2022-23Q3_PC0500
Sandwell Metropolitan Borough Council,http://www.sandwell.gov.uk/info/200202/performance_and_spending/3233/government_procurement_cards,24-Oct-2022,Total Borough Economy,SUTTONS B2C ECOMM,Total Adult Social Care,387.23,MISCELLANEOUS GENERAL MERCHANDISE,2022-23Q3_PC0501
Sandwell Metropolitan Borough Council,http://www.sandwell.gov.uk/info/200202/performance_and_spending/3233/government_procurement_cards,24-Oct-2022,Total Borough Economy,AMZNMKTPLACE AMAZON.CO,Total Adult Social Care,5.69,MISCELLANEOUS AND SPECIALTY RETAIL STORES,2022-23Q3_PC0502
Sandwell Metropolitan Borough Council,http://www.sandwell.gov.uk/info/200202/performance_and_spending/3233/government_procurement_cards,24-Oct-2022,Total Borough Economy,AMZNMKTPLACE AMAZON.CO,Total Adult Social Care,119.94,MISCELLANEOUS AND SPECIALTY RETAIL STORES,2022-23Q3_PC0503
Sandwell Metropolitan Borough Council,http://www.sandwell.gov.uk/info/200202/performance_and_spending/3233/government_procurement_cards,24-Oct-2022,Total Borough Economy,AMZNMktplace,Total Adult Social Care,31.99,MISCELLANEOUS AND SPECIALTY RETAIL STORES,2022-23Q3_PC0504
Sandwell Metropolitan Borough Council,http://www.sandwell.gov.uk/info/200202/performance_and_spending/3233/government_procurement_cards,24-Oct-2022,Total Borough Economy,HOMEBASE LTD 085,Total Adult Social Care,138.5,HOME SUPPLY WAREHOUSE STORES,2022-23Q3_PC0505
Sandwell Metropolitan Borough Council,http://www.sandwell.gov.uk/info/200202/performance_and_spending/3233/government_procurement_cards,24-Oct-2022,Total Borough Economy,AMZ Little Petal Store,Total Adult Social Care,-65.48,MISCELLANEOUS AND SPECIALTY RETAIL STORES,2022-23Q3_PC0506
Sandwell Metropolitan Borough Council,http://www.sandwell.gov.uk/info/200202/performance_and_spending/3233/government_procurement_cards,24-Oct-2022,Total Borough Economy,AMZNMKTPLACE AMAZON.CO,Total Adult Social Care,91.89,MISCELLANEOUS AND SPECIALTY RETAIL STORES,2022-23Q3_PC0507
Sandwell Metropolitan Borough Council,http://www.sandwell.gov.uk/info/200202/performance_and_spending/3233/government_procurement_cards,24-Oct-2022,Total Borough Economy,AMZNMKTPLACE AMAZON.CO,Total Adult Social Care,-7.75,MISCELLANEOUS AND SPECIALTY RETAIL STORES,2022-23Q3_PC0508
Sandwell Metropolitan Borough Council,http://www.sandwell.gov.uk/info/200202/performance_and_spending/3233/government_procurement_cards,24-Oct-2022,Total Borough Economy,AMZNMktplace,Total Adult Social Care,33.42,MISCELLANEOUS AND SPECIALTY RETAIL STORES,2022-23Q3_PC0509
Sandwell Metropolitan Borough Council,http://www.sandwell.gov.uk/info/200202/performance_and_spending/3233/government_procurement_cards,24-Oct-2022,Total Borough Economy,VIKING UK,Total Adult Social Care,130.86,STATIONERY/OFFICE SUPPLIES/PRINTING & WRITING PAP.,2022-23Q3_PC0510
Sandwell Metropolitan Borough Council,http://www.sandwell.gov.uk/info/200202/performance_and_spending/3233/government_procurement_cards,24-Oct-2022,Total Borough Economy,AMZNMktplace,Total Adult Social Care,3.35,MISCELLANEOUS AND SPECIALTY RETAIL STORES,2022-23Q3_PC0511
Sandwell Metropolitan Borough Council,http://www.sandwell.gov.uk/info/200202/performance_and_spending/3233/government_procurement_cards,24-Oct-2022,Total Borough Economy,Amazon.co.uk UR9OY8A65,Total Adult Social Care,11.66,DIRECT MARKETING-OTHER DIRECT MARKETERS/NOT ELSEW.,2022-23Q3_PC0512
Sandwell Metropolitan Borough Council,http://www.sandwell.gov.uk/info/200202/performance_and_spending/3233/government_procurement_cards,24-Oct-2022,Total Borough Economy,WWW.OFFICETEAMCONNECT.,Total Adult Social Care,2.22,STATIONERY/OFFICE SUPPLIES/PRINTING & WRITING PAP.,2022-23Q3_PC0513
Sandwell Metropolitan Borough Council,http://www.sandwell.gov.uk/info/200202/performance_and_spending/3233/government_procurement_cards,24-Oct-2022,Total Housing Revenue Account,AMZNMKTPLACE AMAZON.CO,Total Housing Revenue Account,141.29,MISCELLANEOUS AND SPECIALTY RETAIL STORES,2022-23Q3_PC0514
Sandwell Metropolitan Borough Council,http://www.sandwell.gov.uk/info/200202/performance_and_spending/3233/government_procurement_cards,25-Oct-2022,Director of Law & Governance,SAINSBURYS S/MKTS,Assistant Chief Executive (Excl SIU),22.22,"GROCERY STORES, SUPERMARKETS",2022-23Q3_PC0515
Sandwell Metropolitan Borough Council,http://www.sandwell.gov.uk/info/200202/performance_and_spending/3233/government_procurement_cards,25-Oct-2022,Director of Law & Governance,Martys Lifestyle Expre,Assistant Chief Executive (Excl SIU),2.49,"GROCERY STORES, SUPERMARKETS",2022-23Q3_PC0516
Sandwell Metropolitan Borough Council,http://www.sandwell.gov.uk/info/200202/performance_and_spending/3233/government_procurement_cards,25-Oct-2022,Childrens Services,AMZNMktplace,Childrens Services,50.54,MISCELLANEOUS AND SPECIALTY RETAIL STORES,2022-23Q3_PC0517
Sandwell Metropolitan Borough Council,http://www.sandwell.gov.uk/info/200202/performance_and_spending/3233/government_procurement_cards,25-Oct-2022,Childrens Services,AMZNMktplace,Childrens Services,22.48,MISCELLANEOUS AND SPECIALTY RETAIL STORES,2022-23Q3_PC0518
Sandwell Metropolitan Borough Council,http://www.sandwell.gov.uk/info/200202/performance_and_spending/3233/government_procurement_cards,25-Oct-2022,Childrens Services,SPACEHOPPAS PLAYZONE,Childrens Services,96.95,"GAME, TOY, AND HOBBY SHOPS",2022-23Q3_PC0519
Sandwell Metropolitan Borough Council,http://www.sandwell.gov.uk/info/200202/performance_and_spending/3233/government_procurement_cards,25-Oct-2022,Childrens Services,AMZNMktplace,Childrens Services,7.49,MISCELLANEOUS AND SPECIALTY RETAIL STORES,2022-23Q3_PC0520
Sandwell Metropolitan Borough Council,http://www.sandwell.gov.uk/info/200202/performance_and_spending/3233/government_procurement_cards,25-Oct-2022,Childrens Services,ASDA GROCERIES ONLINE,Childrens Services,-16,"GROCERY STORES, SUPERMARKETS",2022-23Q3_PC0521
Sandwell Metropolitan Borough Council,http://www.sandwell.gov.uk/info/200202/performance_and_spending/3233/government_procurement_cards,25-Oct-2022,Childrens Services,ASDA GROCERIES ONLINE,Childrens Services,144.18,"GROCERY STORES, SUPERMARKETS",2022-23Q3_PC0522
Sandwell Metropolitan Borough Council,http://www.sandwell.gov.uk/info/200202/performance_and_spending/3233/government_procurement_cards,25-Oct-2022,Corporate Management,FS  JotForm,Corporate Management,21.19,DIGITAL GOODS SOFTWARE APPLICATIONS,2022-23Q3_PC0523
Sandwell Metropolitan Borough Council,http://www.sandwell.gov.uk/info/200202/performance_and_spending/3233/government_procurement_cards,25-Oct-2022,Individual School Budgets With Inclusion,AMZNMKTPLACE AMAZON.CO,Individual School Budgets With Inclusion,43.99,MISCELLANEOUS AND SPECIALTY RETAIL STORES,2022-23Q3_PC0524
Sandwell Metropolitan Borough Council,http://www.sandwell.gov.uk/info/200202/performance_and_spending/3233/government_procurement_cards,25-Oct-2022,Regeneration & Growth,Trainline.COM,Regeneration And The Economy,154.88,PASSENGER RAILWAYS,2022-23Q3_PC0525
Sandwell Metropolitan Borough Council,http://www.sandwell.gov.uk/info/200202/performance_and_spending/3233/government_procurement_cards,25-Oct-2022,Regeneration & Growth,SMS CONNECTIONS,Regeneration And The Economy,275.68,"FUEL DEALERS-COAL, FUEL OIL, LIQ PETROLEUM, WOOD",2022-23Q3_PC0526
Sandwell Metropolitan Borough Council,http://www.sandwell.gov.uk/info/200202/performance_and_spending/3233/government_procurement_cards,25-Oct-2022,Total ASCHWB,TRAVELODGE,Total Adult Social Care,327.58,TRAVELODGE,2022-23Q3_PC0527
Sandwell Metropolitan Borough Council,http://www.sandwell.gov.uk/info/200202/performance_and_spending/3233/government_procurement_cards,25-Oct-2022,Total ASCHWB,AMZNMKTPLACE AMAZON.CO,Total Adult Social Care,397.38,MISCELLANEOUS AND SPECIALTY RETAIL STORES,2022-23Q3_PC0528
Sandwell Metropolitan Borough Council,http://www.sandwell.gov.uk/info/200202/performance_and_spending/3233/government_procurement_cards,25-Oct-2022,Total ASCHWB,Amazon.co.uk OI9B33K35,Total Adult Social Care,16.73,DIRECT MARKETING-OTHER DIRECT MARKETERS/NOT ELSEW.,2022-23Q3_PC0529
Sandwell Metropolitan Borough Council,http://www.sandwell.gov.uk/info/200202/performance_and_spending/3233/government_procurement_cards,25-Oct-2022,Total ASCHWB,AMZNMktplace,Total Adult Social Care,62.6,MISCELLANEOUS AND SPECIALTY RETAIL STORES,2022-23Q3_PC0530
Sandwell Metropolitan Borough Council,http://www.sandwell.gov.uk/info/200202/performance_and_spending/3233/government_procurement_cards,25-Oct-2022,Total Borough Economy,SUTTONS B2C ECOMM,Total Adult Social Care,-7.96,MISCELLANEOUS GENERAL MERCHANDISE,2022-23Q3_PC0531
Sandwell Metropolitan Borough Council,http://www.sandwell.gov.uk/info/200202/performance_and_spending/3233/government_procurement_cards,25-Oct-2022,Total Borough Economy,AMZNMktplace,Total Adult Social Care,75.43,MISCELLANEOUS AND SPECIALTY RETAIL STORES,2022-23Q3_PC0532
Sandwell Metropolitan Borough Council,http://www.sandwell.gov.uk/info/200202/performance_and_spending/3233/government_procurement_cards,25-Oct-2022,Total Borough Economy,AMZNMktplace,Total Adult Social Care,19.99,MISCELLANEOUS AND SPECIALTY RETAIL STORES,2022-23Q3_PC0533
Sandwell Metropolitan Borough Council,http://www.sandwell.gov.uk/info/200202/performance_and_spending/3233/government_procurement_cards,25-Oct-2022,Total Borough Economy,PADDLE.NET SNAPWIDGET,Total Adult Social Care,5.41,DIGITAL GOODS MULTI CATEGORY,2022-23Q3_PC0534
Sandwell Metropolitan Borough Council,http://www.sandwell.gov.uk/info/200202/performance_and_spending/3233/government_procurement_cards,25-Oct-2022,Total Borough Economy,PADDLE.NET SNAPWIDGET,Total Adult Social Care,5.41,DIGITAL GOODS MULTI CATEGORY,2022-23Q3_PC0535
Sandwell Metropolitan Borough Council,http://www.sandwell.gov.uk/info/200202/performance_and_spending/3233/government_procurement_cards,25-Oct-2022,Total Borough Economy,PADDLE.NET SNAPWIDGET,Total Adult Social Care,5.41,DIGITAL GOODS MULTI CATEGORY,2022-23Q3_PC0536
Sandwell Metropolitan Borough Council,http://www.sandwell.gov.uk/info/200202/performance_and_spending/3233/government_procurement_cards,25-Oct-2022,Total Borough Economy,AMZNMktplace,Total Adult Social Care,20.97,MISCELLANEOUS AND SPECIALTY RETAIL STORES,2022-23Q3_PC0537
Sandwell Metropolitan Borough Council,http://www.sandwell.gov.uk/info/200202/performance_and_spending/3233/government_procurement_cards,25-Oct-2022,Total Housing Revenue Account,AMZNMktplace,Total Housing Revenue Account,19.98,MISCELLANEOUS AND SPECIALTY RETAIL STORES,2022-23Q3_PC0538
Sandwell Metropolitan Borough Council,http://www.sandwell.gov.uk/info/200202/performance_and_spending/3233/government_procurement_cards,26-Oct-2022,Director of Law & Governance,trainline,Assistant Chief Executive (Excl SIU),12.01,PASSENGER RAILWAYS,2022-23Q3_PC0539
Sandwell Metropolitan Borough Council,http://www.sandwell.gov.uk/info/200202/performance_and_spending/3233/government_procurement_cards,26-Oct-2022,Director of Law & Governance,trainline,Assistant Chief Executive (Excl SIU),7.22,PASSENGER RAILWAYS,2022-23Q3_PC0540
Sandwell Metropolitan Borough Council,http://www.sandwell.gov.uk/info/200202/performance_and_spending/3233/government_procurement_cards,26-Oct-2022,Director of Law & Governance,Trainline.COM,Assistant Chief Executive (Excl SIU),7.22,PASSENGER RAILWAYS,2022-23Q3_PC0541
Sandwell Metropolitan Borough Council,http://www.sandwell.gov.uk/info/200202/performance_and_spending/3233/government_procurement_cards,26-Oct-2022,Director of Law & Governance,Amazon.co.uk MQ1JI1N75,Assistant Chief Executive (Excl SIU),14.82,DIRECT MARKETING-OTHER DIRECT MARKETERS/NOT ELSEW.,2022-23Q3_PC0542
Sandwell Metropolitan Borough Council,http://www.sandwell.gov.uk/info/200202/performance_and_spending/3233/government_procurement_cards,26-Oct-2022,FINANCE (Inc SIU),ROYAL MAIL GROUP LTD,Assistant Chief Executive (Excl SIU),5.35,POSTAL SERVICES-GOVERNMENT ONLY,2022-23Q3_PC0543
Sandwell Metropolitan Borough Council,http://www.sandwell.gov.uk/info/200202/performance_and_spending/3233/government_procurement_cards,26-Oct-2022,Total Business Strategy & Change,Amazon.co.uk 103XV4I95,Assistant Chief Executive (Excl SIU),119.99,DIRECT MARKETING-OTHER DIRECT MARKETERS/NOT ELSEW.,2022-23Q3_PC0544
Sandwell Metropolitan Borough Council,http://www.sandwell.gov.uk/info/200202/performance_and_spending/3233/government_procurement_cards,26-Oct-2022,Total Business Strategy & Change,AMZNMktplace,Assistant Chief Executive (Excl SIU),189.99,MISCELLANEOUS AND SPECIALTY RETAIL STORES,2022-23Q3_PC0545
Sandwell Metropolitan Borough Council,http://www.sandwell.gov.uk/info/200202/performance_and_spending/3233/government_procurement_cards,26-Oct-2022,Total Business Strategy & Change,REMARKABLE,Assistant Chief Executive (Excl SIU),2.99,ELECTRONIC SALES,2022-23Q3_PC0546
Sandwell Metropolitan Borough Council,http://www.sandwell.gov.uk/info/200202/performance_and_spending/3233/government_procurement_cards,26-Oct-2022,Childrens Services,HIGHSPEEDTRAINING.CO.U,Childrens Services,72,"SCHOOLS, BUSINESS AND SECRETARIAL",2022-23Q3_PC0547
Sandwell Metropolitan Borough Council,http://www.sandwell.gov.uk/info/200202/performance_and_spending/3233/government_procurement_cards,26-Oct-2022,Childrens Services,AMZNMKTPLACE AMAZON.CO,Childrens Services,98.7,MISCELLANEOUS AND SPECIALTY RETAIL STORES,2022-23Q3_PC0548
Sandwell Metropolitan Borough Council,http://www.sandwell.gov.uk/info/200202/performance_and_spending/3233/government_procurement_cards,26-Oct-2022,Childrens Services,AMZNMKTPLACE AMAZON.CO,Childrens Services,66.78,MISCELLANEOUS AND SPECIALTY RETAIL STORES,2022-23Q3_PC0549
Sandwell Metropolitan Borough Council,http://www.sandwell.gov.uk/info/200202/performance_and_spending/3233/government_procurement_cards,26-Oct-2022,Housing & Assets Total,ARGOS LTD,Corporate Management,159.99,DISCOUNT STORES,2022-23Q3_PC0550
Sandwell Metropolitan Borough Council,http://www.sandwell.gov.uk/info/200202/performance_and_spending/3233/government_procurement_cards,26-Oct-2022,Individual School Budgets With Inclusion,WWW.OFFICETEAMCONNECT.,Individual School Budgets With Inclusion,163.98,STATIONERY/OFFICE SUPPLIES/PRINTING & WRITING PAP.,2022-23Q3_PC0551
Sandwell Metropolitan Borough Council,http://www.sandwell.gov.uk/info/200202/performance_and_spending/3233/government_procurement_cards,26-Oct-2022,Regeneration & Growth,BUILT ENVIRONMENT NETW,Regeneration And The Economy,780,BUSINESS SERVICES-NOT ELSEWHERE CLASSIFIED,2022-23Q3_PC0552
Sandwell Metropolitan Borough Council,http://www.sandwell.gov.uk/info/200202/performance_and_spending/3233/government_procurement_cards,26-Oct-2022,Regeneration & Growth,Trainline.COM,Regeneration And The Economy,55.63,PASSENGER RAILWAYS,2022-23Q3_PC0553
Sandwell Metropolitan Borough Council,http://www.sandwell.gov.uk/info/200202/performance_and_spending/3233/government_procurement_cards,26-Oct-2022,Regeneration & Growth,AMZNMktplace,Regeneration And The Economy,17.72,MISCELLANEOUS AND SPECIALTY RETAIL STORES,2022-23Q3_PC0554
Sandwell Metropolitan Borough Council,http://www.sandwell.gov.uk/info/200202/performance_and_spending/3233/government_procurement_cards,26-Oct-2022,Regeneration & Growth,AMZNMktplace,Regeneration And The Economy,30.38,MISCELLANEOUS AND SPECIALTY RETAIL STORES,2022-23Q3_PC0555
Sandwell Metropolitan Borough Council,http://www.sandwell.gov.uk/info/200202/performance_and_spending/3233/government_procurement_cards,26-Oct-2022,Total ASCHWB,AMZNMktplace,Total Adult Social Care,84.89,MISCELLANEOUS AND SPECIALTY RETAIL STORES,2022-23Q3_PC0556
Sandwell Metropolitan Borough Council,http://www.sandwell.gov.uk/info/200202/performance_and_spending/3233/government_procurement_cards,26-Oct-2022,Total ASCHWB,AMZNMktplace,Total Adult Social Care,86.82,MISCELLANEOUS AND SPECIALTY RETAIL STORES,2022-23Q3_PC0557
Sandwell Metropolitan Borough Council,http://www.sandwell.gov.uk/info/200202/performance_and_spending/3233/government_procurement_cards,26-Oct-2022,Total ASCHWB,POSTURITE LTD,Total Adult Social Care,529.14,MISCELLANEOUS HOUSE FURNISHING SPECIALTY SHOPS,2022-23Q3_PC0558
Sandwell Metropolitan Borough Council,http://www.sandwell.gov.uk/info/200202/performance_and_spending/3233/government_procurement_cards,26-Oct-2022,Total ASCHWB,MOBILITYSMART.CO.UK,Total Adult Social Care,179.94,MISCELLANEOUS GENERAL MERCHANDISE,2022-23Q3_PC0559
Sandwell Metropolitan Borough Council,http://www.sandwell.gov.uk/info/200202/performance_and_spending/3233/government_procurement_cards,26-Oct-2022,Total ASCHWB,J AND A INTERNATIONAL,Total Adult Social Care,473.7,MEN'S/WOMEN'S/CHILDREN'S UNIFORMS/COMMERCIAL CLOTH,2022-23Q3_PC0560
Sandwell Metropolitan Borough Council,http://www.sandwell.gov.uk/info/200202/performance_and_spending/3233/government_procurement_cards,26-Oct-2022,Total ASCHWB,MOBILITYSMART.CO.UK,Total Adult Social Care,359.88,MISCELLANEOUS GENERAL MERCHANDISE,2022-23Q3_PC0561
Sandwell Metropolitan Borough Council,http://www.sandwell.gov.uk/info/200202/performance_and_spending/3233/government_procurement_cards,26-Oct-2022,Total ASCHWB,AMZNMktplace,Total Adult Social Care,23.29,MISCELLANEOUS AND SPECIALTY RETAIL STORES,2022-23Q3_PC0562
Sandwell Metropolitan Borough Council,http://www.sandwell.gov.uk/info/200202/performance_and_spending/3233/government_procurement_cards,26-Oct-2022,Total Borough Economy,trainline,Total Adult Social Care,42.99,PASSENGER RAILWAYS,2022-23Q3_PC0563
Sandwell Metropolitan Borough Council,http://www.sandwell.gov.uk/info/200202/performance_and_spending/3233/government_procurement_cards,26-Oct-2022,Total Borough Economy,AMZNMktplace,Total Adult Social Care,37.96,MISCELLANEOUS AND SPECIALTY RETAIL STORES,2022-23Q3_PC0564
Sandwell Metropolitan Borough Council,http://www.sandwell.gov.uk/info/200202/performance_and_spending/3233/government_procurement_cards,26-Oct-2022,Total Borough Economy,IKEA LTD 142 BIRMINGHA,Total Adult Social Care,475,"EQUIP, FURNITURE, HOME FURNSHNGS STRS (EXCPT APPL)",2022-23Q3_PC0565
Sandwell Metropolitan Borough Council,http://www.sandwell.gov.uk/info/200202/performance_and_spending/3233/government_procurement_cards,26-Oct-2022,Total Borough Economy,IKEA LTD 142 BIRMINGHA,Total Adult Social Care,480,"EQUIP, FURNITURE, HOME FURNSHNGS STRS (EXCPT APPL)",2022-23Q3_PC0566
Sandwell Metropolitan Borough Council,http://www.sandwell.gov.uk/info/200202/performance_and_spending/3233/government_procurement_cards,26-Oct-2022,Total Borough Economy,IKEA LTD 142 BIRMINGHA,Total Adult Social Care,490,"EQUIP, FURNITURE, HOME FURNSHNGS STRS (EXCPT APPL)",2022-23Q3_PC0567
Sandwell Metropolitan Borough Council,http://www.sandwell.gov.uk/info/200202/performance_and_spending/3233/government_procurement_cards,26-Oct-2022,Total Borough Economy,WRISTBANDS.CO.UK,Total Adult Social Care,280.8,ACCESSORY AND APPAREL STORES-MISCELLANEOUS,2022-23Q3_PC0568
Sandwell Metropolitan Borough Council,http://www.sandwell.gov.uk/info/200202/performance_and_spending/3233/government_procurement_cards,26-Oct-2022,Total Borough Economy,VIKING UK,Total Adult Social Care,83.98,STATIONERY/OFFICE SUPPLIES/PRINTING & WRITING PAP.,2022-23Q3_PC0569
Sandwell Metropolitan Borough Council,http://www.sandwell.gov.uk/info/200202/performance_and_spending/3233/government_procurement_cards,26-Oct-2022,Total Borough Economy,VIKING UK,Total Adult Social Care,259.1,STATIONERY/OFFICE SUPPLIES/PRINTING & WRITING PAP.,2022-23Q3_PC0570
Sandwell Metropolitan Borough Council,http://www.sandwell.gov.uk/info/200202/performance_and_spending/3233/government_procurement_cards,26-Oct-2022,Total Borough Economy,WWW.OFFICETEAMCONNECT.,Total Adult Social Care,71.01,STATIONERY/OFFICE SUPPLIES/PRINTING & WRITING PAP.,2022-23Q3_PC0571
Sandwell Metropolitan Borough Council,http://www.sandwell.gov.uk/info/200202/performance_and_spending/3233/government_procurement_cards,26-Oct-2022,Total Borough Economy,WWW.SANDWELL.GOV.UK,Total Adult Social Care,35,GOVERNMENT SERVICES-NOT ELSEWHERE CLASSIFIED,2022-23Q3_PC0572
Sandwell Metropolitan Borough Council,http://www.sandwell.gov.uk/info/200202/performance_and_spending/3233/government_procurement_cards,26-Oct-2022,Total Borough Economy,AMZNMKTPLACE AMAZON.CO,Total Adult Social Care,29.98,MISCELLANEOUS AND SPECIALTY RETAIL STORES,2022-23Q3_PC0573
Sandwell Metropolitan Borough Council,http://www.sandwell.gov.uk/info/200202/performance_and_spending/3233/government_procurement_cards,26-Oct-2022,Total Housing Revenue Account,TRAVIS PERKINS,Total Housing Revenue Account,131.4,"BUILDING MATERIALS, LUMBER STORES",2022-23Q3_PC0574
Sandwell Metropolitan Borough Council,http://www.sandwell.gov.uk/info/200202/performance_and_spending/3233/government_procurement_cards,27-Oct-2022,Childrens Services,AMZNMKTPLACE AMAZON.CO,Childrens Services,23.99,MISCELLANEOUS AND SPECIALTY RETAIL STORES,2022-23Q3_PC0575
Sandwell Metropolitan Borough Council,http://www.sandwell.gov.uk/info/200202/performance_and_spending/3233/government_procurement_cards,27-Oct-2022,Childrens Services,SumUp   Seasons Veg Bo,Childrens Services,58.75,LIMOUSINES AND TAXICABS,2022-23Q3_PC0576
Sandwell Metropolitan Borough Council,http://www.sandwell.gov.uk/info/200202/performance_and_spending/3233/government_procurement_cards,27-Oct-2022,Childrens Services,ADOBE PS CREATIVE CLD,Childrens Services,19.97,COMPUTER SOFTWARE STORES,2022-23Q3_PC0577
Sandwell Metropolitan Borough Council,http://www.sandwell.gov.uk/info/200202/performance_and_spending/3233/government_procurement_cards,27-Oct-2022,Regeneration & Growth,WWW.LABC.UK.COM,Regeneration And The Economy,270,BUSINESS SERVICES-NOT ELSEWHERE CLASSIFIED,2022-23Q3_PC0578
Sandwell Metropolitan Borough Council,http://www.sandwell.gov.uk/info/200202/performance_and_spending/3233/government_procurement_cards,27-Oct-2022,Regeneration & Growth,AMZ Amazon.co.uk,Regeneration And The Economy,-31.06,DIRECT MARKETING-OTHER DIRECT MARKETERS/NOT ELSEW.,2022-23Q3_PC0579
Sandwell Metropolitan Borough Council,http://www.sandwell.gov.uk/info/200202/performance_and_spending/3233/government_procurement_cards,27-Oct-2022,Total ASCHWB,AMZNMktplace,Total Adult Social Care,21.98,MISCELLANEOUS AND SPECIALTY RETAIL STORES,2022-23Q3_PC0580
Sandwell Metropolitan Borough Council,http://www.sandwell.gov.uk/info/200202/performance_and_spending/3233/government_procurement_cards,27-Oct-2022,Total ASCHWB,AMZNMktplace,Total Adult Social Care,9.88,MISCELLANEOUS AND SPECIALTY RETAIL STORES,2022-23Q3_PC0581
Sandwell Metropolitan Borough Council,http://www.sandwell.gov.uk/info/200202/performance_and_spending/3233/government_procurement_cards,27-Oct-2022,Total ASCHWB,AMZNMKTPLACE AMAZON.CO,Total Adult Social Care,12.97,MISCELLANEOUS AND SPECIALTY RETAIL STORES,2022-23Q3_PC0582
Sandwell Metropolitan Borough Council,http://www.sandwell.gov.uk/info/200202/performance_and_spending/3233/government_procurement_cards,27-Oct-2022,Total ASCHWB,AMZNMktplace,Total Adult Social Care,214,MISCELLANEOUS AND SPECIALTY RETAIL STORES,2022-23Q3_PC0583
Sandwell Metropolitan Borough Council,http://www.sandwell.gov.uk/info/200202/performance_and_spending/3233/government_procurement_cards,27-Oct-2022,Total Borough Economy,W H TINSLEY,Total Adult Social Care,359.4,FUNERAL SERVICE AND CREMATORIES,2022-23Q3_PC0584
Sandwell Metropolitan Borough Council,http://www.sandwell.gov.uk/info/200202/performance_and_spending/3233/government_procurement_cards,27-Oct-2022,Total Borough Economy,NEXTDAYCOFFEE.CO.UK,Total Adult Social Care,49.79,"MISC FOOD STORE-CONVENIENCE,MRKT,SPLTY,VENDNG MACS",2022-23Q3_PC0585
Sandwell Metropolitan Borough Council,http://www.sandwell.gov.uk/info/200202/performance_and_spending/3233/government_procurement_cards,27-Oct-2022,Total Borough Economy,WRISTBANDS.CO.UK,Total Adult Social Care,522,ACCESSORY AND APPAREL STORES-MISCELLANEOUS,2022-23Q3_PC0586
Sandwell Metropolitan Borough Council,http://www.sandwell.gov.uk/info/200202/performance_and_spending/3233/government_procurement_cards,27-Oct-2022,Total Borough Economy,Amazon Prime UC4PX05T5,Total Adult Social Care,8.99,DIRECT MARKETING-CONTINUITY/SUBSCRIPTION MERCHANTS,2022-23Q3_PC0587
Sandwell Metropolitan Borough Council,http://www.sandwell.gov.uk/info/200202/performance_and_spending/3233/government_procurement_cards,27-Oct-2022,Total Borough Economy,AMZNMktplace,Total Adult Social Care,28.97,MISCELLANEOUS AND SPECIALTY RETAIL STORES,2022-23Q3_PC0588
Sandwell Metropolitan Borough Council,http://www.sandwell.gov.uk/info/200202/performance_and_spending/3233/government_procurement_cards,27-Oct-2022,Total Borough Economy,IKEA LTD SHOP ONLINE,Total Adult Social Care,219,"EQUIP, FURNITURE, HOME FURNSHNGS STRS (EXCPT APPL)",2022-23Q3_PC0589
Sandwell Metropolitan Borough Council,http://www.sandwell.gov.uk/info/200202/performance_and_spending/3233/government_procurement_cards,27-Oct-2022,Total Borough Economy,WWW.OFFICETEAMCONNECT.,Total Adult Social Care,24.81,STATIONERY/OFFICE SUPPLIES/PRINTING & WRITING PAP.,2022-23Q3_PC0590
Sandwell Metropolitan Borough Council,http://www.sandwell.gov.uk/info/200202/performance_and_spending/3233/government_procurement_cards,27-Oct-2022,Total Housing Revenue Account,AMZNMktplace,Total Housing Revenue Account,19.13,MISCELLANEOUS AND SPECIALTY RETAIL STORES,2022-23Q3_PC0591
Sandwell Metropolitan Borough Council,http://www.sandwell.gov.uk/info/200202/performance_and_spending/3233/government_procurement_cards,27-Oct-2022,Total Housing Revenue Account,AMZNMktplace,Total Housing Revenue Account,5.22,MISCELLANEOUS AND SPECIALTY RETAIL STORES,2022-23Q3_PC0592
Sandwell Metropolitan Borough Council,http://www.sandwell.gov.uk/info/200202/performance_and_spending/3233/government_procurement_cards,27-Oct-2022,Total Housing Revenue Account,POST OFFICE COUNTER,Total Housing Revenue Account,249.85,POSTAL SERVICES-GOVERNMENT ONLY,2022-23Q3_PC0593
Sandwell Metropolitan Borough Council,http://www.sandwell.gov.uk/info/200202/performance_and_spending/3233/government_procurement_cards,27-Oct-2022,Total Housing Revenue Account,TRAVIS PERKINS,Total Housing Revenue Account,35,"BUILDING MATERIALS, LUMBER STORES",2022-23Q3_PC0594
Sandwell Metropolitan Borough Council,http://www.sandwell.gov.uk/info/200202/performance_and_spending/3233/government_procurement_cards,28-Oct-2022,Total Business Strategy & Change,AMZNMKTPLACE AMAZON.CO,Assistant Chief Executive (Excl SIU),13.96,MISCELLANEOUS AND SPECIALTY RETAIL STORES,2022-23Q3_PC0595
Sandwell Metropolitan Borough Council,http://www.sandwell.gov.uk/info/200202/performance_and_spending/3233/government_procurement_cards,28-Oct-2022,Director of Law & Governance,PAPA JOHNS OLDBURY,Assistant Chief Executive (Excl SIU),26.91,FAST FOOD RESTAURANTS,2022-23Q3_PC0596
Sandwell Metropolitan Borough Council,http://www.sandwell.gov.uk/info/200202/performance_and_spending/3233/government_procurement_cards,28-Oct-2022,Director of Law & Governance,The Fish & Chip Shop,Assistant Chief Executive (Excl SIU),3.5,FAST FOOD RESTAURANTS,2022-23Q3_PC0597
Sandwell Metropolitan Borough Council,http://www.sandwell.gov.uk/info/200202/performance_and_spending/3233/government_procurement_cards,28-Oct-2022,Director of Law & Governance,SAINSBURYS,Assistant Chief Executive (Excl SIU),14.44,"GROCERY STORES, SUPERMARKETS",2022-23Q3_PC0598
Sandwell Metropolitan Borough Council,http://www.sandwell.gov.uk/info/200202/performance_and_spending/3233/government_procurement_cards,28-Oct-2022,Director of Law & Governance,AMZNMktplace,Assistant Chief Executive (Excl SIU),148.78,MISCELLANEOUS AND SPECIALTY RETAIL STORES,2022-23Q3_PC0599
Sandwell Metropolitan Borough Council,http://www.sandwell.gov.uk/info/200202/performance_and_spending/3233/government_procurement_cards,28-Oct-2022,Director of Law & Governance,WWW.SCREWFIX.COM,Assistant Chief Executive (Excl SIU),22.98,"BUILDING MATERIALS, LUMBER STORES",2022-23Q3_PC0600
Sandwell Metropolitan Borough Council,http://www.sandwell.gov.uk/info/200202/performance_and_spending/3233/government_procurement_cards,28-Oct-2022,Total Business Strategy & Change,MENTIMETER BASIC,Assistant Chief Executive (Excl SIU),64.13,COMPUTER SOFTWARE STORES,2022-23Q3_PC0601
Sandwell Metropolitan Borough Council,http://www.sandwell.gov.uk/info/200202/performance_and_spending/3233/government_procurement_cards,28-Oct-2022,Childrens Services,MY BIG BITE O,Childrens Services,101.1,COMPUTER SOFTWARE STORES,2022-23Q3_PC0602
Sandwell Metropolitan Borough Council,http://www.sandwell.gov.uk/info/200202/performance_and_spending/3233/government_procurement_cards,28-Oct-2022,Childrens Services,AMZNMKTPLACE AMAZON.CO,Childrens Services,-43,MISCELLANEOUS AND SPECIALTY RETAIL STORES,2022-23Q3_PC0603
Sandwell Metropolitan Borough Council,http://www.sandwell.gov.uk/info/200202/performance_and_spending/3233/government_procurement_cards,28-Oct-2022,Childrens Services,TOOLSTATION LIMITED,Childrens Services,32.17,"BUILDING MATERIALS, LUMBER STORES",2022-23Q3_PC0604
Sandwell Metropolitan Borough Council,http://www.sandwell.gov.uk/info/200202/performance_and_spending/3233/government_procurement_cards,28-Oct-2022,Childrens Services,ASDA GROCERIES ONLINE,Childrens Services,66.5,"GROCERY STORES, SUPERMARKETS",2022-23Q3_PC0605
Sandwell Metropolitan Borough Council,http://www.sandwell.gov.uk/info/200202/performance_and_spending/3233/government_procurement_cards,28-Oct-2022,Total ASCHWB,AMZNMktplace,Total Adult Social Care,7.58,MISCELLANEOUS AND SPECIALTY RETAIL STORES,2022-23Q3_PC0606
Sandwell Metropolitan Borough Council,http://www.sandwell.gov.uk/info/200202/performance_and_spending/3233/government_procurement_cards,28-Oct-2022,Total ASCHWB,AMZNMktplace,Total Adult Social Care,20.92,MISCELLANEOUS AND SPECIALTY RETAIL STORES,2022-23Q3_PC0607
Sandwell Metropolitan Borough Council,http://www.sandwell.gov.uk/info/200202/performance_and_spending/3233/government_procurement_cards,28-Oct-2022,Total ASCHWB,Amazon.co.uk 6U5IN8VU5,Total Adult Social Care,34.99,DIRECT MARKETING-OTHER DIRECT MARKETERS/NOT ELSEW.,2022-23Q3_PC0608
Sandwell Metropolitan Borough Council,http://www.sandwell.gov.uk/info/200202/performance_and_spending/3233/government_procurement_cards,28-Oct-2022,Total Borough Economy,PREMIER INN,Total Adult Social Care,-180,PREMIER INN,2022-23Q3_PC0609
Sandwell Metropolitan Borough Council,http://www.sandwell.gov.uk/info/200202/performance_and_spending/3233/government_procurement_cards,28-Oct-2022,Total Borough Economy,Trainline.COM,Total Adult Social Care,142.24,PASSENGER RAILWAYS,2022-23Q3_PC0610
Sandwell Metropolitan Borough Council,http://www.sandwell.gov.uk/info/200202/performance_and_spending/3233/government_procurement_cards,28-Oct-2022,Total Borough Economy,WWW.OFFICETEAMCONNECT.,Total Adult Social Care,107.35,STATIONERY/OFFICE SUPPLIES/PRINTING & WRITING PAP.,2022-23Q3_PC0611
Sandwell Metropolitan Borough Council,http://www.sandwell.gov.uk/info/200202/performance_and_spending/3233/government_procurement_cards,28-Oct-2022,Total Borough Economy,WWW.SANDWELL.GOV.UK,Total Adult Social Care,21,GOVERNMENT SERVICES-NOT ELSEWHERE CLASSIFIED,2022-23Q3_PC0612
Sandwell Metropolitan Borough Council,http://www.sandwell.gov.uk/info/200202/performance_and_spending/3233/government_procurement_cards,28-Oct-2022,Total Borough Economy,AMZNMktplace,Total Adult Social Care,5.57,MISCELLANEOUS AND SPECIALTY RETAIL STORES,2022-23Q3_PC0613
Sandwell Metropolitan Borough Council,http://www.sandwell.gov.uk/info/200202/performance_and_spending/3233/government_procurement_cards,28-Oct-2022,Total Borough Economy,AMZNMktplace,Total Adult Social Care,4.28,MISCELLANEOUS AND SPECIALTY RETAIL STORES,2022-23Q3_PC0614
Sandwell Metropolitan Borough Council,http://www.sandwell.gov.uk/info/200202/performance_and_spending/3233/government_procurement_cards,28-Oct-2022,Total Borough Economy,AMZNMktplace,Total Adult Social Care,16.99,MISCELLANEOUS AND SPECIALTY RETAIL STORES,2022-23Q3_PC0615
Sandwell Metropolitan Borough Council,http://www.sandwell.gov.uk/info/200202/performance_and_spending/3233/government_procurement_cards,28-Oct-2022,Total Borough Economy,AMZNMktplace,Total Adult Social Care,21.99,MISCELLANEOUS AND SPECIALTY RETAIL STORES,2022-23Q3_PC0616
Sandwell Metropolitan Borough Council,http://www.sandwell.gov.uk/info/200202/performance_and_spending/3233/government_procurement_cards,28-Oct-2022,Total Borough Economy,AMZNMktplace,Total Adult Social Care,9.56,MISCELLANEOUS AND SPECIALTY RETAIL STORES,2022-23Q3_PC0617
Sandwell Metropolitan Borough Council,http://www.sandwell.gov.uk/info/200202/performance_and_spending/3233/government_procurement_cards,28-Oct-2022,Total Borough Economy,WWW.THEWORKS.CO.UK,Total Adult Social Care,200,DISCOUNT STORES,2022-23Q3_PC0618
Sandwell Metropolitan Borough Council,http://www.sandwell.gov.uk/info/200202/performance_and_spending/3233/government_procurement_cards,28-Oct-2022,Total Borough Economy,AMZNMKTPLACE AMAZON.CO,Total Adult Social Care,72.12,MISCELLANEOUS AND SPECIALTY RETAIL STORES,2022-23Q3_PC0619
Sandwell Metropolitan Borough Council,http://www.sandwell.gov.uk/info/200202/performance_and_spending/3233/government_procurement_cards,28-Oct-2022,Total Borough Economy,MAKRO SELF SERVICE HAL,Total Adult Social Care,11.07,WHOLESALE CLUBS,2022-23Q3_PC0620
Sandwell Metropolitan Borough Council,http://www.sandwell.gov.uk/info/200202/performance_and_spending/3233/government_procurement_cards,28-Oct-2022,Total Borough Economy,PROFESSIONAL PLAN,Total Adult Social Care,143.35,COMPUTER SOFTWARE STORES,2022-23Q3_PC0621
Sandwell Metropolitan Borough Council,http://www.sandwell.gov.uk/info/200202/performance_and_spending/3233/government_procurement_cards,28-Oct-2022,Total Borough Economy,WWW.OFFICETEAMCONNECT.,Total Adult Social Care,15.62,STATIONERY/OFFICE SUPPLIES/PRINTING & WRITING PAP.,2022-23Q3_PC0622
Sandwell Metropolitan Borough Council,http://www.sandwell.gov.uk/info/200202/performance_and_spending/3233/government_procurement_cards,28-Oct-2022,Total Housing Revenue Account,AMZNMktplace,Total Housing Revenue Account,29.99,MISCELLANEOUS AND SPECIALTY RETAIL STORES,2022-23Q3_PC0623
Sandwell Metropolitan Borough Council,http://www.sandwell.gov.uk/info/200202/performance_and_spending/3233/government_procurement_cards,28-Oct-2022,Total Housing Revenue Account,WWW.OFFICETEAMCONNECT.,Total Housing Revenue Account,114.48,STATIONERY/OFFICE SUPPLIES/PRINTING & WRITING PAP.,2022-23Q3_PC0624
Sandwell Metropolitan Borough Council,http://www.sandwell.gov.uk/info/200202/performance_and_spending/3233/government_procurement_cards,28-Oct-2022,Total Housing Revenue Account,NRS HEALTHCARE,Total Housing Revenue Account,658.25,"HEARING AIDS-SALES, SERVICE, SUPPLY STORES",2022-23Q3_PC0625
Sandwell Metropolitan Borough Council,http://www.sandwell.gov.uk/info/200202/performance_and_spending/3233/government_procurement_cards,31-Oct-2022,Director of Law & Governance,Amazon Prime 1F2QB6SD5,Assistant Chief Executive (Excl SIU),8.99,DIRECT MARKETING-CONTINUITY/SUBSCRIPTION MERCHANTS,2022-23Q3_PC0626
Sandwell Metropolitan Borough Council,http://www.sandwell.gov.uk/info/200202/performance_and_spending/3233/government_procurement_cards,31-Oct-2022,Director of Law & Governance,WM MORRISONS STORE,Assistant Chief Executive (Excl SIU),14.9,"GROCERY STORES, SUPERMARKETS",2022-23Q3_PC0627
Sandwell Metropolitan Borough Council,http://www.sandwell.gov.uk/info/200202/performance_and_spending/3233/government_procurement_cards,31-Oct-2022,Director of Law & Governance,BCC CLEAN AIR ZONE,Assistant Chief Executive (Excl SIU),8,GOVERNMENT SERVICES-NOT ELSEWHERE CLASSIFIED,2022-23Q3_PC0628
Sandwell Metropolitan Borough Council,http://www.sandwell.gov.uk/info/200202/performance_and_spending/3233/government_procurement_cards,31-Oct-2022,Director of Law & Governance,AMZNMktplace,Assistant Chief Executive (Excl SIU),17.98,MISCELLANEOUS AND SPECIALTY RETAIL STORES,2022-23Q3_PC0629
Sandwell Metropolitan Borough Council,http://www.sandwell.gov.uk/info/200202/performance_and_spending/3233/government_procurement_cards,31-Oct-2022,FINANCE (Inc SIU),ASSOCIATION OF CHARTER,Assistant Chief Executive (Excl SIU),143,SCHOOLS & EDUCATIONAL SVC-NOT ELSEWHERE CLASSIFIED,2022-23Q3_PC0630
Sandwell Metropolitan Borough Council,http://www.sandwell.gov.uk/info/200202/performance_and_spending/3233/government_procurement_cards,31-Oct-2022,FINANCE (Inc SIU),WWW.CIPFA.ORG.UK,Assistant Chief Executive (Excl SIU),110,"ORGANIZATIONS, MEMBERSHIP-NOT ELSEWHERE CLASSIFIED",2022-23Q3_PC0631
Sandwell Metropolitan Borough Council,http://www.sandwell.gov.uk/info/200202/performance_and_spending/3233/government_procurement_cards,31-Oct-2022,Childrens Services,WILKO RETAIL LIMITED,Childrens Services,30,MISCELLANEOUS GENERAL MERCHANDISE,2022-23Q3_PC0632
Sandwell Metropolitan Borough Council,http://www.sandwell.gov.uk/info/200202/performance_and_spending/3233/government_procurement_cards,31-Oct-2022,Childrens Services,YORKSHIRE PURCHASING O,Childrens Services,195.1,STATIONERY/OFFICE SUPPLIES/PRINTING & WRITING PAP.,2022-23Q3_PC0633
Sandwell Metropolitan Borough Council,http://www.sandwell.gov.uk/info/200202/performance_and_spending/3233/government_procurement_cards,31-Oct-2022,Childrens Services,Amazon.co.uk PX77A82Q5,Childrens Services,121.91,DIRECT MARKETING-OTHER DIRECT MARKETERS/NOT ELSEW.,2022-23Q3_PC0634
Sandwell Metropolitan Borough Council,http://www.sandwell.gov.uk/info/200202/performance_and_spending/3233/government_procurement_cards,31-Oct-2022,Corporate Management,AMZNMKTPLACE AMAZON.CO,Corporate Management,239.99,MISCELLANEOUS AND SPECIALTY RETAIL STORES,2022-23Q3_PC0635
Sandwell Metropolitan Borough Council,http://www.sandwell.gov.uk/info/200202/performance_and_spending/3233/government_procurement_cards,31-Oct-2022,Housing & Assets Total,AMZNMktplace,Corporate Management,54,MISCELLANEOUS AND SPECIALTY RETAIL STORES,2022-23Q3_PC0636
Sandwell Metropolitan Borough Council,http://www.sandwell.gov.uk/info/200202/performance_and_spending/3233/government_procurement_cards,31-Oct-2022,Housing & Assets Total,AMZNMktplace,Corporate Management,26.89,MISCELLANEOUS AND SPECIALTY RETAIL STORES,2022-23Q3_PC0637
Sandwell Metropolitan Borough Council,http://www.sandwell.gov.uk/info/200202/performance_and_spending/3233/government_procurement_cards,31-Oct-2022,Total Public Health,DMN/THELOSTFOUNDBIRMIN,Public Health,-100,BUSINESS SERVICES-NOT ELSEWHERE CLASSIFIED,2022-23Q3_PC0638
Sandwell Metropolitan Borough Council,http://www.sandwell.gov.uk/info/200202/performance_and_spending/3233/government_procurement_cards,31-Oct-2022,Total Public Health,Amazon Prime ZK8X308B5,Public Health,8.99,DIRECT MARKETING-CONTINUITY/SUBSCRIPTION MERCHANTS,2022-23Q3_PC0639
Sandwell Metropolitan Borough Council,http://www.sandwell.gov.uk/info/200202/performance_and_spending/3233/government_procurement_cards,31-Oct-2022,Regeneration & Growth,Amazon.co.uk 2V7C27WT5,Regeneration And The Economy,20.04,DIRECT MARKETING-OTHER DIRECT MARKETERS/NOT ELSEW.,2022-23Q3_PC0640
Sandwell Metropolitan Borough Council,http://www.sandwell.gov.uk/info/200202/performance_and_spending/3233/government_procurement_cards,31-Oct-2022,Regeneration & Growth,WWW.OFFICETEAMCONNECT.,Regeneration And The Economy,34.44,STATIONERY/OFFICE SUPPLIES/PRINTING & WRITING PAP.,2022-23Q3_PC0641
Sandwell Metropolitan Borough Council,http://www.sandwell.gov.uk/info/200202/performance_and_spending/3233/government_procurement_cards,31-Oct-2022,Total ASCHWB,TOOLSTATION UK,Total Adult Social Care,9.9,HARDWARE STORES,2022-23Q3_PC0642
Sandwell Metropolitan Borough Council,http://www.sandwell.gov.uk/info/200202/performance_and_spending/3233/government_procurement_cards,31-Oct-2022,Total ASCHWB,Amazon.co.uk ST02R4395,Total Adult Social Care,25.59,DIRECT MARKETING-OTHER DIRECT MARKETERS/NOT ELSEW.,2022-23Q3_PC0643
Sandwell Metropolitan Borough Council,http://www.sandwell.gov.uk/info/200202/performance_and_spending/3233/government_procurement_cards,31-Oct-2022,Total ASCHWB,WWW.OFFICETEAMCONNECT.,Total Adult Social Care,231.33,STATIONERY/OFFICE SUPPLIES/PRINTING & WRITING PAP.,2022-23Q3_PC0644
Sandwell Metropolitan Borough Council,http://www.sandwell.gov.uk/info/200202/performance_and_spending/3233/government_procurement_cards,31-Oct-2022,Total ASCHWB,TRAVELODGE,Total Adult Social Care,177.07,TRAVELODGE,2022-23Q3_PC0645
Sandwell Metropolitan Borough Council,http://www.sandwell.gov.uk/info/200202/performance_and_spending/3233/government_procurement_cards,31-Oct-2022,Total ASCHWB,AMZNMktplace,Total Adult Social Care,14.67,MISCELLANEOUS AND SPECIALTY RETAIL STORES,2022-23Q3_PC0646
Sandwell Metropolitan Borough Council,http://www.sandwell.gov.uk/info/200202/performance_and_spending/3233/government_procurement_cards,31-Oct-2022,Total Borough Economy,AMZNMKTPLACE AMAZON.CO,Total Adult Social Care,41.97,MISCELLANEOUS AND SPECIALTY RETAIL STORES,2022-23Q3_PC0647
Sandwell Metropolitan Borough Council,http://www.sandwell.gov.uk/info/200202/performance_and_spending/3233/government_procurement_cards,31-Oct-2022,Total Borough Economy,AMZNMKTPLACE AMAZON.CO,Total Adult Social Care,48.48,MISCELLANEOUS AND SPECIALTY RETAIL STORES,2022-23Q3_PC0648
Sandwell Metropolitan Borough Council,http://www.sandwell.gov.uk/info/200202/performance_and_spending/3233/government_procurement_cards,31-Oct-2022,Total Borough Economy,IKEA LTD SHOP ONLINE,Total Adult Social Care,114,"EQUIP, FURNITURE, HOME FURNSHNGS STRS (EXCPT APPL)",2022-23Q3_PC0649
Sandwell Metropolitan Borough Council,http://www.sandwell.gov.uk/info/200202/performance_and_spending/3233/government_procurement_cards,31-Oct-2022,Total Borough Economy,AMZNMKTPLACE AMAZON.CO,Total Adult Social Care,330.68,MISCELLANEOUS AND SPECIALTY RETAIL STORES,2022-23Q3_PC0650
Sandwell Metropolitan Borough Council,http://www.sandwell.gov.uk/info/200202/performance_and_spending/3233/government_procurement_cards,31-Oct-2022,Total Borough Economy,AMZNMKTPLACE AMAZON.CO,Total Adult Social Care,153.37,MISCELLANEOUS AND SPECIALTY RETAIL STORES,2022-23Q3_PC0651
Sandwell Metropolitan Borough Council,http://www.sandwell.gov.uk/info/200202/performance_and_spending/3233/government_procurement_cards,31-Oct-2022,Total Borough Economy,AMZNMktplace,Total Adult Social Care,6.99,MISCELLANEOUS AND SPECIALTY RETAIL STORES,2022-23Q3_PC0652
Sandwell Metropolitan Borough Council,http://www.sandwell.gov.uk/info/200202/performance_and_spending/3233/government_procurement_cards,31-Oct-2022,Total Borough Economy,AMZNMktplace,Total Adult Social Care,6.9,MISCELLANEOUS AND SPECIALTY RETAIL STORES,2022-23Q3_PC0653
Sandwell Metropolitan Borough Council,http://www.sandwell.gov.uk/info/200202/performance_and_spending/3233/government_procurement_cards,31-Oct-2022,Total Borough Economy,TESCO STORES 2335,Total Adult Social Care,11.6,"GROCERY STORES, SUPERMARKETS",2022-23Q3_PC0654
Sandwell Metropolitan Borough Council,http://www.sandwell.gov.uk/info/200202/performance_and_spending/3233/government_procurement_cards,31-Oct-2022,Total Borough Economy,B & Q 1276,Total Adult Social Care,208.95,HOME SUPPLY WAREHOUSE STORES,2022-23Q3_PC0655
Sandwell Metropolitan Borough Council,http://www.sandwell.gov.uk/info/200202/performance_and_spending/3233/government_procurement_cards,31-Oct-2022,Total Borough Economy,ASDA GROCERIES ONLINE,Total Adult Social Care,152.5,"GROCERY STORES, SUPERMARKETS",2022-23Q3_PC0656
Sandwell Metropolitan Borough Council,http://www.sandwell.gov.uk/info/200202/performance_and_spending/3233/government_procurement_cards,31-Oct-2022,Total Borough Economy,AMZNMktplace,Total Adult Social Care,38.09,MISCELLANEOUS AND SPECIALTY RETAIL STORES,2022-23Q3_PC0657
Sandwell Metropolitan Borough Council,http://www.sandwell.gov.uk/info/200202/performance_and_spending/3233/government_procurement_cards,31-Oct-2022,Total Borough Economy,TIMPSON LTD,Total Adult Social Care,28,MISCELLANEOUS AND SPECIALTY RETAIL STORES,2022-23Q3_PC0658
Sandwell Metropolitan Borough Council,http://www.sandwell.gov.uk/info/200202/performance_and_spending/3233/government_procurement_cards,31-Oct-2022,Total Borough Economy,WWW.OFFICETEAMCONNECT.,Total Adult Social Care,143.04,STATIONERY/OFFICE SUPPLIES/PRINTING & WRITING PAP.,2022-23Q3_PC0659
Sandwell Metropolitan Borough Council,http://www.sandwell.gov.uk/info/200202/performance_and_spending/3233/government_procurement_cards,01-Nov-2022,Director of Law & Governance,Martys Lifestyle Expre,Assistant Chief Executive (Excl SIU),4,"GROCERY STORES, SUPERMARKETS",2022-23Q3_PC0660
Sandwell Metropolitan Borough Council,http://www.sandwell.gov.uk/info/200202/performance_and_spending/3233/government_procurement_cards,01-Nov-2022,Total Business Strategy & Change,AMZNMKTPLACE AMAZON.CO,Assistant Chief Executive (Excl SIU),9.59,MISCELLANEOUS AND SPECIALTY RETAIL STORES,2022-23Q3_PC0661
Sandwell Metropolitan Borough Council,http://www.sandwell.gov.uk/info/200202/performance_and_spending/3233/government_procurement_cards,01-Nov-2022,Total Business Strategy & Change,AMZNMKTPLACE AMAZON.CO,Assistant Chief Executive (Excl SIU),5.99,MISCELLANEOUS AND SPECIALTY RETAIL STORES,2022-23Q3_PC0662
Sandwell Metropolitan Borough Council,http://www.sandwell.gov.uk/info/200202/performance_and_spending/3233/government_procurement_cards,01-Nov-2022,Total Business Strategy & Change,AMZNMKTPLACE AMAZON.CO,Assistant Chief Executive (Excl SIU),11.83,MISCELLANEOUS AND SPECIALTY RETAIL STORES,2022-23Q3_PC0663
Sandwell Metropolitan Borough Council,http://www.sandwell.gov.uk/info/200202/performance_and_spending/3233/government_procurement_cards,01-Nov-2022,Childrens Services,Amazon.co.uk U68OW0EY5,Childrens Services,102.88,DIRECT MARKETING-OTHER DIRECT MARKETERS/NOT ELSEW.,2022-23Q3_PC0664
Sandwell Metropolitan Borough Council,http://www.sandwell.gov.uk/info/200202/performance_and_spending/3233/government_procurement_cards,01-Nov-2022,Childrens Services,GRAND NATIONAL ARCHERY,Childrens Services,80,"CLUBS-CNTRY,MBRSHIP(ATHLET,REC,SPRTS,PRIVATE GOLF",2022-23Q3_PC0665
Sandwell Metropolitan Borough Council,http://www.sandwell.gov.uk/info/200202/performance_and_spending/3233/government_procurement_cards,01-Nov-2022,Childrens Services,ARGOS LTD,Childrens Services,42.95,DISCOUNT STORES,2022-23Q3_PC0666
Sandwell Metropolitan Borough Council,http://www.sandwell.gov.uk/info/200202/performance_and_spending/3233/government_procurement_cards,01-Nov-2022,Childrens Services,SAINSBURYS S/MKTS,Childrens Services,50.55,"GROCERY STORES, SUPERMARKETS",2022-23Q3_PC0667
Sandwell Metropolitan Borough Council,http://www.sandwell.gov.uk/info/200202/performance_and_spending/3233/government_procurement_cards,01-Nov-2022,Childrens Services,WWW.HCE-UK.COM,Childrens Services,111.13,DENTAL/LAB/MED/OPHTHALMIC HOSP EQUIP & SUPPLIES,2022-23Q3_PC0668
Sandwell Metropolitan Borough Council,http://www.sandwell.gov.uk/info/200202/performance_and_spending/3233/government_procurement_cards,01-Nov-2022,Housing & Assets Total,CHAPMANS ELECTRICAL,Corporate Management,13.12,HOUSEHOLD APPLIANCE STORES,2022-23Q3_PC0669
Sandwell Metropolitan Borough Council,http://www.sandwell.gov.uk/info/200202/performance_and_spending/3233/government_procurement_cards,01-Nov-2022,Total Borough Economy,B&M RETAIL LTD,Total Adult Social Care,9.89,MISCELLANEOUS GENERAL MERCHANDISE,2022-23Q3_PC0670
Sandwell Metropolitan Borough Council,http://www.sandwell.gov.uk/info/200202/performance_and_spending/3233/government_procurement_cards,01-Nov-2022,Total Borough Economy,HOME BARGAINS,Total Adult Social Care,8.45,HARDWARE STORES,2022-23Q3_PC0671
Sandwell Metropolitan Borough Council,http://www.sandwell.gov.uk/info/200202/performance_and_spending/3233/government_procurement_cards,01-Nov-2022,Total ASCHWB,TRAVELODGE,Total Adult Social Care,72.91,TRAVELODGE,2022-23Q3_PC0672
Sandwell Metropolitan Borough Council,http://www.sandwell.gov.uk/info/200202/performance_and_spending/3233/government_procurement_cards,01-Nov-2022,Total ASCHWB,ASDA SUPERSTORE,Total Adult Social Care,42.95,"GROCERY STORES, SUPERMARKETS",2022-23Q3_PC0673
Sandwell Metropolitan Borough Council,http://www.sandwell.gov.uk/info/200202/performance_and_spending/3233/government_procurement_cards,01-Nov-2022,Total ASCHWB,B&M 697 - WEST BROMWIC,Total Adult Social Care,6.56,MISCELLANEOUS GENERAL MERCHANDISE,2022-23Q3_PC0674
Sandwell Metropolitan Borough Council,http://www.sandwell.gov.uk/info/200202/performance_and_spending/3233/government_procurement_cards,01-Nov-2022,Total ASCHWB,ASDA SUPERSTORE,Total Adult Social Care,0.6,"GROCERY STORES, SUPERMARKETS",2022-23Q3_PC0675
Sandwell Metropolitan Borough Council,http://www.sandwell.gov.uk/info/200202/performance_and_spending/3233/government_procurement_cards,01-Nov-2022,Total Borough Economy,TESCO STORES 6141,Total Adult Social Care,4.85,"GROCERY STORES, SUPERMARKETS",2022-23Q3_PC0676
Sandwell Metropolitan Borough Council,http://www.sandwell.gov.uk/info/200202/performance_and_spending/3233/government_procurement_cards,01-Nov-2022,Total Borough Economy,ASDA GROCERIES ONLINE,Total Adult Social Care,-1.35,"GROCERY STORES, SUPERMARKETS",2022-23Q3_PC0677
Sandwell Metropolitan Borough Council,http://www.sandwell.gov.uk/info/200202/performance_and_spending/3233/government_procurement_cards,01-Nov-2022,Total Borough Economy,ASDA GROCERIES ONLINE,Total Adult Social Care,152.5,"GROCERY STORES, SUPERMARKETS",2022-23Q3_PC0678
Sandwell Metropolitan Borough Council,http://www.sandwell.gov.uk/info/200202/performance_and_spending/3233/government_procurement_cards,01-Nov-2022,Total Borough Economy,Amazon.co.uk T68P33HE5,Total Adult Social Care,19.98,DIRECT MARKETING-OTHER DIRECT MARKETERS/NOT ELSEW.,2022-23Q3_PC0679
Sandwell Metropolitan Borough Council,http://www.sandwell.gov.uk/info/200202/performance_and_spending/3233/government_procurement_cards,01-Nov-2022,Housing & Assets Total,AMZNMktplace,Total Adult Social Care,154.16,MISCELLANEOUS AND SPECIALTY RETAIL STORES,2022-23Q3_PC0680
Sandwell Metropolitan Borough Council,http://www.sandwell.gov.uk/info/200202/performance_and_spending/3233/government_procurement_cards,01-Nov-2022,Total Housing Revenue Account,AMZNMktplace,Total Housing Revenue Account,10.98,MISCELLANEOUS AND SPECIALTY RETAIL STORES,2022-23Q3_PC0681
Sandwell Metropolitan Borough Council,http://www.sandwell.gov.uk/info/200202/performance_and_spending/3233/government_procurement_cards,02-Nov-2022,Total Business Strategy & Change,CLOUD B852P6,Assistant Chief Executive (Excl SIU),285.6,BUSINESS SERVICES-NOT ELSEWHERE CLASSIFIED,2022-23Q3_PC0682
Sandwell Metropolitan Borough Council,http://www.sandwell.gov.uk/info/200202/performance_and_spending/3233/government_procurement_cards,02-Nov-2022,Director of Law & Governance,CARTRIDGEPEOPLE.COM,Assistant Chief Executive (Excl SIU),271.9,STATIONERY/OFFICE SUPPLIES/PRINTING & WRITING PAP.,2022-23Q3_PC0683
Sandwell Metropolitan Borough Council,http://www.sandwell.gov.uk/info/200202/performance_and_spending/3233/government_procurement_cards,02-Nov-2022,Childrens Services,Mr Pizza,Childrens Services,27.97,FAST FOOD RESTAURANTS,2022-23Q3_PC0684
Sandwell Metropolitan Borough Council,http://www.sandwell.gov.uk/info/200202/performance_and_spending/3233/government_procurement_cards,02-Nov-2022,Childrens Services,AMZNMKTPLACE AMAZON.CO,Childrens Services,47.89,MISCELLANEOUS AND SPECIALTY RETAIL STORES,2022-23Q3_PC0685
Sandwell Metropolitan Borough Council,http://www.sandwell.gov.uk/info/200202/performance_and_spending/3233/government_procurement_cards,02-Nov-2022,Childrens Services,ASDA GROCERIES ONLINE,Childrens Services,107.87,"GROCERY STORES, SUPERMARKETS",2022-23Q3_PC0686
Sandwell Metropolitan Borough Council,http://www.sandwell.gov.uk/info/200202/performance_and_spending/3233/government_procurement_cards,02-Nov-2022,Childrens Services,TESCO STORES 2770,Childrens Services,23.75,"GROCERY STORES, SUPERMARKETS",2022-23Q3_PC0687
Sandwell Metropolitan Borough Council,http://www.sandwell.gov.uk/info/200202/performance_and_spending/3233/government_procurement_cards,02-Nov-2022,Childrens Services,TESCO SUBSCRIPTION,Childrens Services,7.99,DIRECT MARKETING-CONTINUITY/SUBSCRIPTION MERCHANTS,2022-23Q3_PC0688
Sandwell Metropolitan Borough Council,http://www.sandwell.gov.uk/info/200202/performance_and_spending/3233/government_procurement_cards,02-Nov-2022,Childrens Services,First Choice Catering,Childrens Services,6.9,CATERERS,2022-23Q3_PC0689
Sandwell Metropolitan Borough Council,http://www.sandwell.gov.uk/info/200202/performance_and_spending/3233/government_procurement_cards,02-Nov-2022,Childrens Services,WWW.SCREWFIX.COM,Childrens Services,16.96,"BUILDING MATERIALS, LUMBER STORES",2022-23Q3_PC0690
Sandwell Metropolitan Borough Council,http://www.sandwell.gov.uk/info/200202/performance_and_spending/3233/government_procurement_cards,02-Nov-2022,Childrens Services,ASDA GROCERIES ONLINE,Childrens Services,40.85,"GROCERY STORES, SUPERMARKETS",2022-23Q3_PC0691
Sandwell Metropolitan Borough Council,http://www.sandwell.gov.uk/info/200202/performance_and_spending/3233/government_procurement_cards,02-Nov-2022,Childrens Services,AMZNMktplace,Childrens Services,131.15,MISCELLANEOUS AND SPECIALTY RETAIL STORES,2022-23Q3_PC0692
Sandwell Metropolitan Borough Council,http://www.sandwell.gov.uk/info/200202/performance_and_spending/3233/government_procurement_cards,02-Nov-2022,Housing & Assets Total,TRAVELODGE,Corporate Management,125.44,TRAVELODGE,2022-23Q3_PC0693
Sandwell Metropolitan Borough Council,http://www.sandwell.gov.uk/info/200202/performance_and_spending/3233/government_procurement_cards,02-Nov-2022,Director of Law & Governance,trainline,Dead SeRCOP,43.6,PASSENGER RAILWAYS,2022-23Q3_PC0694
Sandwell Metropolitan Borough Council,http://www.sandwell.gov.uk/info/200202/performance_and_spending/3233/government_procurement_cards,02-Nov-2022,Total Public Health,J AND A INTERNATIONAL,Public Health,408,MEN'S/WOMEN'S/CHILDREN'S UNIFORMS/COMMERCIAL CLOTH,2022-23Q3_PC0695
Sandwell Metropolitan Borough Council,http://www.sandwell.gov.uk/info/200202/performance_and_spending/3233/government_procurement_cards,02-Nov-2022,Total Public Health,trainline,Public Health,317,PASSENGER RAILWAYS,2022-23Q3_PC0696
Sandwell Metropolitan Borough Council,http://www.sandwell.gov.uk/info/200202/performance_and_spending/3233/government_procurement_cards,02-Nov-2022,Regeneration & Growth,AMZNMktplace,Regeneration And The Economy,39.99,MISCELLANEOUS AND SPECIALTY RETAIL STORES,2022-23Q3_PC0697
Sandwell Metropolitan Borough Council,http://www.sandwell.gov.uk/info/200202/performance_and_spending/3233/government_procurement_cards,02-Nov-2022,Total ASCHWB,Amazon.co.uk EE9D11IC5,Total Adult Social Care,76.63,DIRECT MARKETING-OTHER DIRECT MARKETERS/NOT ELSEW.,2022-23Q3_PC0698
Sandwell Metropolitan Borough Council,http://www.sandwell.gov.uk/info/200202/performance_and_spending/3233/government_procurement_cards,02-Nov-2022,Total ASCHWB,Amazon.co.uk UL31C1865,Total Adult Social Care,148.19,DIRECT MARKETING-OTHER DIRECT MARKETERS/NOT ELSEW.,2022-23Q3_PC0699
Sandwell Metropolitan Borough Council,http://www.sandwell.gov.uk/info/200202/performance_and_spending/3233/government_procurement_cards,02-Nov-2022,Total ASCHWB,POUNDLAND,Total Adult Social Care,10,DISCOUNT STORES,2022-23Q3_PC0700
Sandwell Metropolitan Borough Council,http://www.sandwell.gov.uk/info/200202/performance_and_spending/3233/government_procurement_cards,02-Nov-2022,Total Borough Economy,SAINSBURYS S/MKTS,Total Adult Social Care,7.8,"GROCERY STORES, SUPERMARKETS",2022-23Q3_PC0701
Sandwell Metropolitan Borough Council,http://www.sandwell.gov.uk/info/200202/performance_and_spending/3233/government_procurement_cards,02-Nov-2022,Total Borough Economy,NYA Vendaid,Total Adult Social Care,4,"MISC FOOD STORE-CONVENIENCE,MRKT,SPLTY,VENDNG MACS",2022-23Q3_PC0702
Sandwell Metropolitan Borough Council,http://www.sandwell.gov.uk/info/200202/performance_and_spending/3233/government_procurement_cards,02-Nov-2022,Total Borough Economy,AMZNMktplace,Total Adult Social Care,396,MISCELLANEOUS AND SPECIALTY RETAIL STORES,2022-23Q3_PC0703
Sandwell Metropolitan Borough Council,http://www.sandwell.gov.uk/info/200202/performance_and_spending/3233/government_procurement_cards,02-Nov-2022,Total Borough Economy,AMZNMKTPLACE AMAZON.CO,Total Adult Social Care,8.99,MISCELLANEOUS AND SPECIALTY RETAIL STORES,2022-23Q3_PC0704
Sandwell Metropolitan Borough Council,http://www.sandwell.gov.uk/info/200202/performance_and_spending/3233/government_procurement_cards,02-Nov-2022,Total Borough Economy,AMZNMktplace,Total Adult Social Care,421.04,MISCELLANEOUS AND SPECIALTY RETAIL STORES,2022-23Q3_PC0705
Sandwell Metropolitan Borough Council,http://www.sandwell.gov.uk/info/200202/performance_and_spending/3233/government_procurement_cards,02-Nov-2022,Total Borough Economy,AMZNMktplace,Total Adult Social Care,249.91,MISCELLANEOUS AND SPECIALTY RETAIL STORES,2022-23Q3_PC0706
Sandwell Metropolitan Borough Council,http://www.sandwell.gov.uk/info/200202/performance_and_spending/3233/government_procurement_cards,02-Nov-2022,Total Borough Economy,Amazon Prime 063IZ3HV5,Total Adult Social Care,0.99,DIRECT MARKETING-CONTINUITY/SUBSCRIPTION MERCHANTS,2022-23Q3_PC0707
Sandwell Metropolitan Borough Council,http://www.sandwell.gov.uk/info/200202/performance_and_spending/3233/government_procurement_cards,02-Nov-2022,Total Borough Economy,AMZNMktplace,Total Adult Social Care,449.96,MISCELLANEOUS AND SPECIALTY RETAIL STORES,2022-23Q3_PC0708
Sandwell Metropolitan Borough Council,http://www.sandwell.gov.uk/info/200202/performance_and_spending/3233/government_procurement_cards,03-Nov-2022,Director of Law & Governance,WWW.OFFICETEAMCONNECT.,Assistant Chief Executive (Excl SIU),167.46,STATIONERY/OFFICE SUPPLIES/PRINTING & WRITING PAP.,2022-23Q3_PC0709
Sandwell Metropolitan Borough Council,http://www.sandwell.gov.uk/info/200202/performance_and_spending/3233/government_procurement_cards,03-Nov-2022,Total Business Strategy & Change,AMZNMktplace,Assistant Chief Executive (Excl SIU),16.49,MISCELLANEOUS AND SPECIALTY RETAIL STORES,2022-23Q3_PC0710
Sandwell Metropolitan Borough Council,http://www.sandwell.gov.uk/info/200202/performance_and_spending/3233/government_procurement_cards,03-Nov-2022,Total Business Strategy & Change,AMZNMktplace,Assistant Chief Executive (Excl SIU),16.49,MISCELLANEOUS AND SPECIALTY RETAIL STORES,2022-23Q3_PC0711
Sandwell Metropolitan Borough Council,http://www.sandwell.gov.uk/info/200202/performance_and_spending/3233/government_procurement_cards,03-Nov-2022,Total Business Strategy & Change,AMZNMktplace,Assistant Chief Executive (Excl SIU),227.49,MISCELLANEOUS AND SPECIALTY RETAIL STORES,2022-23Q3_PC0712
Sandwell Metropolitan Borough Council,http://www.sandwell.gov.uk/info/200202/performance_and_spending/3233/government_procurement_cards,03-Nov-2022,Total Business Strategy & Change,AMZNMktplace,Assistant Chief Executive (Excl SIU),227.49,MISCELLANEOUS AND SPECIALTY RETAIL STORES,2022-23Q3_PC0713
Sandwell Metropolitan Borough Council,http://www.sandwell.gov.uk/info/200202/performance_and_spending/3233/government_procurement_cards,03-Nov-2022,Childrens Services,ALDI 109 772,Childrens Services,9.76,"GROCERY STORES, SUPERMARKETS",2022-23Q3_PC0714
Sandwell Metropolitan Borough Council,http://www.sandwell.gov.uk/info/200202/performance_and_spending/3233/government_procurement_cards,03-Nov-2022,Childrens Services,HANDY DRY CLEANERS,Childrens Services,82,"CLEANING, GARMENT, AND LAUNDRY SERVICES",2022-23Q3_PC0715
Sandwell Metropolitan Borough Council,http://www.sandwell.gov.uk/info/200202/performance_and_spending/3233/government_procurement_cards,03-Nov-2022,Childrens Services,IKEA LTD SHOP ONLINE,Childrens Services,34,"EQUIP, FURNITURE, HOME FURNSHNGS STRS (EXCPT APPL)",2022-23Q3_PC0716
Sandwell Metropolitan Borough Council,http://www.sandwell.gov.uk/info/200202/performance_and_spending/3233/government_procurement_cards,03-Nov-2022,Childrens Services,TLC DIRECT.CO.UK,Childrens Services,20.23,HOUSEHOLD APPLIANCE STORES,2022-23Q3_PC0717
Sandwell Metropolitan Borough Council,http://www.sandwell.gov.uk/info/200202/performance_and_spending/3233/government_procurement_cards,03-Nov-2022,Childrens Services,AMZNMktplace,Childrens Services,75.14,MISCELLANEOUS AND SPECIALTY RETAIL STORES,2022-23Q3_PC0718
Sandwell Metropolitan Borough Council,http://www.sandwell.gov.uk/info/200202/performance_and_spending/3233/government_procurement_cards,03-Nov-2022,Childrens Services,POST OFFICE COUNTER,Childrens Services,22.8,POSTAL SERVICES-GOVERNMENT ONLY,2022-23Q3_PC0719
Sandwell Metropolitan Borough Council,http://www.sandwell.gov.uk/info/200202/performance_and_spending/3233/government_procurement_cards,03-Nov-2022,Childrens Services,SumUp   Seasons Veg Bo,Childrens Services,123.55,LIMOUSINES AND TAXICABS,2022-23Q3_PC0720
Sandwell Metropolitan Borough Council,http://www.sandwell.gov.uk/info/200202/performance_and_spending/3233/government_procurement_cards,03-Nov-2022,Childrens Services,POST OFFICE COUNTER,Childrens Services,3.45,POSTAL SERVICES-GOVERNMENT ONLY,2022-23Q3_PC0721
Sandwell Metropolitan Borough Council,http://www.sandwell.gov.uk/info/200202/performance_and_spending/3233/government_procurement_cards,03-Nov-2022,Housing & Assets Total,TRAVELODGE,Corporate Management,321.98,TRAVELODGE,2022-23Q3_PC0722
Sandwell Metropolitan Borough Council,http://www.sandwell.gov.uk/info/200202/performance_and_spending/3233/government_procurement_cards,03-Nov-2022,Individual School Budgets With Inclusion,WWW.OFFICETEAMCONNECT.,Individual School Budgets With Inclusion,107.78,STATIONERY/OFFICE SUPPLIES/PRINTING & WRITING PAP.,2022-23Q3_PC0723
Sandwell Metropolitan Borough Council,http://www.sandwell.gov.uk/info/200202/performance_and_spending/3233/government_procurement_cards,03-Nov-2022,Individual School Budgets With Inclusion,CO-OPERATIVE FOOD,Individual School Budgets With Inclusion,7.8,"GROCERY STORES, SUPERMARKETS",2022-23Q3_PC0724
Sandwell Metropolitan Borough Council,http://www.sandwell.gov.uk/info/200202/performance_and_spending/3233/government_procurement_cards,03-Nov-2022,Regeneration & Growth,trainline,Regeneration And The Economy,7.09,PASSENGER RAILWAYS,2022-23Q3_PC0725
Sandwell Metropolitan Borough Council,http://www.sandwell.gov.uk/info/200202/performance_and_spending/3233/government_procurement_cards,03-Nov-2022,Regeneration & Growth,TIMPSON LTD,Regeneration And The Economy,24,MISCELLANEOUS AND SPECIALTY RETAIL STORES,2022-23Q3_PC0726
Sandwell Metropolitan Borough Council,http://www.sandwell.gov.uk/info/200202/performance_and_spending/3233/government_procurement_cards,03-Nov-2022,Total ASCHWB,eBay O 18-09287-48589,Total Adult Social Care,140.35,DEPARTMENT STORES,2022-23Q3_PC0727
Sandwell Metropolitan Borough Council,http://www.sandwell.gov.uk/info/200202/performance_and_spending/3233/government_procurement_cards,03-Nov-2022,Total ASCHWB,TESCO STORES 4838,Total Adult Social Care,46.22,"GROCERY STORES, SUPERMARKETS",2022-23Q3_PC0728
Sandwell Metropolitan Borough Council,http://www.sandwell.gov.uk/info/200202/performance_and_spending/3233/government_procurement_cards,03-Nov-2022,Total ASCHWB,AMZNMktplace,Total Adult Social Care,32.98,MISCELLANEOUS AND SPECIALTY RETAIL STORES,2022-23Q3_PC0729
